Workbook

Sheet OUTIL-COULEUR
C3: ETAPE 1 Introduisez ci-dessous les données de votre échantillon de couleur. | M3: Si vous souhaitez comparer cette couleur à une autre couleur, remplissez les cellules ci-dessous. | U3: Si vous souhaitez comparer cette couleur à une troisième couleur, remplissez les cellules ci-dessous.
D7: Selectionner le référentiel de couleur: | F7: RAL Classic | N7: NCS S | V7: RAL Classic
D9: Introduisez la référence de la couleur: | F9: RAL 1024 | H9: =IF(F7="NCS S", "exemple: NCS S 1515-Y10R", IF(F7="RAL Design", "exemple: RAL 321 52 69", "exemple: RAL 1024, RAL 2009")) -> exemple: RAL 1024, RAL 2009 | N9: NCS S 1515-Y10R | P9: =IF(N7="NCS S", "exemple: NCS S 1515-Y10R", IF(N7="RAL Design", "exemple: RAL 321 52 69", "exemple: RAL 1024, RAL 2009")) -> exemple: NCS S 1515-Y10R | V9: RAL 7008 | X9: =IF(V7="NCS S", "exemple: NCS S 1515-Y10R", IF(V7="RAL Design", "exemple: RAL 321 52 69", "exemple: RAL 1024, RAL 2009")) -> exemple: RAL 1024, RAL 2009
D15: Apercu de la couleur : | H15: =IF(F18="","",IF(F7="RAL Classic",CONCATENATE("NCS S approximatif: ",VLOOKUP(F9,RAL2NCS!A:C,3,TRUE)),"")) ->  | P15: =IF(N18="","",IF(N7="RAL Classic",CONCATENATE("NCS S approximatif: ",VLOOKUP(N9,RAL2NCS!A:C,3,TRUE)),"")) ->  | X15: =IF(V18="","",IF(V7="RAL Classic",CONCATENATE("NCS S approximatif: ",VLOOKUP(V9,RAL2NCS!A:C,3,TRUE)),"")) -> 
D17: Coefficient de réflexion : | F17: 0.3060582739 | N17: 0.6708062707 | V17: 0.1205533296
D19: Selon la NBN 12 464-1,
D20: pour les lieux de travail, cette couleur | E20: =IF(F$17="",-2,IF(AND(F$17>='coef_refl_NBN12464-1'!$B2,F$17<='coef_refl_NBN12464-1'!$C2),0,IF(F$17>'coef_refl_NBN12464-1'!$C2,1,-1))) -> -1 | F20: =IF(E20=-1,"est trop foncée",IF(E20=1,"est trop claire",IF(E20=0,"convient",""))) -> est trop foncée | H20: pour les murs | M20: =IF(N$17="",-2,IF(AND(N$17>='coef_refl_NBN12464-1'!$B2,N$17<='coef_refl_NBN12464-1'!$C2),0,IF(N$17>'coef_refl_NBN12464-1'!$C2,1,-1))) -> 0 | N20: =IF(M20=-1,"est trop foncée",IF(M20=1,"est trop claire",IF(M20=0,"convient",""))) -> convient | P20: pour les murs | U20: =IF(V$17="",-2,IF(AND(V$17>='coef_refl_NBN12464-1'!$B2,V$17<='coef_refl_NBN12464-1'!$C2),0,IF(V$17>'coef_refl_NBN12464-1'!$C2,1,-1))) -> -1 | V20: =IF(U20=-1,"est trop foncée",IF(U20=1,"est trop claire",IF(U20=0,"convient",""))) -> est trop foncée | X20: pour les murs
E21: =IF(F$17="",-2,IF(AND(F$17>='coef_refl_NBN12464-1'!$B3,F$17<='coef_refl_NBN12464-1'!$C3),0,IF(F$17>'coef_refl_NBN12464-1'!$C3,1,-1))) -> 0 | F21: =IF(E21=-1,"est trop foncée",IF(E21=1,"est trop claire",IF(E21=0,"convient",""))) -> convient | H21: pour le sol | M21: =IF(N$17="",-2,IF(AND(N$17>='coef_refl_NBN12464-1'!$B3,N$17<='coef_refl_NBN12464-1'!$C3),0,IF(N$17>'coef_refl_NBN12464-1'!$C3,1,-1))) -> 1 | N21: =IF(M21=-1,"est trop foncée",IF(M21=1,"est trop claire",IF(M21=0,"convient",""))) -> est trop claire | P21: pour le sol | U21: =IF(V$17="",-2,IF(AND(V$17>='coef_refl_NBN12464-1'!$B3,V$17<='coef_refl_NBN12464-1'!$C3),0,IF(V$17>'coef_refl_NBN12464-1'!$C3,1,-1))) -> -1 | V21: =IF(U21=-1,"est trop foncée",IF(U21=1,"est trop claire",IF(U21=0,"convient",""))) -> est trop foncée | X21: pour le sol
E22: =IF(F$17="",-2,IF(AND(F$17>='coef_refl_NBN12464-1'!$B4,F$17<='coef_refl_NBN12464-1'!$C4),0,IF(F$17>'coef_refl_NBN12464-1'!$C4,1,-1))) -> -1 | F22: =IF(E22=-1,"est trop foncée",IF(E22=1,"est trop claire",IF(E22=0,"convient",""))) -> est trop foncée | H22: pour le plafond | M22: =IF(N$17="",-2,IF(AND(N$17>='coef_refl_NBN12464-1'!$B4,N$17<='coef_refl_NBN12464-1'!$C4),0,IF(N$17>'coef_refl_NBN12464-1'!$C4,1,-1))) -> -1 | N22: =IF(M22=-1,"est trop foncée",IF(M22=1,"est trop claire",IF(M22=0,"convient",""))) -> est trop foncée | P22: pour le plafond | U22: =IF(V$17="",-2,IF(AND(V$17>='coef_refl_NBN12464-1'!$B4,V$17<='coef_refl_NBN12464-1'!$C4),0,IF(V$17>'coef_refl_NBN12464-1'!$C4,1,-1))) -> -1 | V22: =IF(U22=-1,"est trop foncée",IF(U22=1,"est trop claire",IF(U22=0,"convient",""))) -> est trop foncée | X22: pour le plafond
E23: =IF(F$17="",-2,IF(AND(F$17>='coef_refl_NBN12464-1'!$B5,F$17<='coef_refl_NBN12464-1'!$C5),0,IF(F$17>'coef_refl_NBN12464-1'!$C5,1,-1))) -> 0 | F23: =IF(E23=-1,"est trop foncée",IF(E23=1,"est trop claire",IF(E23=0,"convient",""))) -> convient | H23: pour le mobilier | M23: =IF(N$17="",-2,IF(AND(N$17>='coef_refl_NBN12464-1'!$B5,N$17<='coef_refl_NBN12464-1'!$C5),0,IF(N$17>'coef_refl_NBN12464-1'!$C5,1,-1))) -> 0 | N23: =IF(M23=-1,"est trop foncée",IF(M23=1,"est trop claire",IF(M23=0,"convient",""))) -> convient | P23: pour le mobilier | U23: =IF(V$17="",-2,IF(AND(V$17>='coef_refl_NBN12464-1'!$B5,V$17<='coef_refl_NBN12464-1'!$C5),0,IF(V$17>'coef_refl_NBN12464-1'!$C5,1,-1))) -> -1 | V23: =IF(U23=-1,"est trop foncée",IF(U23=1,"est trop claire",IF(U23=0,"convient",""))) -> est trop foncée | X23: pour le mobilier
C27: ETAPE 2 Si vous souhaitez combinez ces coloris sur un type de parois, remplissez les cellules ci-dessous pour calculer le coefficient de réflexion moyen.
D31: Indiquez le pourcentage approximatif de parois de cette couleur | F31: 0.3 | H31: de surface ou de mobilier dans cette teinte | N31: 0.7 | P31: de surface ou de mobilier dans cette teinte | V31: 0 | X31: de surface ou de mobilier dans cette teinte
F36: Coefficient de réflexion moyen de la combinaison: | N36: 0.5613818717
H38: Selon la NBN 12 464-1,
L39: pour les lieux de travail, cette combinaison | M39: =IF(N$36="",-2,IF(AND(N$36>='coef_refl_NBN12464-1'!$B2,N$36<='coef_refl_NBN12464-1'!$C2),0,IF(N$36>'coef_refl_NBN12464-1'!$C2,1,-1))) -> 0 | N39: =IF(M39=-1,"est trop foncée",IF(M39=1,"est trop claire",IF(M39=0,"convient",""))) -> convient | O39: pour les murs
M40: =IF(N$36="",-2,IF(AND(N$36>='coef_refl_NBN12464-1'!$B3,N$36<='coef_refl_NBN12464-1'!$C3),0,IF(N$36>'coef_refl_NBN12464-1'!$C3,1,-1))) -> 1 | N40: =IF(M40=-1,"est trop foncée",IF(M40=1,"est trop claire",IF(M40=0,"convient",""))) -> est trop claire | O40: pour le sol
M41: =IF(N$36="",-2,IF(AND(N$36>='coef_refl_NBN12464-1'!$B4,N$36<='coef_refl_NBN12464-1'!$C4),0,IF(N$36>'coef_refl_NBN12464-1'!$C4,1,-1))) -> -1 | N41: =IF(M41=-1,"est trop foncée",IF(M41=1,"est trop claire",IF(M41=0,"convient",""))) -> est trop foncée | O41: pour le plafond
M42: =IF(N$36="",-2,IF(AND(N$36>='coef_refl_NBN12464-1'!$B5,N$36<='coef_refl_NBN12464-1'!$C5),0,IF(N$36>'coef_refl_NBN12464-1'!$C5,1,-1))) -> 0 | N42: =IF(M42=-1,"est trop foncée",IF(M42=1,"est trop claire",IF(M42=0,"convient",""))) -> convient | O42: pour le mobilier

Sheet formules (hidden)
A1: CONVERSION L*a*b* > XYZ
A3: var_Y = ( CIE-L* + 16 ) / 116
A4: var_X = CIE-a* / 500 + var_Y
A5: var_Z = var_Y - CIE-b* / 200
A7: if ( var_Y^3 > 0.008856 ) var_Y = var_Y^3
A8: else var_Y = ( var_Y - 16 / 116 ) / 7.787
A9: if ( var_X^3 > 0.008856 ) var_X = var_X^3
A10: else var_X = ( var_X - 16 / 116 ) / 7.787
A11: if ( var_Z^3 > 0.008856 ) var_Z = var_Z^3
A12: else var_Z = ( var_Z - 16 / 116 ) / 7.787
A14: X = ref_X * var_X //ref_X = 95.047 Observer= 2°, Illuminant= D65
A15: Y = ref_Y * var_Y //ref_Y = 100.000
A16: Z = ref_Z * var_Z //ref_Z = 108.883
A18: CONVERSION RGB > XYZ
A20: var_X = X / 100 //X from 0 to 95.047 (Observer = 2°, Illuminant = D65)
A21: var_Y = Y / 100 //Y from 0 to 100.000
A22: var_Z = Z / 100 //Z from 0 to 108.883
A24: var_R = var_X * 3.2406 + var_Y * -1.5372 + var_Z * -0.4986
A25: var_G = var_X * -0.9689 + var_Y * 1.8758 + var_Z * 0.0415
A26: var_B = var_X * 0.0557 + var_Y * -0.2040 + var_Z * 1.0570
A28: if ( var_R > 0.0031308 ) var_R = 1.055 * ( var_R ^ ( 1 / 2.4 ) ) - 0.055
A29: else var_R = 12.92 * var_R
A30: if ( var_G > 0.0031308 ) var_G = 1.055 * ( var_G ^ ( 1 / 2.4 ) ) - 0.055
A31: else var_G = 12.92 * var_G
A32: if ( var_B > 0.0031308 ) var_B = 1.055 * ( var_B ^ ( 1 / 2.4 ) ) - 0.055
A33: else var_B = 12.92 * var_B
A35: R = var_R * 255
A36: G = var_G * 255
A37: B = var_B * 255
A39: CONVERSION RGB > XYZ
A41: var_R = ( R / 255 ) //R from 0 to 255
A42: var_G = ( G / 255 ) //G from 0 to 255
A43: var_B = ( B / 255 ) //B from 0 to 255
A45: if ( var_R > 0.04045 ) var_R = ( ( var_R + 0.055 ) / 1.055 ) ^ 2.4
A46: else var_R = var_R / 12.92
A47: if ( var_G > 0.04045 ) var_G = ( ( var_G + 0.055 ) / 1.055 ) ^ 2.4
A48: else var_G = var_G / 12.92
A49: if ( var_B > 0.04045 ) var_B = ( ( var_B + 0.055 ) / 1.055 ) ^ 2.4
A50: else var_B = var_B / 12.92
A52: var_R = var_R * 100
A53: var_G = var_G * 100
A54: var_B = var_B * 100
A56: //Observer. = 2°, Illuminant = D65
A57: X = var_R * 0.4124 + var_G * 0.3576 + var_B * 0.1805
A58: Y = var_R * 0.2126 + var_G * 0.7152 + var_B * 0.0722
A59: Z = var_R * 0.0193 + var_G * 0.1192 + var_B * 0.9505

Sheet RAL Design (hidden)
A1: code RAL (forme: RAL XXX YY ZZ) | B1: XXX | C1: YY | D1: ZZ | E1: CIE-L* | F1: CIE-C* | G1: CIE-h | H1: CIE-L* | I1: CIE-a* | J1: CIE-b* | K1: var_Y | L1: var_X | M1: var_Z | N1: var_Ybis | O1: var_Xbis | P1: var_Zbis | Q1: X | R1: Y | S1: Z | T1: R[0-1] | U1: G[0-1] | V1: B[0-1] | W1: var_X | X1: var_Y | Y1: var_Z | Z1: var_R | AA1: var_G | AB1: var_B | AC1: sR[0-255] | AD1: sG[0-255] | AE1: sB[0-255] | AF1: Coef_refl
A2: ='OUTIL-COULEUR'!F9 -> RAL 1024 | B2: =MID(A2,5,3) -> 102 | C2: =MID(A2,9,2) ->  | D2: =MID(A2,12,2) ->  | E2: =C2 ->  | G2: =B2 -> 102 | H2: =E2 ->  | I2: =COS(G2*PI()/180)*F2 ->  | J2: =SIN(G2*PI()/180)*F2 ->  | K2: =(H2+16)/116 ->  | L2: =(I2/500)+K2 ->  | M2: =K2-(J2/200) ->  | N2: =IF((K2)^3>0.008856,((K2)^3),((((K2)-16)/116)/7.787)) ->  | Q2: =O2*95.047 ->  | R2: =N2*100 ->  | S2: =P2*108.883 ->  | T2: =(3.2405*Q2-1.5371*R2-0.4985*S2)/100 ->  | U2: =(-0.9693*Q2+1.876*R2+0.0416*S2)/100 ->  | V2: =(0.0556*Q2-0.204*R2+1.0572*S2)/100 ->  | W2: =Q2/100 ->  | Z2: =W2*(3.2406)+X2*(-1.5372)+Y2*(-0.4986) ->  | AA2: =W2*(-0.9689)+ X2*(1.8758)+Y2*(0.0415) ->  | AB2: =W2*(0.0557)+ X2 *( -0.204) +Y2*(1.057) ->  | AC2: =IF(Z2>0.0031308,255*(1.055*(Z2^(1/2.4))-0.055),Z2*12.92*255) ->  | AD2: =IF(AA2>0.0031308,255*(1.055*(AA2^(1/2.4))-0.055),255*(AA2*12.92)) ->  | AF2: =R2/100 -> 
A3: ='OUTIL-COULEUR'!N9 -> NCS S 1515-Y10R | B3: =MID(A3,5,3) -> S 1 | C3: =MID(A3,9,2) -> 15 | D3: =MID(A3,12,2) -> Y1 | E3: 15 | F3: Y1 | G3: =B3 -> S 1 | H3: =E3 -> 15 | I3: =COS(G3*PI()/180)*F3 ->  | J3: =SIN(G3*PI()/180)*F3 ->  | K3: =(H3+16)/116 -> 0.2672413793 | L3: =(I3/500)+K3 ->  | M3: =K3-(J3/200) ->  | N3: 0.01908583275 | Q3: =O3*95.047 ->  | R3: =N3*100 -> 1.908583275 | S3: =P3*108.883 ->  | T3: =(3.2405*Q3-1.5371*R3-0.4985*S3)/100 ->  | U3: =(-0.9693*Q3+1.876*R3+0.0416*S3)/100 ->  | V3: =(0.0556*Q3-0.204*R3+1.0572*S3)/100 ->  | X3: 0.01908583275 | Z3: =W3*(3.2406)+X3*(-1.5372)+Y3*(-0.4986) ->  | AA3: =W3*(-0.9689)+ X3*(1.8758)+Y3*(0.0415) ->  | AB3: =W3*(0.0557)+ X3 *( -0.204) +Y3*(1.057) ->  | AC3: =IF(Z3>0.0031308,255*(1.055*(Z3^(1/2.4))-0.055),Z3*12.92*255) ->  | AF3: =R3/100 -> 0.01908583275
A4: ='OUTIL-COULEUR'!V9 -> RAL 7008 | B4: =MID(A4,5,3) -> 700 | C4: =MID(A4,9,2) ->  | D4: =MID(A4,12,2) ->  | G4: =B4 -> 700 | H4: =E4 ->  | I4: =COS(G4*PI()/180)*F4 ->  | J4: =SIN(G4*PI()/180)*F4 ->  | K4: =(H4+16)/116 ->  | L4: =(I4/500)+K4 ->  | M4: =K4-(J4/200) ->  | N4: =IF((K4)^3>0.008856,((K4)^3),((((K4)-16)/116)/7.787)) ->  | O4: =IF((L4)^3>0.008856,((L4)^3),((((L4)-16)/116)/7.787)) ->  | P4: =IF((M4)^3>0.008856,((M4)^3),((((M4)-16)/116)/7.787)) ->  | Q4: =O4*95.047 ->  | R4: =N4*100 ->  | S4: =P4*108.883 ->  | T4: =(3.2405*Q4-1.5371*R4-0.4985*S4)/100 ->  | U4: =(-0.9693*Q4+1.876*R4+0.0416*S4)/100 ->  | V4: =(0.0556*Q4-0.204*R4+1.0572*S4)/100 ->  | W4: =Q4/100 ->  | X4: =R4/100 ->  | Y4: =S4/100 ->  | Z4: =W4*(3.2406)+X4*(-1.5372)+Y4*(-0.4986) ->  | AA4: =W4*(-0.9689)+ X4*(1.8758)+Y4*(0.0415) ->  | AB4: =W4*(0.0557)+ X4 *( -0.204) +Y4*(1.057) ->  | AC4: =IF(Z4>0.0031308,255*(1.055*(Z4^(1/2.4))-0.055),Z4*12.92*255) ->  | AF4: =R4/100 -> 

Sheet RAL Classic (hidden)
A1: RAL | B1: C | C1: M | D1: Y | E1: K | F1: sR | G1: sG | H1: sB | I1: Hex | J1: Name | K1: sR | L1: sG | M1: sB | N1: var_R | O1: var_G | P1: var_B | Q1: var_Rbis | R1: var_Gbis | S1: var_Bbis | T1: var_Rtris | U1: var_Gtris | V1: var_Btris | W1: X | X1: Y | Y1: Z | Z1: color sample | AA1: coef.refl. Y | AB1: R[0-1] | AC1: G[0-1] | AD1: B[0-1] | AE1: R[0-255] | AF1: G[0-255] | AG1: B[0-255] | AH1: sR[0-1] | AI1: sG[0-1] | AJ1: sB[0-1] | AK1: sR[0-255] | AL1: sG[0-255] | AM1: sB[0-255]
A2: RAL 1000 | B2: 10 | C2: 10 | D2: 50 | E2: 10 | F2: 205 | G2: 186 | H2: 136 | I2: #cdba88 | J2: Green beige | K2: =F2 -> 205 | L2: =G2 -> 186 | M2: =H2 -> 136 | N2: =K2/255 -> 0.8039215686 | O2: =L2/255 -> 0.7294117647 | P2: =M2/255 -> 0.5333333333 | Q2: =IF(N2>0.04045,((N2+0.055)/1.055)^2.4,N2/12.92) -> 0.6104955708 | R2: =IF(O2>0.04045,((O2+0.055)/1.055)^2.4,O2/12.92) -> 0.4910208498 | S2: =IF(P2>0.04045,((P2+0.055)/1.055)^2.4,P2/12.92) -> 0.2462013267 | T2: =Q2*100 -> 61.04955708 | U2: =R2*100 -> 49.10208498 | V2: =S2*100 -> 24.62013267 | W2: =T2*0.4124+U2*0.3576+V2*0.1805 -> 47.17967688 | X2: =T2*0.2126+U2*0.7152+V2*0.0722 -> 49.8745206 | Y2: =T2*0.0193+U2*0.1192+V2*0.9505 -> 30.43266109 | AA2: =X2/100 -> 0.498745206 | AB2: =(3.2405*W2-1.5371*X2-0.4985*Y2)/100 -> 0.6105293576 | AC2: =(-0.9693*W2+1.876*X2+0.0416*Y2)/100 -> 0.4909933854 | AD2: =(0.0556*W2-0.204*X2+1.0572*Y2)/100 -> 0.2462219713 | AE2: =AB2*255 -> 155.6849862 | AF2: =AC2*255 -> 125.2033133 | AG2: 62.78660269 | AH2: =1.055*AB2^(1/2.4)-0.0553 -> 0.8036413748 | AI2: =1.055*AC2^(1/2.4)-0.0553 -> 0.7290934832 | AJ2: =1.055*AD2^(1/2.4)-0.0553 -> 0.5330538884 | AK2: =AH2*255 -> 204.9285506 | AL2: =AI2*255 -> 185.9188382 | AM2: =AJ2*255 -> 135.9287415
A3: RAL 1001 | B3: 0 | C3: 20 | D3: 50 | E3: 20 | F3: 207 | G3: 176 | H3: 132 | I3: #cfb084 | J3: Beige | K3: 207 | L3: 176 | M3: 132 | N3: 0.8117647059 | O3: 0.6901960784 | P3: 0.5176470588 | Q3: 0.6239603917 | R3: 0.4341536362 | S3: 0.2307400485 | T3: 62.39603917 | U3: 43.41536362 | V3: 23.07400485 | W3: 45.42231846 | X3: 45.98200914 | Y3: 28.31119651 | AA3: 0.4598200914 | AB3: =(3.2405*W3-1.5371*X3-0.4985*Y3)/100 -> 0.6239894526 | AC3: =(-0.9693*W3+1.876*X3+0.0416*Y3)/100 -> 0.4341214163 | AD3: =(0.0556*W3-0.204*X3+1.0572*Y3)/100 -> 0.2307574799 | AE3: =AB3*255 -> 159.1173104 | AF3: =AC3*255 -> 110.7009612 | AG3: =AD3*255 -> 58.84315739 | AH3: =1.055*AB3^(1/2.4)-0.0553 -> 0.8114815263 | AI3: =1.055*AC3^(1/2.4)-0.0553 -> 0.6898730349 | AJ3: =1.055*AD3^(1/2.4)-0.0553 -> 0.5173650839 | AK3: =AH3*255 -> 206.9277892 | AL3: =AI3*255 -> 175.9176239 | AM3: =AJ3*255 -> 131.9280964
A4: RAL 1002 | B4: 0 | C4: 20 | D4: 60 | E4: 10 | F4: 210 | G4: 170 | H4: 109 | I4: #d2aa6d | J4: Sand yellow | K4: 210 | L4: 170 | M4: 109 | N4: 0.8235294118 | O4: 0.6666666667 | P4: 0.4274509804 | Q4: 0.644479682 | R4: 0.4019777798 | S4: 0.152926152 | T4: 64.4479682 | U4: 40.19777798 | V4: 15.2926152 | W4: 43.71338453 | X4: 43.55521567 | Y4: 20.57105167 | AA4: 0.4355521567 | AB4: 0.6444983132 | AC4: 0.4019395672 | AD4: 0.1529291601 | AE4: 164.3470699 | AF4: 102.4945896 | AG4: 38.99693582 | AH4: 0.8232399939 | AI4: 0.6663380814 | AJ4: 0.4271549345 | AK4: 209.9261984 | AL4: 169.9162107 | AM4: 108.9245083
A5: RAL 1003 | B5: 5 | C5: 20 | D5: 90 | E5: 0 | F5: 249 | G5: 168 | H5: 38 | I5: #f9a826 | J5: Signal yellow | K5: 249 | L5: 168 | M5: 38 | N5: 0.9764705882 | O5: 0.6588235294 | P5: 0.1490196078 | Q5: 0.9473065367 | R5: 0.3915724777 | S5: 0.01938236096 | T5: 94.73065367 | U5: 39.15724777 | V5: 1.938236096 | W5: 53.41940499 | X5: 48.28494123 | Y5: 8.33813896 | AA5: 0.4828494123 | AB5: 0.9473023646 | AC5: 0.3914998706 | AD5: 0.01935071416 | AE5: 241.562103 | AF5: 99.832467 | AG5: 4.93443211 | AH5: 0.9761686954 | AI5: 0.6584683763 | AJ5: 0.1485807435 | AK5: 248.9230173 | AL5: 167.9094359 | AM5: 37.88808959
A6: RAL 1004 | B6: 5 | C6: 30 | D6: 100 | E6: 0 | F6: 228 | G6: 158 | H6: 34 | I6: #e49e22 | J6: Golden yellow | K6: 228 | L6: 158 | M6: 34 | N6: 0.8941176471 | O6: 0.6196078431 | P6: 0.1333333333 | Q6: 0.7758222183 | R6: 0.3419144249 | S6: 0.01599629337 | T6: 77.58222183 | U6: 34.19144249 | V6: 1.599629337 | W6: 44.51050121 | X6: 41.06319327 | Y6: 7.093404511 | AA6: 0.4106319327 | AB6: 0.7758198266 | AC6: 0.3418560737 | AD6: 0.01597039689 | AE6: 197.8340558 | AF6: 87.1732988 | AG6: 4.072451208 | AH6: 0.8938164279 | AI6: 0.6192598705 | AJ6: 0.1329062343 | AK6: 227.9231891 | AL6: 157.911267 | AM6: 33.89108973
A7: RAL 1005 | B7: 10 | C7: 30 | D7: 100 | E7: 0 | F7: 203 | G7: 142 | H7: 30 | I7: #cb8e1e | J7: Honey yellow | K7: 203 | L7: 142 | M7: 30 | N7: 0.7960784314 | O7: 0.5568627451 | P7: 0.1176470588 | Q7: 0.5972017884 | R7: 0.270497791 | S7: 0.01298303234 | T7: 59.72017884 | U7: 27.0497791 | V7: 1.298303234 | W7: 34.53594649 | X7: 32.13624953 | Y7: 5.610970345 | AA7: 0.3213624953 | AB7: 0.5972003674 | AC7: 0.2704532754 | AD7: 0.0129632157 | AE7: 152.2860937 | AF7: 68.96558524 | AG7: 3.305620003 | AH7: 0.7957775876 | AI7: 0.5565207874 | AJ7: 0.11723721 | AK7: 202.9232848 | AL7: 141.9128008 | AM7: 29.89548855
A8: RAL 1006 | B8: 5 | C8: 30 | D8: 90 | E8: 0 | F8: 226 | G8: 144 | H8: 32 | I8: #e29020 | J8: Maize yellow | K8: 226 | L8: 144 | M8: 32 | N8: 0.8862745098 | O8: 0.5647058824 | P8: 0.1254901961 | Q8: 0.7605245047 | R8: 0.2788942635 | S8: 0.0144438436 | T8: 76.05245047 | U8: 27.88942635 | V8: 1.44438436 | W8: 41.59800081 | X8: 36.21955324 | Y8: 6.165119248 | AA8: 0.3621955324 | AB8: 0.7605193439 | AC8: 0.2788340866 | AD8: 0.01441824053 | AE8: 193.9324327 | AF8: 71.10269208 | AG8: 3.676651335 | AH8: 0.8859718484 | AI8: 0.5643501648 | AJ8: 0.1250568205 | AK8: 225.9228214 | AL8: 143.909292 | AM8: 31.88948923
A9: RAL 1007 | B9: 0 | C9: 40 | D9: 100 | E9: 0 | F9: 232 | G9: 140 | H9: 32 | I9: #e88c20 | J9: Daffodil yellow | K9: 232 | L9: 140 | M9: 32 | N9: 0.9098039216 | O9: 0.5490196078 | P9: 0.1254901961 | Q9: 0.8069522577 | R9: 0.2622506575 | S9: 0.0144438436 | T9: 80.69522577 | U9: 26.22506575 | V9: 1.44438436 | W9: 42.917506 | X9: 36.01625658 | Y9: 6.056333029 | AA9: 0.3601625658 | AB9: 0.8069450818 | AC9: 0.2621850223 | AD9: 0.0144165227 | AE9: 205.7709959 | AF9: 66.85718068 | AG9: 3.676213289 | AH9: 0.9095003468 | AI9: 0.5486566149 | AJ9: 0.1250478668 | AK9: 231.9225884 | AL9: 139.9074368 | AM9: 31.88720603
A10: RAL 1011 | B10: 30 | C10: 40 | D10: 70 | E10: 0 | F10: 175 | G10: 128 | H10: 79 | I10: #af804f | J10: Brown beige | K10: 175 | L10: 128 | M10: 79 | N10: 0.6862745098 | O10: 0.5019607843 | P10: 0.3098039216 | Q10: 0.4286904966 | R10: 0.2158605001 | S10: 0.07818742181 | T10: 42.86904966 | U10: 21.58605001 | V10: 7.818742181 | W10: 26.80965053 | X10: 25.11681611 | Y10: 10.83214426 | AA10: 0.2511681611 | AB10: 0.4286979058 | AC10: 0.2158316997 | AD10: 0.07818528997 | AE10: 109.317966 | AF10: 55.03708342 | AG10: 19.93724894 | AH10: 0.6859798479 | AI10: 0.5016298204 | AJ10: 0.3094997771 | AK10: 174.9248612 | AL10: 127.9156042 | AM10: 78.92244316
A11: RAL 1012 | B11: 10 | C11: 10 | D11: 90 | E11: 0 | F11: 221 | G11: 175 | H11: 39 | I11: #ddaf27 | J11: Lemon yellow | K11: 221 | L11: 175 | M11: 39 | N11: 0.8666666667 | O11: 0.6862745098 | P11: 0.1529411765 | Q11: 0.7230551289 | R11: 0.4286904966 | S11: 0.02028856306 | T11: 72.30551289 | U11: 42.86904966 | V11: 2.028856306 | W11: 45.51497424 | X11: 46.17857978 | Y11: 8.433915037 | AA11: 0.4617857978 | AB11: 0.7230587239 | AC11: 0.4286420201 | AD11: 0.02026537269 | AE11: 184.3799746 | AF11: 109.3037151 | AG11: 5.167670036 | AH11: 0.866368576 | AI11: 0.6859395821 | AJ11: 0.1525421091 | AK11: 220.9239869 | AL11: 174.9145934 | AM11: 38.89823783
A12: RAL 1013 | B12: 0 | C12: 5 | D12: 20 | E12: 10 | F12: 227 | G12: 217 | H12: 198 | I12: #e3d9c6 | J12: Oyster white | K12: 227 | L12: 217 | M12: 198 | N12: 0.8901960784 | O12: 0.8509803922 | P12: 0.7764705882 | Q12: 0.7681511472 | R12: 0.6938717613 | S12: 0.5647115057 | T12: 76.81511472 | U12: 69.38717613 | V12: 56.47115057 | W12: 66.68445017 | X12: 70.03381883 | Y12: 63.42931173 | AA12: 0.7003381883 | AB12: 0.7682246597 | AC12: 0.6938486594 | AD12: 0.5647822475 | AE12: 195.8972882 | AF12: 176.9314081 | AG12: 144.0194731 | AH12: 0.8899337673 | AI12: 0.8506678237 | AJ12: 0.7762139862 | AK12: 226.9331107 | AL12: 216.9202951 | AM12: 197.9345665
A13: RAL 1014 | B13: 0 | C13: 10 | D13: 40 | E13: 10 | F13: 221 | G13: 196 | H13: 154 | I13: #ddc49a | J13: Ivory | K13: 221 | L13: 196 | M13: 154 | N13: 0.8666666667 | O13: 0.768627451 | P13: 0.6039215686 | Q13: 0.7230551289 | R13: 0.5520114015 | S13: 0.3231432091 | T13: 72.30551289 | U13: 55.20114015 | V13: 32.31432091 | W13: 55.39145616 | X13: 57.18510145 | Y13: 38.69023433 | AA13: 0.5718510145 | AB13: 0.7230971244 | AC13: 0.5519782561 | AD13: 0.3231732 | AE13: 184.3897667 | AF13: 140.7544553 | AG13: 82.40916601 | AH13: 0.8663889708 | AI13: 0.7683068445 | AJ13: 0.603647049 | AK13: 220.9291876 | AL13: 195.9182454 | AM13: 153.9299975
A14: RAL 1015 | B14: 0 | C14: 5 | D14: 30 | E14: 10 | F14: 230 | G14: 210 | H14: 181 | I14: #e6d2b5 | J14: Light ivory | K14: 230 | L14: 210 | M14: 181 | N14: 0.9019607843 | O14: 0.8235294118 | P14: 0.7098039216 | Q14: 0.7912979403 | R14: 0.644479682 | S14: 0.4620769997 | T14: 79.12979403 | U14: 64.4479682 | V14: 46.20769997 | W14: 64.02021033 | X14: 66.252377 | Y14: 53.12982165 | AA14: 0.66252377 | AB14: 0.7913574679 | AC14: 0.6444486997 | AD14: 0.4621288624 | AE14: 201.7961543 | AF14: 164.3344184 | AG14: 117.8428599 | AH14: 0.9016907795 | AI14: 0.8232118141 | AJ14: 0.7095396872 | AK14: 229.9311488 | AL14: 209.9190126 | AM14: 180.9326202
A15: RAL 1016 | B15: 10 | C15: 0 | D15: 90 | E15: 0 | F15: 241 | G15: 221 | H15: 56 | I15: #f1dd38 | J15: Sulfur yellow | K15: 241 | L15: 221 | M15: 56 | N15: 0.9450980392 | O15: 0.8666666667 | P15: 0.2196078431 | Q15: 0.8796223969 | R15: 0.7230551289 | S15: 0.03954623528 | T15: 87.96223969 | U15: 72.30551289 | V15: 3.954623528 | W15: 62.8458886 | X15: 70.6991988 | Y15: 14.07535803 | AA15: 0.706991988 | AB15: 0.8796379758 | AC15: 0.7230071201 | AD15: 0.03952063357 | AE15: 224.3076838 | AF15: 184.3668156 | AG15: 10.07776156 | AH15: 0.9448054194 | AI15: 0.8663411678 | AJ15: 0.2192337552 | AK15: 240.925382 | AL15: 220.9169978 | AM15: 55.90460757
A16: RAL 1017 | B16: 0 | C16: 30 | D16: 70 | E16: 0 | F16: 246 | G16: 169 | H16: 80 | I16: #f6a950 | J16: Saffron yellow | K16: 246 | L16: 169 | M16: 80 | N16: 0.9647058824 | O16: 0.662745098 | P16: 0.3137254902 | Q16: 0.9215818563 | R16: 0.3967552307 | S16: 0.08021982031 | T16: 92.15818563 | U16: 39.67552307 | V16: 8.021982031 | W16: 53.64197056 | X16: 48.54795147 | Y16: 14.13286925 | AA16: 0.4854795147 | AB16: 0.9215851408 | AC16: 0.3966872225 | AD16: 0.08019980839 | AE16: 235.0042109 | AF16: 101.1552417 | AG16: 20.45095114 | AH16: 0.9644073966 | AI16: 0.6623938332 | AJ16: 0.3133871609 | AK16: 245.9238861 | AL16: 168.9104275 | AM16: 79.91372603
A17: RAL 1018 | B17: 0 | C17: 0 | D17: 80 | E17: 0 | F17: 250 | G17: 202 | H17: 48 | I17: #faca30 | J17: Zinc yellow | K17: 250 | L17: 202 | M17: 48 | N17: 0.9803921569 | O17: 0.7921568627 | P17: 0.1882352941 | Q17: 0.9559733532 | R17: 0.5906188409 | S17: 0.02955683444 | T17: 95.59733532 | U17: 59.06188409 | V17: 2.955683444 | W17: 61.0783717 | X17: 62.77845334 | Y17: 11.69458227 | AA17: 0.6277845334 | AB17: 0.9559795361 | AC17: 0.5905560739 | AD17: 0.0295266536 | AE17: 243.7747817 | AF17: 150.5917989 | AG17: 7.529296669 | AH17: 0.9800949471 | AI17: 0.791819349 | AJ17: 0.1878317756 | AK17: 249.9242115 | AL17: 201.913934 | AM17: 47.89710278
A18: RAL 1019 | B18: 5 | C18: 20 | D18: 40 | E18: 40 | F18: 164 | G18: 143 | H18: 122 | I18: #a48f7a | J18: Grey beige | K18: 164 | L18: 143 | M18: 122 | N18: 0.6431372549 | O18: 0.5607843137 | P18: 0.4784313725 | Q18: 0.3712376805 | R18: 0.2746773121 | S18: 0.1946178304 | T18: 37.12376805 | U18: 27.46773121 | V18: 19.46178304 | W18: 28.64515446 | X18: 28.94257518 | Y18: 22.48906707 | AA18: 0.2894257518 | AB18: 0.3712619079 | AC18: 0.2746606801 | AD18: 0.1946382695 | AE18: 94.67178651 | AF18: 70.03847343 | AG18: 49.63275873 | AH18: 0.6428562384 | AI18: 0.5604687775 | AJ18: 0.4781547143 | AK18: 163.9283408 | AL18: 142.9195383 | AM18: 121.9294521
A19: RAL 1020 | B19: 1 | C19: 5 | D19: 30 | E19: 40 | F19: 160 | G19: 143 | H19: 101 | I19: #a08f65 | J19: Olive yellow | K19: 160 | L19: 143 | M19: 101 | N19: 0.6274509804 | O19: 0.5607843137 | P19: 0.3960784314 | Q19: 0.3515325995 | R19: 0.2746773121 | S19: 0.1301364767 | T19: 35.15325995 | U19: 27.46773121 | V19: 13.01364767 | W19: 26.66862849 | X19: 28.05808979 | Y19: 16.32208359 | AA19: 0.2805808979 | AB19: 0.3515504213 | AC19: 0.2746607352 | AD19: 0.1301463219 | AE19: 89.64535744 | AF19: 70.03848748 | AG19: 33.1873121 | AH19: 0.6271653963 | AI19: 0.560468829 | AJ19: 0.3957926501 | AK19: 159.927176 | AL19: 142.9195514 | AM19: 100.9271258
A20: RAL 1021 | B20: 0 | C20: 10 | D20: 100 | E20: 0 | F20: 246 | G20: 182 | H20: 40 | I20: #f6b628 | J20: Colza yellow | K20: 246 | L20: 182 | M20: 40 | N20: 0.9647058824 | O20: 0.7137254902 | P20: 0.1568627451 | Q20: 0.9215818563 | R20: 0.4677837961 | S20: 0.02121901038 | T20: 92.15818563 | U20: 46.77837961 | V20: 2.121901038 | W20: 55.11698744 | X20: 53.20192862 | Y20: 9.371502769 | AA20: 0.5320192862 | AB20: 0.9215821919 | AC20: 0.4677177668 | AD20: 0.02118863791 | AE20: 235.0034589 | AF20: 119.2680305 | AG20: 5.403102666 | AH20: 0.9644060371 | AI20: 0.7133802765 | AJ20: 0.1564363356 | AK20: 245.9235395 | AL20: 181.9119705 | AM20: 39.89126557
A21: RAL 1023 | B21: 0 | C21: 10 | D21: 90 | E21: 0 | F21: 247 | G21: 181 | H21: 40 | I21: #f7b528 | J21: Traffic yellow | K21: 247 | L21: 181 | M21: 40 | N21: 0.968627451 | O21: 0.7098039216 | P21: 0.1568627451 | Q21: 0.9301108584 | R21: 0.4620769997 | S21: 0.02121901038 | T21: 93.01108584 | U21: 46.20769997 | V21: 2.121901038 | W21: 55.26464844 | X21: 52.97510512 | Y21: 9.319938729 | AA21: 0.5297510512 | AB21: 0.9301106975 | AC21: 0.4620098292 | AD21: 0.02118832233 | AE21: 237.1782279 | AF21: 117.8125064 | AG21: 5.403022195 | AH21: 0.9683273772 | AI21: 0.7094575959 | AJ21: 0.1564350216 | AK21: 246.9234812 | AL21: 180.911687 | AM21: 39.89093051
A22: RAL 1024 | B22: 30 | C22: 40 | D22: 70 | E22: 10 | F22: 186 | G22: 143 | H22: 76 | I22: #ba8f4c | J22: Ochre yellow | K22: 186 | L22: 143 | M22: 76 | N22: 0.7294117647 | O22: 0.5607843137 | P22: 0.2980392157 | Q22: 0.4910208498 | R22: 0.2746773121 | S22: 0.07227185068 | T22: 49.10208498 | U22: 27.46773121 | V22: 7.227185068 | W22: 31.37666743 | X22: 30.60582739 | Y22: 11.09126321 | AA22: 0.3060582739 | AB22: 0.4910287883 | AC22: 0.2746452499 | AD22: 0.07226637385 | AE22: 125.212341 | AF22: 70.03453872 | AG22: 18.42792533 | AH22: 0.7291170487 | AI22: 0.5604543633 | AJ22: 0.2977280681 | AK22: 185.9248474 | AL22: 142.9158627 | AM22: 75.92065736
A23: RAL 1026 | B23: 0 | C23: 0 | D23: 100 | E23: 0 | F23: 255 | G23: 255 | H23: 0 | I23: #ffff00 | J23: Luminous yellow | K23: 255 | L23: 255 | M23: 0 | N23: 1 | O23: 1 | P23: 0 | Q23: 1 | R23: 1 | S23: 0 | T23: 100 | U23: 100 | V23: 0 | W23: 77 | X23: 92.78 | Y23: 13.85 | AA23: 0.9278 | AB23: 1.00002137 | AC23: 0.9999534 | AD23: -3.7e-05 | AE23: 255.0054493 | AF23: 254.988117 | AG23: -0.009435 | AH23: 0.9997093938 | AI23: 0.9996795151 | AK23: 254.9258954 | AL23: 254.9182764
A24: RAL 1027 | B24: 10 | C24: 20 | D24: 90 | E24: 40 | F24: 167 | G24: 127 | H24: 14 | I24: #a77f0e | J24: Curry | K24: 167 | L24: 127 | M24: 14 | N24: 0.6549019608 | O24: 0.4980392157 | P24: 0.05490196078 | Q24: 0.3864294338 | R24: 0.2122307574 | S24: 0.004391442037 | T24: 38.64294338 | U24: 21.22307574 | V24: 0.4391442037 | W24: 23.60498726 | X24: 23.42593974 | Y24: 3.693006001 | AA24: 0.2342593974 | AB24: 0.3864298575 | AC24: 0.2122037786 | AD24: 0.004377915286 | AE24: 98.53961367 | AF24: 54.11196353 | AG24: 1.116368398 | AH24: 0.6546022851 | AI24: 0.4977099219 | AJ24: 0.05446078143 | AK24: 166.9235827 | AL24: 126.9160301 | AM24: 13.88749926
A25: RAL 1028 | B25: 0 | C25: 30 | D25: 100 | E25: 0 | F25: 255 | G25: 155 | H25: 0 | I25: #ff9b00 | J25: Melon yellow | K25: 255 | L25: 155 | M25: 0 | N25: 1 | O25: 0.6078431373 | P25: 0 | Q25: 1 | R25: 0.3277780981 | S25: 0 | T25: 100 | U25: 32.77780981 | V25: 0 | W25: 52.96134479 | X25: 44.70268957 | Y25: 5.837114929 | AA25: 0.4470268957 | AB25: 0.9999893185 | AC25: 0.3276963812 | AD25: -3.7e-05 | AE25: 254.9972762 | AF25: 83.5625772 | AG25: -0.009435 | AH25: 0.9996953046 | AI25: 0.6074742779 | AK25: 254.9223027 | AL25: 154.9059409
A26: RAL 1032 | B26: 0 | C26: 30 | D26: 90 | E26: 10 | F26: 226 | G26: 163 | H26: 0 | I26: #e2a300 | J26: Broom yellow | K26: 226 | L26: 163 | M26: 0 | N26: 0.8862745098 | O26: 0.6392156863 | P26: 0 | Q26: 0.7605245047 | R26: 0.3662525956 | S26: 0 | T26: 76.05245047 | U26: 36.62525956 | V26: 0 | W26: 44.46122339 | X26: 42.36313661 | Y26: 5.833543234 | AA26: 0.4236313661 | AB26: 0.7605219582 | AC26: 0.3661965584 | AD26: -2.813940667e-05 | AE26: 193.9330993 | AF26: 93.38012239 | AG26: -0.007175548702 | AH26: 0.8859731966 | AI26: 0.6388714276 | AK26: 225.9231651 | AL26: 162.912214
A27: RAL 1033 | B27: 0 | C27: 30 | D27: 90 | E27: 0 | F27: 249 | G27: 154 | H27: 28 | I27: #f99a1c | J27: Dahlia yellow | K27: 249 | L27: 154 | M27: 28 | N27: 0.9764705882 | O27: 0.6039215686 | P27: 0.1098039216 | Q27: 0.9473065367 | R27: 0.3231432091 | S27: 0.01161224518 | T27: 94.73065367 | U27: 32.31432091 | V27: 1.161224518 | W27: 50.83212376 | X27: 43.3347797 | Y27: 6.783912573 | AA27: 0.433347797 | AB27: 0.9472982675 | AC27: 0.3230667992 | AD27: 0.01157923395 | AE27: 241.5610582 | AF27: 82.38203378 | AG27: 2.952704657 | AH27: 0.9761668366 | AI27: 0.6035566443 | AJ27: 0.1093085496 | AK27: 248.9225433 | AL27: 153.9069443 | AM27: 27.87368014
A28: RAL 1034 | B28: 0 | C28: 30 | D28: 80 | E28: 0 | F28: 235 | G28: 156 | H28: 82 | I28: #eb9c52 | J28: Pastel yellow | K28: 235 | L28: 156 | M28: 82 | N28: 0.9215686275 | O28: 0.6117647059 | P28: 0.3215686275 | Q28: 0.8307698768 | R28: 0.3324515363 | S28: 0.08437621154 | T28: 83.07698768 | U28: 33.24515363 | V28: 8.437621154 | W28: 47.67240728 | X28: 42.04829771 | Y28: 13.58616708 | AA28: 0.4204829771 | AB28: 0.8307729308 | AC28: 0.3323892668 | AD28: 0.08436028952 | AE28: 211.8470974 | AF28: 84.75926302 | AG28: 21.51187383 | AH28: 0.9212701233 | AI28: 0.6114126664 | AJ28: 0.3212390177 | AK28: 234.9238814 | AL28: 155.9102299 | AM28: 81.91594951
A29: RAL 1035 | B29: 60 | C29: 60 | D29: 80 | E29: 0 | F29: 144 | G29: 131 | H29: 112 | I29: #908370 | J29: Pearl beige | K29: 144 | L29: 131 | M29: 112 | N29: 0.5647058824 | O29: 0.5137254902 | P29: 0.4392156863 | Q29: 0.2788942635 | R29: 0.2269658735 | S29: 0.1620293756 | T29: 27.88942635 | U29: 22.69658735 | V29: 16.20293756 | W29: 22.54252929 | X29: 23.33174341 | Y29: 18.6445913 | AA29: 0.2333174341 | AB29: 0.2789151462 | AC29: 0.2269549199 | AD29: 0.1620475089 | AE29: 71.12336229 | AF29: 57.87350456 | AG29: 41.32211477 | AH29: 0.564425216 | AI29: 0.5134140536 | AJ29: 0.4389387311 | AK29: 143.9284301 | AL29: 130.9205837 | AM29: 111.9293764
A30: RAL 1036 | B30: 50 | C30: 60 | D30: 100 | E30: 10 | F30: 128 | G30: 100 | H30: 63 | I30: #80643f | J30: Pearl gold | K30: 128 | L30: 100 | M30: 63 | N30: 0.5019607843 | O30: 0.3921568627 | P30: 0.2470588235 | Q30: 0.2158605001 | R30: 0.1274376804 | S30: 0.04970656598 | T30: 21.58605001 | U30: 12.74376804 | V30: 4.970656598 | W30: 14.35646199 | X30: 14.06241854 | Y30: 6.660277013 | AA30: 0.1406241854 | AB30: 0.2158662345 | AC30: 0.127424461 | AD30: 0.04970730762 | AE30: 55.04588981 | AF30: 32.49323756 | AG30: 12.67536344 | AH30: 0.5016669492 | AI30: 0.3918375352 | AJ30: 0.2467607014 | AK30: 127.9250721 | AL30: 99.91857148 | AM30: 62.92397884
A31: RAL 1037 | B31: 0 | C31: 40 | D31: 100 | E31: 0 | F31: 240 | G31: 146 | H31: 0 | I31: #f09200 | J31: Sun yellow | K31: 240 | L31: 146 | M31: 0 | N31: 0.9411764706 | O31: 0.5725490196 | P31: 0 | Q31: 0.8713671192 | R31: 0.2874408377 | S31: 0 | T31: 87.13671192 | U31: 28.74408377 | V31: 0 | W31: 46.21406435 | X31: 39.08303367 | Y31: 5.108033326 | AA31: 0.3908303367 | AB31: 0.8713578987 | AC31: 0.2873697277 | AD31: -3.224058341e-05 | AE31: 222.1962642 | AF31: 73.27928057 | AG31: -0.00822134877 | AH31: 0.9408720784 | AI31: 0.5721843277 | AK31: 239.92238 | AL31: 145.9070036
A32: RAL 2000 | B32: 0 | C32: 50 | D32: 100 | E32: 0 | F32: 218 | G32: 110 | H32: 0 | I32: #da6e00 | J32: Yellow orange | K32: 218 | L32: 110 | M32: 0 | N32: 0.8549019608 | O32: 0.431372549 | P32: 0 | Q32: 0.7011018919 | R32: 0.1559264637 | S32: 0 | T32: 70.11018919 | U32: 15.59264637 | V32: 0 | W32: 34.48937237 | X32: 26.05728691 | Y32: 3.211770099 | AA32: 0.2605728691 | AB32: 0.7010908805 | AC32: 0.1558653124 | AD32: -2.594077e-05 | AE32: 178.7781745 | AF32: 39.74565466 | AG32: -0.00661489635 | AH32: 0.8545960063 | AI32: 0.4309930625 | AK32: 217.9219816 | AL32: 109.9032309
A33: RAL 2001 | B33: 0 | C33: 80 | D33: 100 | E33: 20 | F33: 186 | G33: 72 | H33: 27 | I33: #ba481b | J33: Red orange | K33: 186 | L33: 72 | M33: 27 | N33: 0.7294117647 | O33: 0.2823529412 | P33: 0.1058823529 | Q33: 0.4910208498 | R33: 0.06480326669 | S33: 0.01096009401 | T33: 49.10208498 | U33: 6.480326669 | V33: 1.096009401 | W33: 22.76489436 | X33: 15.15296478 | Y33: 2.761882115 | AA33: 0.1515296478 | AB33: 0.4910121978 | AC33: 0.06475844119 | AD33: 0.01094385083 | AE33: 125.2081104 | AF33: 16.5134025 | AG33: 2.790681961 | AH33: 0.7291060056 | AI33: 0.2819556913 | AJ33: 0.1054829632 | AK33: 185.9220314 | AL33: 71.89870128 | AM33: 26.8981556
A34: RAL 2002 | B34: 0 | C34: 90 | D34: 100 | E34: 0 | F34: 220 | G34: 62 | H34: 42 | I34: #dc3e2a | J34: Vermilion | K34: 220 | L34: 62 | M34: 42 | N34: 0.862745098 | O34: 0.2431372549 | P34: 0.1647058824 | Q34: 0.7156935005 | R34: 0.04817182423 | S34: 0.02315336618 | T34: 71.56935005 | U34: 4.817182423 | V34: 2.315336618 | W34: 31.65574265 | X34: 18.82805999 | Y34: 4.156224056 | AA34: 0.1882805999 | AB34: 0.7156794537 | AC34: 0.04810428113 | AD34: 0.02313095125 | AE34: 182.4982607 | AF34: 12.26659169 | AG34: 5.898392569 | AH34: 0.8624375928 | AI34: 0.2426630058 | AJ34: 0.1643172328 | AK34: 219.9215862 | AL34: 61.87906647 | AM34: 41.90089438
A35: RAL 2003 | B35: 0 | C35: 52 | D35: 100 | E35: 0 | F35: 246 | G35: 120 | H35: 40 | I35: #f67728 | J35: Pastel orange | K35: 246 | L35: 120 | M35: 40 | N35: 0.9647058824 | O35: 0.4705882353 | P35: 0.1568627451 | Q35: 0.9215818563 | R35: 0.1878207723 | S35: 0.02121901038 | T35: 92.15818563 | U35: 18.78207723 | V35: 2.121901038 | W35: 45.10550971 | X35: 33.17897315 | Y35: 6.034343525 | AA35: 0.3317897315 | AB35: 0.9215688433 | AC35: 0.1877401177 | AD35: 0.02118863791 | AE35: 235.000055 | AF35: 47.87373001 | AG35: 5.403102666 | AH35: 0.9643998829 | AI35: 0.4701941819 | AJ35: 0.1564363356 | AK35: 245.9219701 | AL35: 119.8995164 | AM35: 39.89126557
A36: RAL 2004 | B36: 0 | C36: 70 | D36: 100 | E36: 0 | F36: 226 | G36: 83 | H36: 3 | I36: #e25303 | J36: Pure orange | K36: 226 | L36: 83 | M36: 3 | N36: 0.8862745098 | O36: 0.3254901961 | P36: 0.01176470588 | Q36: 0.7605245047 | R36: 0.08650046204 | S36: 0.0009105809506 | T36: 76.05245047 | U36: 8.650046204 | V36: 0.09105809506 | W36: 34.47372308 | X36: 22.36183841 | Y36: 2.585448521 | AA36: 0.2236183841 | AB36: 0.7605087174 | AC36: 0.0864298373 | AD36: 0.000882601442 | AE36: 193.9297229 | AF36: 22.03960851 | AG36: 0.2250633677 | AH36: 0.8859663684 | AI36: 0.3250607246 | AJ36: 0.00101892933 | AK36: 225.9214239 | AL36: 82.89048478 | AM36: 0.2598269791
A37: RAL 2005 | B37: 0 | C37: 75 | D37: 75 | E37: 5 | F37: 255 | G37: 77 | H37: 6 | I37: #ff4d06 | J37: Luminous orange | K37: 255 | L37: 77 | M37: 6 | N37: 1 | O37: 0.3019607843 | P37: 0.02352941176 | Q37: 1 | R37: 0.07421356838 | S37: 0.001821161901 | T37: 100 | U37: 7.421356838 | V37: 0.1821161901 | W37: 43.92674918 | X37: 26.5809032 | Y37: 2.987727174 | AA37: 0.265809032 | AB37: 0.9999774241 | AC37: 0.07411865875 | AD37: 0.001784481697 | AE37: 254.9942431 | AF37: 18.90025798 | AG37: 0.4550428328 | AH37: 0.9996900759 | AI37: 0.301470502 | AJ37: 0.02021777176 | AK37: 254.9209694 | AL37: 76.87497802 | AM37: 5.155531799
A38: RAL 2007 | B38: 0 | C38: 50 | D38: 100 | E38: 0 | F38: 255 | G38: 178 | H38: 0 | I38: #ffb200 | J38: Lum. bright orange | K38: 255 | L38: 178 | M38: 0 | N38: 1 | O38: 0.6980392157 | P38: 0 | Q38: 1 | R38: 0.4452011945 | S38: 0 | T38: 100 | U38: 44.52011945 | V38: 0 | W38: 57.16039472 | X38: 53.10078943 | Y38: 7.236798239 | AA38: 0.5310078943 | AB38: 0.9999949172 | AC38: 0.4451256118 | AD38: -3.7e-05 | AE38: 254.9987039 | AF38: 113.507031 | AG38: -0.009435 | AH38: 0.9996977657 | AI38: 0.6976859443 | AK38: 254.9229302 | AL38: 177.9099158
A39: RAL 2008 | B39: 0 | C39: 60 | D39: 100 | E39: 0 | F39: 237 | G39: 107 | H39: 33 | I39: #ed6b21 | J39: Bright red orange | K39: 237 | L39: 107 | M39: 33 | N39: 0.9294117647 | O39: 0.4196078431 | P39: 0.1294117647 | Q39: 0.8468732315 | R39: 0.1470272665 | S39: 0.01520851442 | T39: 84.68732315 | U39: 14.70272665 | V39: 1.520851442 | W39: 40.4572608 | X39: 28.62972048 | Y39: 4.832599649 | AA39: 0.2862972048 | AB39: 0.8468595936 | AC39: 0.1469516886 | AD39: 0.01517985073 | AE39: 215.9491964 | AF39: 37.4726806 | AG39: 3.870861936 | AH39: 0.9291051594 | AI39: 0.4192061748 | AJ39: 0.1289668669 | AK39: 236.9218156 | AL39: 106.8975746 | AM39: 32.88655107
A40: RAL 2009 | B40: 5 | C40: 70 | D40: 100 | E40: 0 | F40: 222 | G40: 83 | H40: 7 | I40: #de5307 | J40: Traffic orange | K40: 222 | L40: 83 | M40: 7 | N40: 0.8705882353 | O40: 0.3254901961 | P40: 0.02745098039 | Q40: 0.7304607401 | R40: 0.08650046204 | S40: 0.002124688885 | T40: 73.04607401 | U40: 8.650046204 | V40: 0.2124688885 | W40: 33.25580808 | X40: 21.73144863 | Y40: 2.642826414 | AA40: 0.2173144863 | AB40: 0.7304458742 | AC40: 0.08643284444 | AD40: 0.002098034933 | AE40: 186.2636979 | AF40: 22.04037533 | AG40: 0.5349989079 | AH40: 0.8702803865 | AI40: 0.3250662386 | AJ40: 0.02548692743 | AK40: 221.9214986 | AL40: 82.89189085 | AM40: 6.499166494
A41: RAL 2010 | B41: 0 | C41: 70 | D41: 100 | E41: 10 | F41: 208 | G41: 93 | H41: 40 | I41: #d05d28 | J41: Signal orange | K41: 208 | L41: 93 | M41: 40 | N41: 0.8156862745 | O41: 0.3647058824 | P41: 0.1568627451 | Q41: 0.6307571363 | R41: 0.1094617108 | S41: 0.02121901038 | T41: 63.07571363 | U41: 10.94617108 | V41: 2.121901038 | W41: 30.30977822 | X41: 21.39179953 | Y41: 4.539011802 | AA41: 0.2139179953 | AB41: 0.6307480388 | AC41: 0.1094057078 | AD41: 0.02119939842 | AE41: 160.8407499 | AF41: 27.89845549 | AG41: 5.405846597 | AH41: 0.8153810419 | AI41: 0.3643163979 | AJ41: 0.1564811327 | AK41: 207.9221657 | AL41: 92.90068147 | AM41: 39.90268883
A42: RAL 2011 | B42: 0 | C42: 55 | D42: 100 | E42: 0 | F42: 226 | G42: 110 | H42: 14 | I42: #e26e0e | J42: Deep orange | K42: 226 | L42: 110 | M42: 14 | N42: 0.8862745098 | O42: 0.431372549 | P42: 0.05490196078 | Q42: 0.7605245047 | R42: 0.1559264637 | S42: 0.004391442037 | T42: 76.05245047 | U42: 15.59264637 | V42: 0.4391442037 | W42: 37.01922644 | X42: 27.35231787 | Y42: 3.743862307 | AA42: 0.2735231787 | AB42: 0.7605124014 | AC42: 0.155859568 | AD42: 0.004364073768 | AE42: 193.9306624 | AF42: 39.74418983 | AG42: 1.112838811 | AH42: 0.8859682682 | AI42: 0.4309855948 | AJ42: 0.05431605319 | AK42: 225.9219084 | AL42: 109.9013267 | AM42: 13.85059356
A43: RAL 2012 | B43: 0 | C43: 60 | D43: 70 | E43: 0 | F43: 213 | G43: 101 | H43: 77 | I43: #d5654d | J43: Salmon orange | K43: 213 | L43: 101 | M43: 77 | N43: 0.8352941176 | O43: 0.3960784314 | P43: 0.3019607843 | Q43: 0.6653872983 | R43: 0.1301364767 | S43: 0.07421356838 | T43: 66.53872983 | U43: 13.01364767 | V43: 7.421356838 | W43: 33.4338075 | X43: 23.98931674 | Y43: 9.889423962 | AA43: 0.2398931674 | AB43: 0.6653839659 | AC43: 0.1300796863 | AD43: 0.07420198095 | AE43: 169.6729113 | AF43: 33.17032001 | AG43: 18.92150514 | AH43: 0.8349922598 | AI43: 0.3956964015 | AJ43: 0.3016375605 | AK43: 212.9230263 | AL43: 100.9025824 | AM43: 76.91757794
A44: RAL 2013 | B44: 5 | C44: 80 | D44: 100 | E44: 35 | F44: 146 | G44: 62 | H44: 37 | I44: #923e25 | J44: Pearl orange | K44: 146 | L44: 62 | M44: 37 | N44: 0.5725490196 | O44: 0.2431372549 | P44: 0.1450980392 | Q44: 0.2874408377 | R44: 0.04817182423 | S44: 0.01850022013 | T44: 28.74408377 | U44: 4.817182423 | V44: 1.850022013 | W44: 13.91061356 | X44: 9.689812668 | Y44: 2.887414885 | AA44: 0.09689812668 | AB44: 0.2874375585 | AC44: 0.04814647305 | AD44: 0.01849283346 | AE44: 73.29657743 | AF44: 12.27735063 | AG44: 4.715672531 | AH44: 0.5722460366 | AI44: 0.2427718701 | AJ44: 0.1447647461 | AK44: 145.9227393 | AL44: 61.90682688 | AM44: 36.91501026
A45: RAL 3000 | B45: 0 | C45: 100 | D45: 100 | E45: 20 | F45: 167 | G45: 41 | H45: 32 | I45: #a72920 | J45: Flame red | K45: 167 | L45: 41 | M45: 32 | N45: 0.6549019608 | O45: 0.1607843137 | P45: 0.1254901961 | Q45: 0.3864294338 | R45: 0.02217388479 | S45: 0.0144438436 | T45: 38.64294338 | U45: 2.217388479 | V45: 1.44438436 | W45: 16.98999935 | X45: 9.905650553 | Y45: 2.383008848 | AA45: 0.09905650553 | AB45: 0.3864218751 | AC45: 0.0221372724 | AD45: 0.01443208205 | AE45: 98.53757814 | AF45: 5.645004462 | AG45: 3.680180922 | AH45: 0.6545961749 | AI45: 0.1603357871 | AJ45: 0.1251289431 | AK45: 166.9220246 | AL45: 40.88562572 | AM45: 31.90788049
A46: RAL 3001 | B46: 20 | C46: 100 | D46: 90 | E46: 10 | F46: 155 | G46: 36 | H46: 35 | I46: #9b2423 | J46: Signal red | K46: 155 | L46: 36 | M46: 35 | N46: 0.6078431373 | O46: 0.1411764706 | P46: 0.137254902 | Q46: 0.3277780981 | R46: 0.01764195449 | S46: 0.01680737575 | T46: 32.77780981 | U46: 1.764195449 | V46: 1.680737575 | W46: 14.45181819 | X46: 8.351664203 | Y46: 2.440444892 | AA46: 0.08351664203 | AB46: 0.3277721202 | AC46: 0.01761097181 | AD46: 0.01679819934 | AE46: 83.58189064 | AF46: 4.490797812 | AG46: 4.283540831 | AH46: 0.6075381003 | AI46: 0.1407328454 | AJ46: 0.136911159 | AK46: 154.9222156 | AL46: 35.88687559 | AM46: 34.91234554
A47: RAL 3002 | B47: 10 | C47: 100 | D47: 90 | E47: 20 | F47: 155 | G47: 34 | H47: 33 | I47: #9b2221 | J47: Carmine red | K47: 155 | L47: 34 | M47: 33 | N47: 0.6078431373 | O47: 0.1333333333 | P47: 0.1294117647 | Q47: 0.3277780981 | R47: 0.01599629337 | S47: 0.01520851442 | T47: 32.77780981 | U47: 1.599629337 | V47: 1.520851442 | W47: 14.3641099 | X47: 8.22242274 | Y47: 2.268856842 | AA47: 0.0822242274 | AB47: 0.32777187 | AC47: 0.01596517779 | AD47: 0.01519905725 | AE47: 83.58182685 | AF47: 4.071120338 | AG47: 3.875759598 | AH47: 0.6075378895 | AI47: 0.1328806045 | AJ47: 0.1290639754 | AK47: 154.9221618 | AL47: 33.88455416 | AM47: 32.91131373
A48: RAL 3003 | B48: 0 | C48: 100 | D48: 100 | E48: 40 | F48: 134 | G48: 25 | H48: 34 | I48: #861922 | J48: Ruby red | K48: 134 | L48: 25 | M48: 34 | N48: 0.5254901961 | O48: 0.09803921569 | P48: 0.1333333333 | Q48: 0.2383975738 | R48: 0.00972121732 | S48: 0.01599629337 | T48: 23.83975738 | U48: 0.972121732 | V48: 1.599629337 | W48: 10.46787977 | X48: 5.87908712 | Y48: 2.096431912 | AA48: 0.0587908712 | AB48: 0.2383934828 | AC48: 0.009698631432 | AD48: 0.0159902816 | AE48: 60.7903381 | AF48: 2.473151015 | AG48: 4.077521809 | AH48: 0.5251860454 | AI48: 0.097590963 | AJ48: 0.1330038385 | AK48: 133.9224416 | AL48: 24.88569556 | AM48: 33.91597882
A49: RAL 3004 | B49: 20 | C49: 100 | D49: 100 | E49: 60 | F49: 107 | G49: 28 | H49: 35 | I49: #6b1c23 | J49: Purple red | K49: 107 | L49: 28 | M49: 35 | N49: 0.4196078431 | O49: 0.1098039216 | P49: 0.137254902 | Q49: 0.1470272665 | R49: 0.01161224518 | S49: 0.01680737575 | T49: 14.70272665 | U49: 1.161224518 | V49: 1.680737575 | W49: 6.78203149 | X49: 4.077656714 | Y49: 2.019721652 | AA49: 0.04077656714 | AB49: 0.1470257567 | AC49: 0.01159881292 | AD49: 0.01680488712 | AE49: 37.49156795 | AF49: 2.957697296 | AG49: 4.285246215 | AH49: 0.4193058124 | AI49: 0.1094244639 | AJ49: 0.1369430403 | AK49: 106.9229822 | AL49: 27.9032383 | AM49: 34.92047527
A50: RAL 3005 | B50: 20 | C50: 100 | D50: 80 | E50: 40 | F50: 89 | G50: 25 | H50: 31 | I50: #59191f | J50: Wine red | K50: 89 | L50: 25 | M50: 31 | N50: 0.3490196078 | O50: 0.09803921569 | P50: 0.1215686275 | Q50: 0.09989872825 | R50: 0.00972121732 | S50: 0.01370208305 | T50: 9.989872825 | U50: 0.972121732 | V50: 1.370208305 | W50: 4.714776883 | X50: 2.918037465 | Y50: 1.61106445 | AA50: 0.02918037465 | AB50: 0.09989803475 | AC50: 0.009712253322 | AD50: 0.01370079288 | AE50: 25.47399886 | AF50: 2.476624597 | AG50: 3.493702184 | AH50: 0.3487184392 | AI50: 0.09768040051 | AJ50: 0.1212617 | AK50: 88.923202 | AL50: 24.90850213 | AM50: 30.9217335
A51: RAL 3007 | B51: 60 | C51: 100 | D51: 70 | E51: 80 | F51: 119 | G51: 50 | H51: 24 | I51: #3e2022 | J51: Black red | K51: 119 | L51: 50 | M51: 24 | N51: 0.4666666667 | O51: 0.1960784314 | P51: 0.09411764706 | Q51: 0.1844749945 | R51: 0.03189603307 | S51: 0.009134058702 | T51: 18.44749945 | U51: 3.189603307 | V51: 0.9134058702 | W51: 8.913220675 | X51: 6.269090572 | Y51: 1.604429733 | AA51: 0.06269090572 | AB51: 0.1844726426 | AC51: 0.0318797339 | AD51: 0.009128837068 | AE51: 47.04052386 | AF51: 8.129332144 | AG51: 2.327853452 | AH51: 0.4663638955 | AI51: 0.1957249636 | AJ51: 0.09378212216 | AK51: 118.9227933 | AL51: 49.90986573 | AM51: 23.91444115
A52: RAL 3009 | B52: 5 | C52: 90 | D52: 100 | E52: 80 | F52: 109 | G52: 52 | H52: 45 | I52: #6d342d | J52: Oxide red | K52: 109 | L52: 52 | M52: 45 | N52: 0.4274509804 | O52: 0.2039215686 | P52: 0.1764705882 | Q52: 0.152926152 | R52: 0.03433980681 | S52: 0.02624122189 | T52: 15.2926152 | U52: 3.433980681 | V52: 2.624122189 | W52: 8.008320055 | X52: 5.896654596 | Y52: 3.198706112 | AA52: 0.05896654596 | AB52: 0.1529265836 | AC52: 0.03432725568 | AD52: 0.02624017159 | AE52: 38.99627882 | AF52: 8.753450198 | AG52: 6.691243754 | AH52: 0.4271515478 | AI52: 0.203582133 | AJ52: 0.1761667279 | AK52: 108.9236447 | AL52: 51.91344393 | AM52: 44.92251562
A53: RAL 3011 | B53: 20 | C53: 100 | D53: 100 | E53: 40 | F53: 121 | G53: 36 | H53: 35 | I53: #792423 | J53: Brown red | K53: 121 | L53: 36 | M53: 35 | N53: 0.4745098039 | O53: 0.1411764706 | P53: 0.137254902 | Q53: 0.1912016827 | R53: 0.01764195449 | S53: 0.01680737575 | T53: 19.12016827 | U53: 1.764195449 | V53: 1.680737575 | W53: 8.819406821 | X53: 5.448049613 | Y53: 2.176852411 | AA53: 0.05448049613 | AB53: 0.1911992982 | AC53: 0.01762447103 | AD53: 0.01680325267 | AE53: 48.75582103 | AF53: 4.494240112 | AG53: 4.28482943 | AH53: 0.4742070523 | AI53: 0.1407954413 | AJ53: 0.1369352494 | AK53: 120.9227983 | AL53: 35.90283753 | AM53: 34.91848859
A54: RAL 3012 | B54: 5 | C54: 50 | D54: 50 | E54: 10 | F54: 198 | G54: 132 | H54: 109 | I54: #c6846d | J54: Beige red | K54: 198 | L54: 132 | M54: 109 | N54: 0.7764705882 | O54: 0.5176470588 | P54: 0.4274509804 | Q54: 0.5647115057 | R54: 0.2307400485 | S54: 0.152926152 | T54: 56.47115057 | U54: 23.07400485 | V54: 15.2926152 | W54: 34.30028367 | X54: 29.6124217 | Y54: 18.37594533 | AA54: 0.296124217 | AB54: 0.564724071 | AC54: 0.2307007747 | AD54: 0.1529321115 | AE54: 144.0046381 | AF54: 58.82869754 | AG54: 38.99768843 | AH54: 0.7761782969 | AI54: 0.5173064446 | AJ54: 0.4271588141 | AK54: 197.9254657 | AL54: 131.9131434 | AM54: 108.9254976
A55: RAL 3013 | B55: 20 | C55: 90 | D55: 100 | E55: 20 | F55: 151 | G55: 46 | H55: 37 | I55: #972e25 | J55: Tomato red | K55: 151 | L55: 46 | M55: 37 | N55: 0.5921568627 | O55: 0.1803921569 | P55: 0.1450980392 | Q55: 0.3094689228 | R55: 0.02732089164 | S55: 0.01850022013 | T55: 30.94689228 | U55: 2.732089164 | V55: 1.850022013 | W55: 14.07342244 | X55: 8.666871058 | Y55: 2.681385973 | AA55: 0.08666871058 | AB55: 0.3094640699 | AC55: 0.02729227396 | AD55: 0.01849201842 | AE55: 78.91333783 | AF55: 6.959529859 | AG55: 4.715464696 | AH55: 0.5918526343 | AI55: 0.17998939 | AJ55: 0.1447610721 | AK55: 150.9224217 | AL55: 45.89729445 | AM55: 36.91407339
A56: RAL 3014 | B56: 0 | C56: 70 | D56: 30 | E56: 10 | F56: 203 | G56: 115 | H56: 117 | I56: #cb7375 | J56: Antique pink | K56: 203 | L56: 115 | M56: 117 | N56: 0.7960784314 | O56: 0.4509803922 | P56: 0.4588235294 | Q56: 0.5972017884 | R56: 0.1714411007 | S56: 0.177888416 | T56: 59.72017884 | U56: 17.14411007 | V56: 17.7888416 | W56: 33.97022142 | X56: 26.24233191 | Y56: 20.10447131 | AA56: 0.2624233191 | AB56: 0.597213352 | AC56: 0.1713962504 | AD56: 0.1778975567 | AE56: 152.2894047 | AF56: 43.70604386 | AG56: 45.36387696 | AH56: 0.7957852977 | AI56: 0.4506252345 | AJ56: 0.4585345304 | AK56: 202.9252509 | AL56: 114.9094348 | AM56: 116.9263052
A57: RAL 3015 | B57: 0 | C57: 50 | D57: 20 | E57: 10 | F57: 216 | G57: 160 | H57: 166 | I57: #d8a0a6 | J57: Light pink | K57: 216 | L57: 160 | M57: 166 | N57: 0.8470588235 | O57: 0.6274509804 | P57: 0.6509803922 | Q57: 0.6866853124 | R57: 0.3515325995 | S57: 0.3813260114 | T57: 68.66853124 | U57: 35.15325995 | V57: 38.13260114 | W57: 47.77264255 | X57: 42.49371506 | Y57: 41.76060863 | AA57: 0.4249371506 | AB57: 0.6867249536 | AC57: 0.3514942835 | AD57: 0.3813675649 | AE57: 175.1148632 | AF57: 89.63104229 | AG57: 97.24872906 | AH57: 0.8467805208 | AI57: 0.6271199856 | AJ57: 0.6507124459 | AK57: 215.9290328 | AL57: 159.9155963 | AM57: 165.9316737
A58: RAL 3016 | B58: 0 | C58: 90 | D58: 90 | E58: 20 | F58: 166 | G58: 61 | H58: 47 | I58: #a63d2f | J58: Coral red | K58: 166 | L58: 61 | M58: 47 | N58: 0.6509803922 | O58: 0.2392156863 | P58: 0.1843137255 | Q58: 0.3813260114 | R58: 0.04666508634 | S58: 0.0284260395 | T58: 38.13260114 | U58: 4.666508634 | V58: 2.84260395 | W58: 17.90771821 | X58: 11.64971398 | Y58: 3.994102086 | AA58: 0.1164971398 | AB58: 0.3813212561 | AC58: 0.04663066816 | AD58: 0.02841692205 | AE58: 97.23692031 | AF58: 11.89082038 | AG58: 7.246315124 | AH58: 0.6506767239 | AI58: 0.2388252498 | AJ58: 0.1839817399 | AK58: 165.9225646 | AL58: 60.90043869 | AM58: 46.91534368
A59: RAL 3017 | B59: 0 | C59: 80 | D59: 50 | E59: 10 | F59: 203 | G59: 85 | H59: 93 | I59: #cb555d | J59: Rose | K59: 203 | L59: 85 | M59: 93 | N59: 0.7960784314 | O59: 0.3333333333 | P59: 0.3647058824 | Q59: 0.5972017884 | R59: 0.09084171118 | S59: 0.1094617108 | T59: 59.72017884 | U59: 9.084171118 | V59: 10.94617108 | W59: 29.85288522 | X59: 19.98382276 | Y59: 12.63976826 | AA59: 0.1998382276 | AB59: 0.5972021613 | AC59: 0.09079064203 | AD59: 0.1094588358 | AE59: 152.2865511 | AF59: 23.15161372 | AG59: 27.91200313 | AH59: 0.7957786528 | AI59: 0.332942355 | AJ59: 0.3644012892 | AK59: 202.9235565 | AL59: 84.90030052 | AM59: 92.92232875
A60: RAL 3018 | B60: 5 | C60: 90 | D60: 70 | E60: 5 | F60: 199 | G60: 63 | H60: 74 | I60: #c73f4a | J60: Strawberry red | K60: 199 | L60: 63 | M60: 74 | N60: 0.7803921569 | O60: 0.2470588235 | P60: 0.2901960784 | Q60: 0.5711248295 | R60: 0.04970656598 | S60: 0.06847816984 | T60: 57.11248295 | U60: 4.970656598 | V60: 6.847816984 | W60: 26.56672573 | X60: 16.19153986 | Y60: 8.203623231 | AA60: 0.1619153986 | AB60: 0.5711195264 | AC60: 0.04965472251 | AD60: 0.06846906299 | AE60: 145.6354792 | AF60: 12.66195424 | AG60: 17.45961106 | AH60: 0.7800889248 | AI60: 0.246627515 | AJ60: 0.2898769496 | AK60: 198.9226758 | AL60: 62.89001634 | AM60: 73.91862216
A61: RAL 3020 | B61: 0 | C61: 100 | D61: 100 | E61: 10 | F61: 187 | G61: 30 | H61: 16 | I61: #bb1e10 | J61: Traffic red | K61: 187 | L61: 30 | M61: 16 | N61: 0.7333333333 | O61: 0.1176470588 | P61: 0.06274509804 | Q61: 0.4969329951 | R61: 0.01298303234 | S61: 0.005181516702 | T61: 49.69329951 | U61: 1.298303234 | V61: 0.5181516702 | W61: 21.05131633 | X61: 11.5307525 | Y61: 1.606341589 | AA61: 0.115307525 | AB61: 0.4969210962 | AC61: 0.0129347458 | AD61: 0.005164040056 | AE61: 126.7148795 | AF61: 3.298360178 | AG61: 1.316830214 | AH61: 0.7330254681 | AI61: 0.1170792223 | AJ61: 0.06227945981 | AK61: 186.9214944 | AL61: 29.8552017 | AM61: 15.88126225
A62: RAL 3022 | B62: 0 | C62: 60 | D62: 70 | E62: 0 | F62: 207 | G62: 105 | H62: 85 | I62: #cf6955 | J62: Salmon pink | K62: 207 | L62: 105 | M62: 85 | N62: 0.8117647059 | O62: 0.4117647059 | P62: 0.3333333333 | Q62: 0.6239603917 | R62: 0.1412632911 | S62: 0.09084171118 | T62: 62.39603917 | U62: 14.12632911 | V62: 9.084171118 | W62: 32.42339473 | X62: 24.02442566 | Y62: 11.52260663 | AA62: 0.2402442566 | AB62: 0.6239604653 | AC62: 0.1412116647 | AD62: 0.09083457645 | AE62: 159.1099186 | AF62: 36.0089745 | AG62: 23.162817 | AH62: 0.8114647485 | AI62: 0.4113936212 | AJ62: 0.3330206248 | AK62: 206.9235109 | AL62: 104.9053734 | AM62: 84.92025932
A63: RAL 3024 | B63: 0 | C63: 80 | D63: 90 | E63: 0 | F63: 255 | G63: 45 | H63: 33 | I63: #ff2d21 | J63: Luminous red | K63: 255 | L63: 45 | M63: 33 | N63: 1 | O63: 0.1764705882 | P63: 0.1294117647 | Q63: 1 | R63: 0.02624122189 | S63: 0.01520851442 | T63: 100 | U63: 2.624122189 | V63: 1.520851442 | W63: 42.45289978 | X63: 23.24657766 | Y63: 3.688364661 | AA63: 0.2324657766 | AB63: 0.9999765743 | AC63: 0.02614419911 | AD63: 0.01517418504 | AE63: 254.9940264 | AF63: 6.666770772 | AG63: 3.869417185 | AH63: 0.9996897024 | AI63: 0.1758136087 | AJ63: 0.1289382074 | AK63: 254.9208741 | AL63: 44.83247023 | AM63: 32.8792429
A64: RAL 3026 | B64: 0 | C64: 80 | D64: 100 | E64: 0 | F64: 255 | G64: 42 | H64: 27 | I64: #ff2a1b | J64: Lum. bright red | K64: 255 | L64: 42 | M64: 27 | N64: 1 | O64: 0.1647058824 | P64: 0.1058823529 | Q64: 1 | R64: 0.02315336618 | S64: 0.01096009401 | T64: 100 | U64: 2.315336618 | V64: 1.096009401 | W64: 42.26579407 | X64: 22.99506063 | Y64: 3.24774506 | AA64: 0.2299506063 | AB64: 0.9999759708 | AC64: 0.02305605739 | AD64: 0.0109250186 | AE64: 254.9938726 | AF64: 5.879294634 | AG64: 2.785879743 | AH64: 0.9996894371 | AI64: 0.1640206688 | AJ64: 0.1053676236 | AK64: 254.9208065 | AL64: 41.82527054 | AM64: 26.86874401
A65: RAL 3027 | B65: 0 | C65: 100 | D65: 70 | E65: 20 | F65: 171 | G65: 39 | H65: 60 | I65: #ab273c | J65: Raspberry red | K65: 171 | L65: 39 | M65: 60 | N65: 0.6705882353 | O65: 0.1529411765 | P65: 0.2352941176 | Q65: 0.4072402119 | R65: 0.02028856306 | S65: 0.04518620439 | T65: 40.72402119 | U65: 2.028856306 | V65: 4.518620439 | W65: 18.33571634 | X65: 10.43520933 | Y65: 5.322762007 | AA65: 0.1043520933 | AB65: 0.4072353169 | AC65: 0.02025069752 | AD65: 0.0451790712 | AE65: 103.8450058 | AF65: 5.163927869 | AG65: 11.52066315 | AH65: 0.6702846013 | AI65: 0.1524793839 | AJ65: 0.2349750224 | AK65: 170.9225733 | AL65: 38.88224289 | AM65: 59.91863072
A66: RAL 3028 | B66: 5 | C66: 100 | D66: 100 | E66: 0 | F66: 204 | G66: 44 | H66: 36 | I66: #cc2c24 | J66: Pure red | K66: =F66 -> 204 | L66: =G66 -> 44 | M66: =H66 -> 36 | N66: =K66/255 -> 0.8 | O66: =L66/255 -> 0.1725490196 | P66: =M66/255 -> 0.1411764706 | Q66: =IF(N66>0.04045,((N66+0.055)/1.055)^2.4,N66/12.92) -> 0.6038273389 | R66: =IF(O66>0.04045,((O66+0.055)/1.055)^2.4,O66/12.92) -> 0.02518685963 | S66: =IF(P66>0.04045,((P66+0.055)/1.055)^2.4,P66/12.92) -> 0.01764195449 | T66: =Q66*100 -> 60.38273389 | U66: =R66*100 -> 2.518685963 | V66: =S66*100 -> 1.764195449 | W66: =T66*0.4124+U66*0.3576+V66*0.1805 -> 26.12095883 | X66: =T66*0.2126+U66*0.7152+V66*0.0722 -> 14.76610834 | Y66: =T66*0.0193+U66*0.1192+V66*0.9505 -> 3.142481905 | AA66: =X66/100 -> 0.1476610834 | AB66: 0.6038145475 | AC66: 0.02512901089 | AD66: 0.0176227108 | AE66: 153.9727096 | AF66: 6.407897776 | AG66: 4.493791255 | AH66: 0.7996924532 | AI66: 0.1720311108 | AJ66: 0.1407872807 | AK66: 203.9215756 | AL66: 43.86793325 | AM66: 35.90075659
A67: RAL 3031 | B67: 20 | C67: 100 | D67: 90 | E67: 20 | F67: 166 | G67: 52 | H67: 55 | I67: #a63437 | J67: Orient red | K67: 166 | L67: 52 | M67: 55 | N67: 0.6509803922 | O67: 0.2039215686 | P67: 0.2156862745 | Q67: 0.3813260114 | R67: 0.03433980681 | S67: 0.0382043716 | T67: 38.13260114 | U67: 3.433980681 | V67: 3.82043716 | W67: 17.64346511 | X67: 10.83880955 | Y67: 4.776615219 | AA67: 0.1083880955 | AB67: =(3.2405*W67-1.5371*X67-0.4985*Y67)/100 -> 0.3813217185 | AC67: =(-0.9693*W67+1.876*X67+0.0416*Y67)/100 -> 0.03430503176 | AD67: =(0.0556*W67-0.204*X67+1.0572*Y67)/100 -> 0.03819697122 | AE67: =AB67*255 -> 97.23703821 | AF67: =AC67*255 -> 8.747783098 | AG67: =AD67*255 -> 9.740227661 | AH67: =1.055*AB67^(1/2.4)-0.0553 -> 0.6506770805 | AI67: =1.055*AC67^(1/2.4)-0.0553 -> 0.203512285 | AJ67: =1.055*AD67^(1/2.4)-0.0553 -> 0.2153644261 | AK67: =AH67*255 -> 165.9226555 | AL67: =AI67*255 -> 51.89563266 | AM67: =AJ67*255 -> 54.91792865
A68: RAL 3032 | B68: 0 | C68: 100 | D68: 70 | E68: 50 | F68: 112 | G68: 29 | H68: 35 | I68: #701d23 | J68: Pearl ruby red | K68: 112 | L68: 29 | M68: 35 | N68: 0.4392156863 | O68: 0.1137254902 | P68: 0.137254902 | Q68: 0.1620293756 | R68: 0.01228648836 | S68: 0.01680737575 | T68: 16.20293756 | U68: 1.228648836 | V68: 1.680737575 | W68: 7.424829407 | X68: 4.444823426 | Y68: 2.056712702 | AA68: 0.04444823426 | AB68: 0.1620275032 | AC68: 0.01227160852 | AD68: 0.01680433204 | AE68: 41.31701333 | AF68: 3.129260172 | AG68: 4.28510467 | AH68: 0.4389133066 | AI68: 0.1133403189 | AJ68: 0.1369403945 | AK68: 111.9228932 | AL68: 28.90178131 | AM68: 34.91980059
A69: RAL 3033 | B69: 20 | C69: 100 | D69: 100 | E69: 0 | F69: 165 | G69: 58 | H69: 45 | I69: #a53a2d | J69: Pearl pink | K69: 165 | L69: 58 | M69: 45 | N69: 0.6470588235 | O69: 0.2274509804 | P69: 0.1764705882 | Q69: 0.376262123 | R69: 0.04231141062 | S69: 0.02624122189 | T69: 37.6262123 | U69: 4.231141062 | V69: 2.624122189 | W69: 17.50376005 | X69: 11.21490644 | Y69: 3.724766053 | AA69: 0.1121490644 | AB69: 0.3762570587 | AC69: 0.0422772014 | AD69: 0.02623190815 | AE69: 95.94554997 | AF69: 10.78068636 | AG69: 6.689136579 | AH69: 0.6467548863 | AI69: 0.227055806 | AJ69: 0.1761363533 | AK69: 164.922496 | AL69: 57.89923054 | AM69: 44.91477009
A70: RAL 4001 | B70: 60 | C70: 70 | D70: 5 | E70: 10 | F70: 129 | G70: 97 | H70: 131 | I70: #816183 | J70: Red lilac | K70: 129 | L70: 97 | M70: 131 | N70: 0.5058823529 | O70: 0.3803921569 | P70: 0.5137254902 | Q70: 0.2195261997 | R70: 0.119538428 | S70: 0.2269658735 | T70: 21.95261997 | U70: 11.9538428 | V70: 22.69658735 | W70: 17.42468868 | X70: 14.85520898 | Y70: 23.4216899 | AA70: 0.1485520898 | AB70: 0.2195504952 | AC70: 0.1195296362 | AD70: 0.2269976062 | AE70: 55.98537627 | AF70: 30.48005722 | AG70: 57.88438959 | AH70: 0.5056082163 | AI70: 0.380078814 | AJ70: 0.5134586201 | AK70: 128.9300952 | AL70: 96.92009756 | AM70: 130.9319481
A71: RAL 4002 | B71: 40 | C71: 100 | D71: 90 | E71: 5 | F71: 141 | G71: 60 | H71: 75 | I71: #8d3c4b | J71: Red violet | K71: 141 | L71: 60 | M71: 75 | N71: 0.5529411765 | O71: 0.2352941176 | P71: 0.2941176471 | Q71: 0.2663556048 | R71: 0.04518620439 | S71: 0.0703600957 | T71: 26.63556048 | U71: 4.518620439 | V71: 7.03600957 | W71: 13.87036354 | X71: 9.402437387 | Y71: 7.74041297 | AA71: 0.09402437387 | AB71: 0.2663583067 | AC71: 0.04516430339 | AD71: 0.07036259577 | AE71: 67.92136822 | AF71: 11.51689737 | AG71: 17.94246192 | AH71: 0.552643746 | AI71: 0.2349354841 | AJ71: 0.2938228158 | AK71: 140.9241552 | AL71: 59.90854844 | AM71: 74.92481802
A72: RAL 4003 | B72: 10 | C72: 70 | D72: 10 | E72: 0 | F72: 196 | G72: 97 | H72: 140 | I72: #c4618c | J72: Heather violet | K72: 196 | L72: 97 | M72: 140 | N72: 0.768627451 | O72: 0.3803921569 | P72: 0.5490196078 | Q72: 0.5520114015 | R72: 0.119538428 | S72: 0.2622506575 | T72: 55.20114015 | U72: 11.9538428 | V72: 26.22506575 | W72: 31.77326875 | X72: 22.17860051 | Y72: 27.41720506 | AA72: 0.2217860051 | AB72: 0.5520307382 | AC72: 0.1194978089 | AD72: 0.2622762843 | AE72: 140.7678382 | AF72: 30.47194128 | AG72: 66.8804525 | AH72: 0.7683394722 | AI72: 0.3800305066 | AJ72: 0.5487442005 | AK72: 195.9265654 | AL72: 96.90777919 | AM72: 139.9297711
A73: RAL 4004 | B73: 60 | C73: 100 | D73: 50 | E73: 20 | F73: 101 | G73: 30 | H73: 56 | I73: #651e38 | J73: Claret violet | K73: 101 | L73: 30 | M73: 56 | N73: 0.3960784314 | O73: 0.1176470588 | P73: 0.2196078431 | Q73: 0.1301364767 | R73: 0.01298303234 | S73: 0.03954623528 | T73: 13.01364767 | U73: 1.298303234 | V73: 3.954623528 | W73: 6.544911082 | X73: 3.980771786 | Y73: 4.164790809 | AA73: 0.03980771786 | AB73: 0.1301379183 | AC73: 0.01297200857 | AD73: 0.03954836455 | AE73: 33.18516917 | AF73: 3.307862185 | AG73: 10.08483296 | AH73: 0.3957805134 | AI73: 0.1172859633 | AJ73: 0.2193140037 | AK73: 100.9240309 | AL73: 29.90792063 | AM73: 55.92507094
A74: RAL 4005 | B74: 60 | C74: 100 | D74: 5 | E74: 10 | F74: 118 | G74: 104 | H74: 154 | I74: #76689a | J74: Blue lilac | K74: 118 | L74: 104 | M74: 154 | N74: 0.462745098 | O74: 0.4078431373 | P74: 0.6039215686 | Q74: 0.1811642442 | R74: 0.138431615 | S74: 0.3231432091 | T74: 18.11642442 | U74: 13.8431615 | V74: 32.31432091 | W74: 18.25426291 | X74: 16.08527491 | Y74: 32.71451387 | AA74: 0.1608527491 | AB74: 0.1812007774 | AC74: 0.1384304247 | AD74: 0.32319325 | AE74: 46.20619823 | AF74: 35.29975829 | AG74: 82.41427875 | AH74: 0.4624885984 | AI74: 0.407541479 | AJ74: 0.6036640827 | AK74: 117.9345926 | AL74: 103.9230771 | AM74: 153.9343411
A75: RAL 4006 | B75: 50 | C75: 100 | D75: 0 | E75: 10 | F75: 144 | G75: 50 | H75: 115 | I75: #903273 | J75: Traffic purple | K75: 144 | L75: 50 | M75: 115 | N75: 0.5647058824 | O75: 0.1960784314 | P75: 0.4509803922 | Q75: 0.2788942635 | R75: 0.03189603307 | S75: 0.1714411007 | T75: 27.88942635 | U75: 3.189603307 | V75: 17.14411007 | W75: 15.73671344 | X75: 9.448301074 | Y75: 17.21394327 | AA75: 0.09448301074 | AB75: 0.2789068559 | AC75: 0.03187516521 | AD75: 0.1714608867 | AE75: 71.12124826 | AF75: 8.128167128 | AG75: 43.72252611 | AH75: 0.5644175408 | AI75: 0.1957099737 | AJ75: 0.4507047226 | AK75: 143.9264729 | AL75: 49.90604328 | AM75: 114.9297043
A76: RAL 4007 | B76: 70 | C76: 100 | D76: 20 | E76: 60 | F76: 71 | G76: 35 | H76: 60 | I76: #47233c | J76: Purple violet | K76: 71 | L76: 35 | M76: 60 | N76: 0.2784313725 | O76: 0.137254902 | P76: 0.2352941176 | Q76: 0.06301001765 | R76: 0.01680737575 | S76: 0.04518620439 | T76: 6.301001765 | U76: 1.680737575 | V76: 4.518620439 | W76: 4.015175874 | X76: 2.867900885 | Y76: 4.61690198 | AA76: 0.02867900885 | AB76: 0.06301401333 | AC76: 0.01680335208 | AD76: 0.04519180771 | AE76: 16.0685734 | AF76: 4.284854779 | AG76: 11.52391097 | AH76: 0.2781401824 | AI76: 0.1369357232 | AJ76: 0.2350091163 | AK76: 70.92574651 | AL76: 34.91860942 | AM76: 59.92732465
A77: RAL 4008 | B77: 60 | C77: 90 | D77: 0 | E77: 10 | F77: 132 | G77: 76 | H77: 130 | I77: #844c82 | J77: Signal violet | K77: 132 | L77: 76 | M77: 130 | N77: 0.5176470588 | O77: 0.2980392157 | P77: 0.5098039216 | Q77: 0.2307400485 | R77: 0.07227185068 | S77: 0.2232279573 | T77: 23.07400485 | U77: 7.227185068 | V77: 22.32279573 | W77: 16.12942561 | X77: 11.68612204 | Y77: 22.5246261 | AA77: 0.1168612204 | AB77: 0.2307613939 | AC77: 0.07225937156 | AD77: 0.2232586188 | AE77: 58.84415544 | AF77: 18.42613975 | AG77: 56.93094778 | AH77: 0.517369131 | AI77: 0.2977138148 | AJ77: 0.5095362447 | AK77: 131.9291284 | AL77: 75.91702278 | AM77: 129.9317424
A78: RAL 4009 | B78: 40 | C78: 40 | D78: 30 | E78: 0 | F78: 157 | G78: 134 | H78: 146 | I78: #9d8692 | J78: Pastel violet | K78: 157 | L78: 134 | M78: 146 | N78: 0.6156862745 | O78: 0.5254901961 | P78: 0.5725490196 | Q78: 0.337163615 | R78: 0.2383975738 | S78: 0.2874408377 | T78: 33.7163615 | U78: 23.83975738 | V78: 28.74408377 | W78: 27.61803185 | X78: 26.29361578 | Y78: 30.81367648 | AA78: 0.2629361578 | AB78: 0.3371969765 | AC78: 0.2383851388 | AD78: 0.2874788373 | AE78: 85.985229 | AF78: 60.7882104 | AG78: 73.30710351 | AH78: 0.6154139248 | AI78: 0.5251775797 | AJ78: 0.5722835857 | AK78: 156.9305508 | AL78: 133.9202828 | AM78: 145.9323143
A79: RAL 4010 | B79: 10 | C79: 90 | D79: 30 | E79: 0 | F79: 188 | G79: 64 | H79: 119 | I79: #bc4077 | J79: Telemagenta | K79: 188 | L79: 64 | M79: 119 | N79: 0.737254902 | O79: 0.2509803922 | P79: 0.4666666667 | Q79: 0.502886458 | R79: 0.05126945837 | S79: 0.1844749945 | T79: 50.2886458 | U79: 5.126945837 | V79: 18.44749945 | W79: 25.90220701 | X79: 15.69006722 | Y79: 19.11605104 | AA79: 0.1569006722 | AB79: 0.5028954805 | AC79: 0.05122784573 | AD79: 0.1844887815 | AE79: 128.2383475 | AF79: 13.06310066 | AG79: 47.04463929 | AH79: 0.7369608245 | AI79: 0.2505768894 | AJ79: 0.4663829111 | AK79: 187.9250103 | AL79: 63.89710681 | AM79: 118.9276423
A80: RAL 4011 | B80: 60 | C80: 70 | D80: 15 | E80: 0 | F80: 110 | G80: 99 | H80: 135 | I80: #6e6387 | J80: Pearl violet | K80: 110 | L80: 99 | M80: 135 | N80: 0.431372549 | O80: 0.3882352941 | P80: 0.5294117647 | Q80: 0.1559264637 | R80: 0.1247718176 | S80: 0.2422811225 | T80: 15.59264637 | U80: 12.47718176 | V80: 24.22811225 | W80: 15.26542182 | X80: 13.98794671 | Y80: 24.81703883 | AA80: 0.1398794671 | AB80: 0.1559543265 | AC80: 0.1247700348 | AD80: 0.2423178978 | AE80: 39.76835327 | AF80: 31.81635888 | AG80: 61.79106393 | AH80: 0.43110876 | AI80: 0.3879326554 | AJ80: 0.5291487241 | AK80: 109.9327338 | AL80: 98.92282712 | AM80: 134.9329246
A81: RAL 4012 | B81: 70 | C81: 70 | D81: 40 | E81: 0 | F81: 107 | G81: 107 | H81: 127 | I81: #6b6b7f | J81: Pearl blackberry | K81: 107 | L81: 107 | M81: 127 | N81: 0.4196078431 | O81: 0.4196078431 | P81: 0.4980392157 | Q81: 0.1470272665 | R81: 0.1470272665 | S81: 0.2122307574 | T81: 14.70272665 | U81: 14.70272665 | V81: 21.22307574 | W81: 15.15186469 | X81: 15.17349585 | Y81: 22.20886113 | AA81: 0.1517349585 | AB81: 0.1470531978 | AC81: 0.147026644 | AD81: 0.2122625851 | AE81: 37.49856544 | AF81: 37.49179422 | AG81: 54.12695921 | AH81: 0.4193427192 | AI81: 0.4193070059 | AJ81: 0.4977737716 | AK81: 106.9323934 | AL81: 106.9232865 | AM81: 126.9323118
A82: RAL 5000 | B82: 100 | C82: 40 | D82: 5 | E82: 40 | F82: 49 | G82: 79 | H82: 111 | I82: #314f6f | J82: Violet blue | K82: 49 | L82: 79 | M82: 111 | N82: 0.1921568627 | O82: 0.3098039216 | P82: 0.4352941176 | Q82: 0.03071344373 | R82: 0.07818742181 | S82: 0.1589608351 | T82: 3.071344373 | U82: 7.818742181 | V82: 15.89608351 | W82: 6.931847696 | X82: 7.39262945 | Y82: 16.10049839 | AA82: 0.0739262945 | AB82: 0.03073343285 | AC82: 0.0781931361 | AD82: 0.1589876122 | AE82: 7.837025378 | AF82: 19.93924971 | AG82: 40.54184111 | AH82: 0.1919238734 | AI82: 0.3095150303 | AJ82: 0.4350285287 | AK82: 48.94058773 | AL82: 78.92633273 | AM82: 110.9322748
A83: RAL 5001 | B83: 90 | C83: 20 | D83: 0 | E83: 80 | F83: 15 | G83: 76 | H83: 100 | I83: #0f4c64 | J83: Green blue | K83: 15 | L83: 76 | M83: 100 | N83: 0.05882352941 | O83: 0.2980392157 | P83: 0.3921568627 | Q83: 0.004776953481 | R83: 0.07227185068 | S83: 0.1274376804 | T83: 0.4776953481 | U83: 7.227185068 | V83: 12.74376804 | W83: 5.081693074 | X83: 6.190540845 | Y83: 12.98365151 | AA83: 0.06190540845 | AB83: 0.004793957979 | AC83: 0.07227889431 | AD83: 0.1274598817 | AE83: 1.222459285 | AF83: 18.43111805 | AG83: 32.50226984 | AH83: 0.05869217824 | AI83: 0.2977535516 | AJ83: 0.3918893197 | AK83: 14.96650545 | AL83: 75.92715567 | AM83: 99.93177651
A84: RAL 5002 | B84: 100 | C84: 70 | D84: 0 | E84: 40 | F84: 0 | G84: 56 | H84: 123 | I84: #00387b | J84: Ultramarine blue | K84: 0 | L84: 56 | M84: 123 | N84: 0 | O84: 0.2196078431 | P84: 0.4823529412 | Q84: 0 | R84: 0.03954623528 | S84: 0.1980693196 | T84: 0 | U84: 3.954623528 | V84: 19.80693196 | W84: 4.989324592 | X84: 4.258407234 | Y84: 19.29787995 | AA84: 0.04258407234 | AB84: 2.315424803e-05 | AC84: 0.03955411451 | AD84: 0.1981041005 | AE84: 0.005904333248 | AF84: 10.0862992 | AG84: 50.51654564 | AH84: -0.04294483423 | AI84: 0.219330639 | AJ84: 0.4820922555 | AK84: -10.95093273 | AL84: 55.92931293 | AM84: 122.9335251
A85: RAL 5003 | B85: 100 | C85: 50 | D85: 0 | E85: 80 | F85: 31 | G85: 56 | H85: 85 | I85: #1f3855 | J85: Sapphire blue | K85: 31 | L85: 56 | M85: 85 | N85: 0.1215686275 | O85: 0.2196078431 | P85: 0.3333333333 | Q85: 0.01370208305 | R85: 0.03954623528 | S85: 0.09084171118 | T85: 1.370208305 | U85: 3.954623528 | V85: 9.084171118 | W85: 3.618940165 | X85: 3.775530187 | Y85: 9.132340793 | AA85: 0.03775530187 | AB85: 0.01371336269 | AC85: 0.03954961306 | AD85: 0.09085715601 | AE85: 3.496907487 | AF85: 10.08515133 | AG85: 23.16857478 | AH85: 0.1213291764 | AI85: 0.2193176159 | AJ85: 0.333060842 | AK85: 30.93893999 | AL85: 55.92599206 | AM85: 84.93051471
A86: RAL 5004 | B86: 100 | C86: 100 | D86: 70 | E86: 40 | F86: 25 | G86: 30 | H86: 40 | I86: #191e28 | J86: Black blue | K86: 25 | L86: 30 | M86: 40 | N86: 0.09803921569 | O86: 0.1176470588 | P86: 0.1568627451 | Q86: 0.00972121732 | R86: 0.01298303234 | S86: 0.02121901038 | T86: 0.972121732 | U86: 1.298303234 | V86: 2.121901038 | W86: 1.248179376 | X86: 1.288420808 | Y86: 2.190386631 | AA86: 0.01288420808 | AB86: 0.009723859083 | AC86: 0.01298337251 | AD86: 0.02122237675 | AE86: 2.479584066 | AF86: 3.31075999 | AG86: 5.411706071 | AH86: 0.09775654296 | AI86: 0.1173489436 | AJ86: 0.1565767494 | AK86: 24.92791846 | AL86: 29.92398062 | AM86: 39.92707109
A87: RAL 5005 | B87: 100 | C87: 40 | D87: 0 | E87: 40 | F87: 0 | G87: 83 | H87: 135 | I87: #005387 | J87: Signal blue | K87: 0 | L87: 83 | M87: 135 | N87: 0 | O87: 0.3254901961 | P87: 0.5294117647 | Q87: 0 | R87: 0.08650046204 | S87: 0.2422811225 | T87: 0 | U87: 8.650046204 | V87: 24.22811225 | W87: 7.466430783 | X87: 7.935782749 | Y87: 24.0599062 | AA87: 0.07935782749 | AB87: 3.014048896e-05 | AC87: 0.08651209177 | AD87: 0.242323667 | AE87: 0.007685824685 | AF87: 22.0605834 | AG87: 61.79253509 | AH87: -0.0415099741 | AI87: 0.3252115102 | AJ87: 0.529154522 | AK87: -10.5850434 | AL87: 82.92893509 | AM87: 134.9344031
A88: RAL 5007 | B88: 80 | C88: 20 | D88: 0 | E88: 40 | F88: 55 | G88: 107 | H88: 140 | I88: #376b8c | J88: Brilliant blue | K88: 55 | L88: 107 | M88: 140 | N88: 0.2156862745 | O88: 0.4196078431 | P88: 0.5490196078 | Q88: 0.0382043716 | R88: 0.1470272665 | S88: 0.2622506575 | T88: 3.82043716 | U88: 14.70272665 | V88: 26.22506575 | W88: 11.5668677 | X88: 13.22106479 | Y88: 26.75322445 | AA88: 0.1322106479 | AB88: 0.03823853717 | AC88: 0.1470388681 | AD88: 0.2622952952 | AE88: 9.750826979 | AF88: 37.49491138 | AG88: 66.88530027 | AH88: 0.2154871109 | AI88: 0.4193234471 | AJ88: 0.5487624433 | AK88: 54.94921329 | AL88: 106.927479 | AM88: 139.934423
A89: RAL 5008 | B89: 60 | C89: 0 | D89: 0 | E89: 90 | F89: 43 | G89: 58 | H89: 68 | I89: #2b3a44 | J89: Grey blue | K89: 43 | L89: 58 | M89: 68 | N89: 0.168627451 | O89: 0.2274509804 | P89: 0.2666666667 | Q89: 0.02415763245 | R89: 0.04231141062 | S89: 0.05780543019 | T89: 2.415763245 | U89: 4.231141062 | V89: 5.780543019 | W89: 3.552704821 | X89: 3.957058559 | Y89: 6.045382385 | AA89: 0.03957058559 | AB89: 0.02416522142 | AC89: 0.04231292982 | AD89: 0.05781468699 | AE89: 6.162131461 | AF89: 10.7897971 | AG89: 14.74274518 | AH89: 0.1683567196 | AI89: 0.2271552059 | AJ89: 0.2663881285 | AK89: 42.9309635 | AL89: 57.92457752 | AM89: 67.92897277
A90: RAL 5009 | B90: 90 | C90: 30 | D90: 10 | E90: 40 | F90: 34 | G90: 95 | H90: 120 | I90: #225f78 | J90: Azure blue | K90: 34 | L90: 95 | M90: 120 | N90: 0.1333333333 | O90: 0.3725490196 | P90: 0.4705882353 | Q90: 0.01599629337 | R90: 0.1144353738 | S90: 0.1878207723 | T90: 1.599629337 | U90: 11.44353738 | V90: 18.78207723 | W90: 8.142061046 | X90: 9.880565109 | Y90: 19.24730691 | AA90: 0.09880565109 | AB90: 0.01602149698 | AC90: 0.1144452834 | AD90: 0.1878531618 | AE90: 4.085481729 | AF90: 29.18354727 | AG90: 47.90255625 | AH90: 0.1331569167 | AI90: 0.3722644458 | AJ90: 0.4703259988 | AK90: 33.95501375 | AL90: 94.92743367 | AM90: 119.9331297
A91: RAL 5010 | B91: 100 | C91: 40 | D91: 5 | E91: 40 | F91: 0 | G91: 79 | H91: 124 | I91: #004f7c | J91: Gentian blue | K91: 0 | L91: 79 | M91: 124 | N91: 0 | O91: 0.3098039216 | P91: 0.4862745098 | Q91: 0 | R91: 0.07818742181 | S91: 0.2015562538 | T91: 0 | U91: 7.818742181 | V91: 20.15562538 | W91: 6.434072585 | X91: 7.04720056 | Y91: 20.08991599 | AA91: 0.0704720056 | AB91: 2.53710868e-05 | AC91: 0.07819742199 | AD91: 0.2015916471 | AE91: 0.006469627135 | AF91: 19.94034261 | AG91: 51.40587 | AH91: -0.04246506306 | AI91: 0.3095233619 | AJ91: 0.486014111 | AK91: -10.82859108 | AL91: 78.92845728 | AM91: 123.9335983
A92: RAL 5011 | B92: 100 | C92: 60 | D92: 10 | E92: 80 | F92: 26 | G92: 43 | H92: 60 | I92: #1a2b3c | J92: Steel blue | K92: 26 | L92: 43 | M92: 60 | N92: 0.1019607843 | O92: 0.168627451 | P92: 0.2352941176 | Q92: 0.01032982303 | R92: 0.02415763245 | S92: 0.04518620439 | T92: 1.032982303 | U92: 2.415763245 | V92: 4.518620439 | W92: 2.105489827 | X92: 2.273610306 | Y92: 4.602844264 | AA92: 0.02273610306 | AB92: 0.01033555518 | AC92: 0.02415919966 | AD92: 0.04519375688 | AE92: 2.635566572 | AF92: 6.160595913 | AG92: 11.524408 | AH92: 0.1016970699 | AI92: 0.1683334957 | AJ92: 0.2350143334 | AK92: 25.93275283 | AL92: 42.92504141 | AM92: 59.92865502
A93: RAL 5012 | B93: 90 | C93: 30 | D93: 10 | E93: 10 | F93: 0 | G93: 137 | H93: 182 | I93: #0089b6 | J93: Light blue | K93: 0 | L93: 137 | M93: 182 | N93: 0 | O93: 0.537254902 | P93: 0.7137254902 | Q93: 0 | R93: 0.2501582847 | S93: 0.4677837961 | T93: 0 | U93: 25.01582847 | V93: 46.77837961 | W93: 17.38915778 | X93: 21.26871953 | Y93: 47.44473657 | AA93: 0.2126871953 | AB93: 6.215817104e-05 | AC93: 0.2501850825 | AD93: 0.4678659389 | AE93: 0.01585033362 | AF93: 63.79719603 | AG93: 119.3058144 | AH93: -0.03665581569 | AI93: 0.5369813362 | AJ93: 0.7134817324 | AK93: -9.347233 | AL93: 136.9302407 | AM93: 181.9378418
A94: RAL 5013 | B94: 100 | C94: 60 | D94: 0 | E94: 60 | F94: 25 | G94: 49 | H94: 83 | I94: #193153 | J94: Cobalt blue | K94: 25 | L94: 49 | M94: 83 | N94: 0.09803921569 | O94: 0.1921568627 | P94: 0.3254901961 | Q94: 0.00972121732 | R94: 0.03071344373 | S94: 0.08650046204 | T94: 0.972121732 | U94: 3.071344373 | V94: 8.650046204 | W94: 3.06054909 | X94: 3.027831912 | Y94: 8.606735115 | AA94: 0.03027831912 | AB94: 0.009731714392 | AC94: 0.03071662615 | AD94: 0.08651529183 | AE94: 2.48158717 | AF94: 7.832739667 | AG94: 22.06139942 | AH94: 0.09780804957 | AI94: 0.191867533 | AJ94: 0.3252173747 | AK94: 24.94105264 | AL94: 48.92622093 | AM94: 82.93043055
A95: RAL 5014 | B95: 50 | C95: 20 | D95: 0 | E95: 40 | F95: 99 | G95: 125 | H95: 150 | I95: #637d96 | J95: Pigeon blue | K95: 99 | L95: 125 | M95: 150 | N95: 0.3882352941 | O95: 0.4901960784 | P95: 0.5882352941 | Q95: 0.1247718176 | R95: 0.2050787364 | S95: 0.3049873141 | T95: 12.47718176 | U95: 20.50787364 | V95: 30.49873141 | W95: 17.98422639 | X95: 19.52188848 | Y95: 31.67439235 | AA95: 0.1952188848 | AB95: 0.1248110625 | AC95: 0.2050860686 | AD95: 0.3050362533 | AE95: 31.82682094 | AF95: 52.2969475 | AG95: 77.78424459 | AH95: 0.3879933773 | AI95: 0.4899042002 | AJ95: 0.5879782986 | AK95: 98.93831121 | AL95: 124.9255711 | AM95: 149.9344661
A96: RAL 5015 | B96: 100 | C96: 30 | D96: 0 | E96: 10 | F96: 0 | G96: 124 | H96: 176 | I96: #007cb0 | J96: Sky blue | K96: 0 | L96: 124 | M96: 176 | N96: 0 | O96: 0.4862745098 | P96: 0.6901960784 | Q96: 0 | R96: 0.2015562538 | S96: 0.4341536362 | T96: 0 | U96: 20.15562538 | V96: 43.41536362 | W96: 15.04412477 | X96: 17.54989252 | Y96: 43.66885366 | AA96: 0.1754989252 | AB96: 5.622961963e-05 | AC96: 0.2015795255 | AD96: 0.4342298736 | AE96: 0.01433855301 | AF96: 51.402779 | AG96: 110.7286178 | AH96: -0.03741847296 | AI96: 0.4860005488 | AJ96: 0.6899505992 | AK96: -9.541710606 | AL96: 123.9301399 | AM96: 175.9374028
A97: RAL 5017 | B97: 100 | C97: 20 | D97: 5 | E97: 40 | F97: 0 | G97: 91 | H97: 140 | I97: #005b8c | J97: Traffic blue | K97: 0 | L97: 91 | M97: 140 | N97: 0 | O97: 0.3568627451 | P97: 0.5490196078 | Q97: 0 | R97: 0.1046164841 | S97: 0.2622506575 | T97: 0 | U97: 10.46164841 | V97: 26.22506575 | W97: 8.47470984 | X97: 9.37562069 | Y97: 26.17395349 | AA97: 0.0937562069 | AB97: 3.314858957e-05 | AC97: 0.1046296463 | AD97: 0.2622967087 | AE97: 0.00845289034 | AF97: 26.68055981 | AG97: 66.88566073 | AH97: -0.04095238992 | AI97: 0.3565843352 | AJ97: 0.5487637997 | AK97: -10.44285943 | AL97: 90.92900547 | AM97: 139.9347689
A98: RAL 5018 | B98: 90 | C98: 10 | D98: 40 | E98: 10 | F98: 5 | G98: 139 | H98: 140 | I98: #058b8c | J98: Turquoise blue | K98: 5 | L98: 139 | M98: 140 | N98: 0.01960784314 | O98: 0.5450980392 | P98: 0.5490196078 | Q98: 0.001517634918 | R98: 0.2581828529 | S98: 0.2622506575 | T98: 0.1517634918 | U98: 25.81828529 | V98: 26.22506575 | W98: 14.02883045 | X98: 20.39095231 | Y98: 28.00739364 | AA98: 0.2039095231 | AB98: 0.001558065623 | AC98: 0.2582038874 | AD98: 0.2622966526 | AE98: 0.3973067338 | AF98: 65.8419913 | AG98: 66.88564641 | AH98: 0.01606684868 | AI98: 0.5448184099 | AJ98: 0.5487637458 | AK98: 4.097046414 | AL98: 138.9286945 | AM98: 139.9347552
A99: RAL 5019 | B99: 100 | C99: 50 | D99: 20 | E99: 10 | F99: 0 | G99: 94 | H99: 131 | I99: #005e83 | J99: Capri blue | K99: 0 | L99: 94 | M99: 131 | N99: 0 | O99: 0.368627451 | P99: 0.5137254902 | Q99: 0 | R99: 0.1119324278 | S99: 0.2269658735 | T99: 0 | U99: 11.19324278 | V99: 22.69658735 | W99: 8.099437636 | X99: 9.644100846 | Y99: 22.90734082 | AA99: 0.09644100846 | AB99: 2.970853366e-05 | AC99: 0.1119449366 | AD99: 0.2270057287 | AE99: 0.007575676082 | AF99: 28.54595884 | AG99: 57.88646082 | AH99: -0.0415926669 | AI99: 0.368347176 | AJ99: 0.5134670998 | AK99: -10.60613006 | AL99: 93.92852989 | AM99: 130.9341105
A100: RAL 5020 | B100: 100 | C100: 0 | D100: 40 | E100: 80 | F100: 0 | G100: 65 | H100: 75 | I100: #00414b | J100: Ocean blue | K100: 0 | L100: 65 | M100: 75 | N100: 0 | O100: 0.2549019608 | P100: 0.2941176471 | Q100: 0 | R100: 0.05286064702 | S100: 0.0703600957 | T100: 0 | U100: 5.286064702 | V100: 7.03600957 | W100: 3.160296465 | X100: 4.288593366 | Y100: 7.317826008 | AA100: 0.04288593366 | AB100: 1.007566273e-05 | AC100: 0.05286547353 | AD100: 0.07037245093 | AE100: 0.002569293995 | AF100: 13.48069575 | AG100: 17.94497499 | AH100: -0.04656459319 | AI100: 0.2546137505 | AJ100: 0.2938431895 | AK100: -11.87397126 | AL100: 64.92650637 | AM100: 74.93001333
A101: RAL 5021 | B101: 100 | C101: 20 | D101: 50 | E101: 10 | F101: 0 | G101: 117 | H101: 119 | I101: #007577 | J101: Water blue | K101: 0 | L101: 117 | M101: 119 | N101: 0 | O101: 0.4588235294 | P101: 0.4666666667 | Q101: 0 | R101: 0.177888416 | S101: 0.1844749945 | T101: 0 | U101: 17.7888416 | V101: 18.44749945 | W101: 9.691063406 | X101: 14.05448897 | Y101: 19.65477815 | AA101: 0.1405448897 | AB101: 2.829064458e-05 | AC101: 0.1779031232 | AD101: 0.1845073883 | AE101: 0.007214114369 | AF101: 45.36529642 | AG101: 47.04938402 | AH101: -0.04186914551 | AI101: 0.4585412295 | AJ101: 0.4664048333 | AK101: -10.6766321 | AL101: 116.9280135 | AM101: 118.9332325
A102: RAL 5022 | B102: 100 | C102: 100 | D102: 40 | E102: 40 | F102: 34 | G102: 45 | H102: 90 | I102: #222d5a | J102: Night blue | K102: 34 | L102: 45 | M102: 90 | N102: 0.1333333333 | O102: 0.1764705882 | P102: 0.3529411765 | Q102: 0.01599629337 | R102: 0.02624122189 | S102: 0.1022417331 | T102: 1.599629337 | U102: 2.624122189 | V102: 10.22417331 | W102: 3.443536516 | X102: 2.9550387 | Y102: 10.06174494 | AA102: 0.029550387 | AB102: 0.0160081024 | AC102: 0.02624401246 | AD102: 0.1022590949 | AE102: 4.082066112 | AF102: 6.692223177 | AG102: 26.07606919 | AH102: 0.1330912519 | AI102: 0.1761808443 | AJ102: 0.3526700388 | AK102: 33.93826923 | AL102: 44.92611528 | AM102: 89.93085989
A103: RAL 5023 | B103: 80 | C103: 40 | D103: 10 | E103: 20 | F103: 66 | G103: 105 | H103: 140 | I103: #42698c | J103: Distant blue | K103: 66 | L103: 105 | M103: 140 | N103: 0.2588235294 | O103: 0.4117647059 | P103: 0.5490196078 | Q103: 0.05448027644 | R103: 0.1412632911 | S103: 0.2622506575 | T103: 5.448027644 | U103: 14.12632911 | V103: 26.22506575 | W103: 12.03196626 | X103: 13.15485101 | Y103: 26.71593036 | AA103: 0.1315485101 | AB103: 0.05451373898 | AC103: 0.141272983 | AD103: 0.262294693 | AE103: 13.90100344 | AF103: 36.02461066 | AG103: 66.88514671 | AH103: 0.2586038295 | AI103: 0.4114780489 | AJ103: 0.5487618654 | AK103: 65.94397652 | AL103: 104.9269025 | AM103: 139.9342757
A104: RAL 5024 | B104: 70 | C104: 20 | D104: 10 | E104: 20 | F104: 96 | G104: 147 | H104: 172 | I104: #6093ac | J104: Pastel blue | K104: 96 | L104: 147 | M104: 172 | N104: 0.3764705882 | O104: 0.5764705882 | P104: 0.6745098039 | Q104: 0.1169706678 | R104: 0.2917706498 | S104: 0.4125426135 | T104: 11.69706678 | U104: 29.17706498 | V104: 41.25426135 | W104: 22.70398295 | X104: 26.33279094 | Y104: 42.91583495 | AA104: 0.2633279094 | AB104: 0.1170258007 | AC104: 0.2917864387 | AD104: 0.4126107281 | AE104: 29.84157918 | AF104: 74.40554186 | AG104: 105.2157357 | AH104: 0.3762553138 | AI104: 0.5761848261 | AJ104: 0.6742599885 | AK104: 95.94510502 | AL104: 146.9271306 | AM104: 171.9362971
A105: RAL 5025 | B105: 100 | C105: 70 | D105: 60 | E105: 0 | F105: 33 | G105: 105 | H105: 124 | I105: #21697c | J105: Pearl gentian blue | K105: 33 | L105: 105 | M105: 124 | N105: 0.1294117647 | O105: 0.4117647059 | P105: 0.4862745098 | Q105: 0.01520851442 | R105: 0.1412632911 | S105: 0.2015562538 | T105: 1.520851442 | U105: 14.12632911 | V105: 20.15562538 | W105: 9.316864807 | X105: 11.88171975 | Y105: 20.87113279 | AA105: 0.1188171975 | AB105: 0.01523649283 | AC105: 0.1412750832 | AD105: 0.2015910844 | AE105: 3.885305672 | AF105: 36.02514622 | AG105: 51.40572651 | AH105: 0.1292530447 | AI105: 0.4114809403 | AJ105: 0.4860134814 | AK105: 32.9595264 | AL105: 104.9276398 | AM105: 123.9334378
A106: RAL 5026 | B106: 100 | C106: 100 | D106: 0 | E106: 50 | F106: 15 | G106: 48 | H106: 82 | I106: #0f3052 | J106: Pearl night blue | K106: 15 | L106: 48 | M106: 82 | N106: 0.05882352941 | O106: 0.1882352941 | P106: 0.3215686275 | Q106: 0.004776953481 | R106: 0.02955683444 | S106: 0.08437621154 | T106: 0.4776953481 | U106: 2.955683444 | V106: 8.437621154 | W106: 2.776944579 | X106: 2.824659077 | Y106: 8.381495894 | AA106: 0.02824659077 | AB106: 0.004787297387 | AC106: 0.02956038277 | AD106: 0.08439085126 | AE106: 1.220760834 | AF106: 7.537897608 | AG106: 21.51966707 | AH106: 0.05862616082 | AI106: 0.1879474607 | AJ106: 0.3212958497 | AK106: 14.94967101 | AL106: 47.92660247 | AM106: 81.93044167
A107: RAL 6000 | B107: 80 | C107: 20 | D107: 60 | E107: 20 | F107: 60 | G107: 116 | H107: 96 | I107: #3c7460 | J107: Patina green | K107: 60 | L107: 116 | M107: 96 | N107: 0.2352941176 | O107: 0.4549019608 | P107: 0.3764705882 | Q107: 0.04518620439 | R107: 0.1746474037 | S107: 0.1169706678 | T107: 4.518620439 | U107: 17.46474037 | V107: 11.69706678 | W107: 10.22019078 | X107: 14.29596924 | Y107: 13.2870684 | AA107: 0.1429596924 | AB107: 0.04520590304 | AC107: 0.1746554941 | AD107: 0.1169895359 | AE107: 11.52750527 | AF107: 44.537151 | AG107: 29.83233166 | AH107: 0.2350468409 | AI107: 0.4546118027 | AJ107: 0.3761995865 | AK107: 59.93694443 | AL107: 115.9260097 | AM107: 95.93089456
A108: RAL 6001 | B108: 90 | C108: 30 | D108: 90 | E108: 10 | F108: 54 | G108: 103 | H108: 53 | I108: #366735 | J108: Emerald green | K108: 54 | L108: 103 | M108: 53 | N108: 0.2117647059 | O108: 0.4039215686 | P108: 0.2078431373 | Q108: 0.0368894504 | R108: 0.1356333297 | S108: 0.03560131488 | T108: 3.68894504 | U108: 13.56333297 | V108: 3.560131488 | W108: 7.014172537 | X108: 10.74180695 | Y108: 5.071850908 | AA108: 0.1074180695 | AB108: 0.03689876971 | AC108: 0.1356378139 | AD108: 0.03560620156 | AE108: 9.409186275 | AF108: 34.58764254 | AG108: 9.079581397 | AH108: 0.2114927839 | AI108: 0.4036278905 | AJ108: 0.2075581692 | AK108: 53.93065989 | AL108: 102.9251121 | AM108: 52.92733315
A109: RAL 6002 | B109: 90 | C109: 40 | D109: 90 | E109: 10 | F109: 50 | G109: 89 | H109: 40 | I109: #325928 | J109: Leaf green | K109: 50 | L109: 89 | M109: 40 | N109: 0.1960784314 | O109: 0.3490196078 | P109: 0.1568627451 | Q109: 0.03189603307 | R109: 0.09989872825 | S109: 0.02121901038 | T109: 3.189603307 | U109: 9.989872825 | V109: 2.121901038 | W109: 5.270774063 | X109: 7.976067962 | Y109: 3.269219121 | AA109: 0.07976067962 | AB109: 0.03190223556 | AC109: 0.09990141713 | AD109: 0.02122155628 | AE109: 8.135070067 | AF109: 25.47486137 | AG109: 5.411496852 | AH109: 0.1957987738 | AI109: 0.3487241389 | AJ109: 0.1565733363 | AK109: 49.92868732 | AL109: 88.92465542 | AM109: 39.92620076
A110: RAL 6003 | B110: 80 | C110: 50 | D110: 80 | E110: 20 | F110: 80 | G110: 83 | H110: 60 | I110: #50533c | J110: Olive green | K110: 80 | L110: 83 | M110: 60 | N110: 0.3137254902 | O110: 0.3254901961 | P110: 0.2352941176 | Q110: 0.08021982031 | R110: 0.08650046204 | S110: 0.04518620439 | T110: 8.021982031 | U110: 8.650046204 | V110: 4.518620439 | W110: 7.217132901 | X110: 8.21823082 | Y110: 5.480858488 | AA110: 0.0821823082 | AB110: 0.08022668617 | AC110: 0.08649837811 | AD110: 0.04519117095 | AE110: 20.45780497 | AF110: 22.05708642 | AG110: 11.52374859 | AH110: 0.3134386392 | AI110: 0.3251863766 | AJ110: 0.2350074119 | AK110: 79.926853 | AL110: 82.92252604 | AM110: 59.92689003
A111: RAL 6004 | B111: 100 | C111: 50 | D111: 60 | E111: 40 | F111: 2 | G111: 68 | H111: 66 | I111: #024442 | J111: Blue green | K111: 2 | L111: 68 | M111: 66 | N111: 0.007843137255 | O111: 0.2666666667 | P111: 0.2588235294 | Q111: 0.0006070539671 | R111: 0.05780543019 | S111: 0.05448027644 | T111: 0.06070539671 | U111: 5.780543019 | V111: 5.448027644 | W111: 3.075526079 | X111: 4.540497931 | Y111: 5.868562618 | AA111: 0.04540497931 | AB111: 0.0006156442505 | AC111: 0.05780998894 | AD111: 0.05448982072 | AE111: 0.1569892839 | AF111: 14.74154718 | AG111: 13.89490428 | AH111: -0.006829977505 | AI111: 0.2663772364 | AJ111: 0.2585464358 | AK111: -1.741644264 | AL111: 67.92619527 | AM111: 65.92934112
A112: RAL 6005 | B112: 100 | C112: 60 | D112: 90 | E112: 20 | F112: 17 | G112: 66 | H112: 50 | I112: #114232 | J112: Moss green | K112: 17 | L112: 66 | M112: 50 | N112: 0.06666666667 | O112: 0.2588235294 | P112: 0.1960784314 | Q112: 0.005605391624 | R112: 0.05448027644 | S112: 0.03189603307 | T112: 0.5605391624 | U112: 5.448027644 | V112: 3.189603307 | W112: 2.755104433 | X112: 4.245889356 | Y112: 3.691941245 | AA112: 0.04245889356 | AB112: 0.005611266762 | AC112: 0.0544835046 | AD112: 0.03190142662 | AE112: 1.430873024 | AF112: 13.89329367 | AG112: 8.134863787 | AH112: 0.06641978443 | AI112: 0.2585312773 | AJ112: 0.1957961208 | AK112: 16.93704503 | AL112: 65.92547571 | AM112: 49.92801081
A113: RAL 6006 | B113: 90 | C113: 80 | D113: 90 | E113: 20 | F113: 60 | G113: 57 | H113: 46 | I113: #3c392e | J113: Grey olive | K113: 60 | L113: 57 | M113: 46 | N113: 0.2352941176 | O113: 0.2235294118 | P113: 0.1803921569 | Q113: 0.04518620439 | R113: 0.04091519691 | S113: 0.02732089164 | T113: 4.518620439 | U113: 4.091519691 | V113: 2.732089164 | W113: 3.819748604 | X113: 4.084170426 | Y113: 3.171769272 | AA113: 0.04084170426 | AB113: 0.04518990009 | AC113: 0.04091366998 | AD113: 0.0273240173 | AE113: 11.52342452 | AF113: 10.43298585 | AG113: 6.967624411 | AH113: 0.2350040102 | AI113: 0.2232250807 | AJ113: 0.1801033774 | AK113: 59.9260226 | AL113: 56.92239557 | AM113: 45.92636123
A114: RAL 6007 | B114: 80 | C114: 50 | D114: 80 | E114: 60 | F114: 44 | G114: 50 | H114: 34 | I114: #2c3222 | J114: Bottle green | K114: 44 | L114: 50 | M114: 34 | N114: 0.1725490196 | O114: 0.1960784314 | P114: 0.1333333333 | Q114: 0.02518685963 | R114: 0.03189603307 | S114: 0.01599629337 | T114: 2.518685963 | U114: 3.189603307 | V114: 1.599629337 | W114: 2.468041329 | X114: 2.932170159 | Y114: 1.949259038 | AA114: 0.02932170159 | AB114: 0.02518943545 | AC114: 0.03189567934 | AD114: 0.0159981704 | AE114: 6.423306039 | AF114: 8.133398233 | AG114: 4.079533452 | AH114: 0.1722587156 | AI114: 0.1957772712 | AJ114: 0.1330425411 | AK114: 43.92597248 | AL114: 49.92320415 | AM114: 33.92584798
A115: RAL 6008 | B115: 70 | C115: 50 | D115: 70 | E115: 80 | F115: 55 | G115: 52 | H115: 42 | I115: #37342a | J115: Brown green | K115: 55 | L115: 52 | M115: 42 | N115: 0.2156862745 | O115: 0.2039215686 | P115: 0.1647058824 | Q115: 0.0382043716 | R115: 0.03433980681 | S115: 0.02315336618 | T115: 3.82043716 | U115: 3.433980681 | V115: 2.315336618 | W115: 3.221458036 | X115: 3.435375227 | Y115: 2.68379239 | AA115: 0.03435375227 | AB115: 0.03820748997 | AC115: 0.03433850415 | AD115: 0.02315601835 | AE115: 9.742909942 | AF115: 8.756318559 | AG115: 5.904784679 | AH115: 0.2153954803 | AI115: 0.2036174761 | AJ115: 0.1644163682 | AK115: 54.92584747 | AL115: 51.9224564 | AM115: 41.92617389
A116: RAL 6009 | B116: 90 | C116: 50 | D116: 90 | E116: 60 | F116: 39 | G116: 53 | H116: 42 | I116: #27352a | J116: Fir green | K116: 39 | L116: 53 | M116: 42 | N116: 0.1529411765 | O116: 0.2078431373 | P116: 0.1647058824 | Q116: 0.02028856306 | R116: 0.03560131488 | S116: 0.02315336618 | T116: 2.028856306 | U116: 3.560131488 | V116: 2.315336618 | W116: 2.52772162 | X116: 3.144708194 | Y116: 2.664252055 | AA116: 0.03144708194 | AB116: 0.02029221294 | AC116: 0.03560184892 | AD116: 0.02315668123 | AE116: 5.174514301 | AF116: 9.078471474 | AG116: 5.904953714 | AH116: 0.1526567625 | AI116: 0.2075447801 | AJ116: 0.1644189889 | AK116: 38.92747443 | AL116: 52.92391892 | AM116: 41.92684217
A117: RAL 6010 | B117: 70 | C117: 10 | D117: 80 | E117: 40 | F117: 77 | G117: 111 | H117: 57 | I117: #4d6f39 | J117: Grass green | K117: 77 | L117: 111 | M117: 57 | N117: 0.3019607843 | O117: 0.4352941176 | P117: 0.2235294118 | Q117: 0.07421356838 | R117: 0.1589608351 | S117: 0.04091519691 | T117: 7.421356838 | U117: 15.89608351 | V117: 4.091519691 | W117: 9.483526326 | X117: 13.24206711 | Y117: 5.927034807 | AA117: 0.1324206711 | AB117: 0.07422358855 | AC117: 0.1589630048 | AD117: 0.04091963571 | AE117: 18.92701508 | AF117: 40.53556622 | AG117: 10.43450711 | AH117: 0.3016808652 | AI117: 0.434996906 | AJ117: 0.2232420018 | AK117: 76.92862064 | AL117: 110.924211 | AM117: 56.92671046
A118: RAL 6011 | B118: 70 | C118: 30 | D118: 70 | E118: 5 | F118: 108 | G118: 124 | H118: 89 | I118: #6c7c59 | J118: Reseda green | K118: 108 | L118: 124 | M118: 89 | N118: 0.4235294118 | O118: 0.4862745098 | P118: 0.3490196078 | Q118: 0.1499597898 | R118: 0.2015562538 | S118: 0.09989872825 | T118: 14.99597898 | U118: 20.15562538 | V118: 9.989872825 | W118: 15.19516541 | X118: 18.32471722 | Y118: 12.18734706 | AA118: 0.1832471722 | AB118: 0.1499761817 | AC118: 0.2015548931 | AD118: 0.09991072195 | AE118: 38.24392633 | AF118: 51.39649774 | AG118: 25.4772341 | AH118: 0.4232512058 | AI118: 0.4859729872 | AJ118: 0.348739818 | AK118: 107.9290575 | AL118: 123.9231117 | AM118: 88.92865359
A119: RAL 6012 | B119: 100 | C119: 80 | D119: 100 | E119: 20 | F119: 48 | G119: 61 | H119: 58 | I119: #303d3a | J119: Black green | K119: 48 | L119: 61 | M119: 58 | N119: 0.1882352941 | O119: 0.2392156863 | P119: 0.2274509804 | Q119: 0.02955683444 | R119: 0.04666508634 | S119: 0.04231141062 | T119: 2.955683444 | U119: 4.666508634 | V119: 4.231141062 | W119: 3.651388301 | X119: 4.27135366 | Y119: 4.634992099 | AA119: 0.0427135366 | AB119: 0.02956282519 | AC119: 0.04666584456 | AD119: 0.0423177469 | AE119: 7.538520423 | AF119: 11.89979036 | AG119: 10.79102546 | AH119: 0.1879558347 | AI119: 0.2389176781 | AJ119: 0.2271686038 | AK119: 47.92873785 | AL119: 60.92400792 | AM119: 57.92799397
A120: RAL 6013 | B120: 40 | C120: 20 | D120: 60 | E120: 40 | F120: 125 | G120: 118 | H120: 90 | I120: #7d765a | J120: Reed green | K120: 125 | L120: 118 | M120: 90 | N120: 0.4901960784 | O120: 0.462745098 | P120: 0.3529411765 | Q120: 0.2050787364 | R120: 0.1811642442 | S120: 0.1022417331 | T120: 20.50787364 | U120: 18.11642442 | V120: 10.22417331 | W120: 16.78134375 | X120: 18.055026 | Y120: 12.27335648 | AA120: 0.18055026 | AB120: 0.2050929574 | AC120: 0.1811564391 | AD120: 0.1022520988 | AE120: 52.29870414 | AF120: 46.19489197 | AG120: 26.0742852 | AH120: 0.4899118307 | AI120: 0.4624358037 | AJ120: 0.3526584089 | AK120: 124.9275168 | AL120: 117.9211299 | AM120: 89.92789426
A121: RAL 6014 | B121: 80 | C121: 70 | D121: 100 | E121: 35 | F121: 71 | G121: 65 | H121: 53 | I121: #474135 | J121: Yellow olive | K121: 71 | L121: 65 | M121: 53 | N121: 0.2784313725 | O121: 0.2549019608 | P121: 0.2078431373 | Q121: 0.06301001765 | R121: 0.05286064702 | S121: 0.03560131488 | T121: 6.301001765 | U121: 5.286064702 | V121: 3.560131488 | W121: 5.131433599 | X121: 5.377227944 | Y121: 4.135613225 | AA121: 0.05377227944 | AB121: 0.06301470312 | AC121: 0.05285822545 | AD121: 0.0356052351 | AE121: 16.0687493 | AF121: 13.47884749 | AG121: 9.079334949 | AH121: 0.2781417032 | AI121: 0.2545960454 | AJ121: 0.2075551964 | AK121: 70.92613433 | AL121: 64.92199157 | AM121: 52.92657508
A122: RAL 6015 | B122: 80 | C122: 70 | D122: 100 | E122: 50 | F122: 61 | G122: 61 | H122: 54 | I122: #3d3d36 | J122: Black olive | K122: 61 | L122: 61 | M122: 54 | N122: 0.2392156863 | O122: 0.2392156863 | P122: 0.2117647059 | Q122: 0.04666508634 | R122: 0.04666508634 | S122: 0.0368894504 | T122: 4.666508634 | U122: 4.666508634 | V122: 3.68894504 | W122: 4.259066228 | X122: 4.595928542 | Y122: 4.152653706 | AA122: 0.04595928542 | AB122: 0.04667004476 | AC122: 0.04666399445 | AD122: 0.03689420158 | AE122: 11.90086141 | AF122: 11.89931858 | AG122: 9.408021403 | AH122: 0.2389287117 | AI122: 0.2389128178 | AJ122: 0.2114790212 | AK122: 60.92682149 | AL122: 60.92276855 | AM122: 53.9271504
A123: RAL 6016 | B123: 100 | C123: 30 | D123: 80 | E123: 0 | F123: 0 | G123: 105 | H123: 76 | I123: #00694c | J123: Turquoise green | K123: 0 | L123: 105 | M123: 76 | N123: 0 | O123: 0.4117647059 | P123: 0.2980392157 | Q123: 0 | R123: 0.1412632911 | S123: 0.07227185068 | T123: 0 | U123: 14.12632911 | V123: 7.227185068 | W123: 6.356082196 | X123: 10.62495334 | Y123: 8.553297838 | AA123: 0.1062495334 | AB123: 1.449598505e-05 | AC123: 0.1412727919 | AD123: 0.07228454162 | AE123: 0.003696476187 | AF123: 36.02456194 | AG123: 18.43255811 | AH123: -0.04513503983 | AI123: 0.4114777859 | AJ123: 0.2977650451 | AK123: -11.50943516 | AL123: 104.9268354 | AM123: 75.93008649
A124: RAL 6017 | B124: 80 | C124: 20 | D124: 100 | E124: 10 | F124: 88 | G124: 127 | H124: 64 | I124: #587f40 | J124: May green | K124: 88 | L124: 127 | M124: 64 | N124: 0.3450980392 | O124: 0.4980392157 | P124: 0.2509803922 | Q124: 0.09758734714 | R124: 0.2122307574 | S124: 0.05126945837 | T124: 9.758734714 | U124: 21.22307574 | V124: 5.126945837 | W124: 12.5392878 | X124: 17.62361626 | Y124: 7.591296227 | AA124: 0.1762361626 | AB124: 0.0976004041 | AC124: 0.2122337036 | AD124: 0.05127485056 | AE124: 24.88810304 | AF124: 54.11959441 | AG124: 13.07508689 | AH124: 0.3448203434 | AI124: 0.4977424145 | AJ124: 0.2506938005 | AK124: 87.92918757 | AL124: 126.9243157 | AM124: 63.92691913
A125: RAL 6018 | B125: 70 | C125: 0 | D125: 90 | E125: 0 | F125: 97 | G125: 153 | H125: 59 | I125: #61993b | J125: Yellow green | K125: 97 | L125: 153 | M125: 59 | N125: 0.3803921569 | O125: 0.6 | P125: 0.231372549 | Q125: 0.119538428 | R125: 0.3185467781 | S125: 0.04373502926 | T125: 11.9538428 | U125: 31.85467781 | V125: 4.373502926 | W125: 17.11041483 | X125: 25.63961946 | Y125: 8.184801292 | AA125: 0.2563961946 | AB125: 0.1195551675 | AC125: 0.3185528875 | AD125: 0.04373828621 | AE125: 30.48656772 | AF125: 81.2309863 | AG125: 11.15326298 | AH125: 0.38011756 | AI125: 0.5997052342 | AJ125: 0.2310814347 | AK125: 96.9299778 | AL125: 152.9248347 | AM125: 58.92576586
A126: RAL 6019 | B126: 35 | C126: 0 | D126: 40 | E126: 0 | F126: 185 | G126: 206 | H126: 172 | I126: #b9ceac | J126: Pastel green | K126: 185 | L126: 206 | M126: 172 | N126: 0.7254901961 | O126: 0.8078431373 | P126: 0.6745098039 | Q126: 0.4851499401 | R126: 0.6172065624 | S126: 0.4125426135 | T126: 48.51499401 | U126: 61.72065624 | V126: 41.25426135 | W126: 49.52528437 | X126: 57.43545874 | Y126: 47.50561702 | AA126: 0.5743545874 | AB126: 0.485210903 | AC126: 0.6172029612 | AD126: 0.4125971054 | AE126: 123.7287803 | AF126: 157.3867551 | AG126: 105.2122619 | AH126: 0.7252310591 | AI126: 0.8075410396 | AJ126: 0.6742499522 | AK126: 184.9339201 | AL126: 205.9229651 | AM126: 171.9337378
A127: RAL 6020 | B127: 90 | C127: 60 | D127: 80 | E127: 20 | F127: 55 | G127: 66 | H127: 47 | I127: #37422f | J127: Chrome green | K127: 55 | L127: 66 | M127: 47 | N127: 0.2156862745 | O127: 0.2588235294 | P127: 0.1843137255 | Q127: 0.0382043716 | R127: 0.05448027644 | S127: 0.0284260395 | T127: 3.82043716 | U127: 5.448027644 | V127: 2.84260395 | W127: 4.036852983 | X127: 4.913890317 | Y127: 3.425034387 | AA127: 0.04913890317 | AB127: 0.03820901645 | AC127: 0.05448018068 | AD127: 0.02842961756 | AE127: 9.743299194 | AF127: 13.89244607 | AG127: 7.249552477 | AH127: 0.2153999864 | AI127: 0.2585232996 | AJ127: 0.1840262763 | AK127: 54.92699654 | AL127: 65.92344139 | AM127: 46.92670045
A128: RAL 6021 | B128: 50 | C128: 10 | D128: 50 | E128: 10 | F128: 138 | G128: 153 | H128: 119 | I128: #8a9977 | J128: Pale green | K128: 138 | L128: 153 | M128: 119 | N128: 0.5411764706 | O128: 0.6 | P128: 0.4666666667 | Q128: 0.2541520943 | R128: 0.3185467781 | S128: 0.1844749945 | T128: 25.41520943 | U128: 31.85467781 | V128: 18.44749945 | W128: 25.20223881 | X128: 29.51764856 | Y128: 21.82193936 | AA128: 0.2951764856 | AB128: 0.2541804048 | AC128: 0.318543713 | AD128: 0.1844979847 | AE128: 64.81600323 | AF128: 81.2286468 | AG128: 47.04698609 | AH128: 0.5409041402 | AI128: 0.5996973739 | AJ128: 0.4663937543 | AK128: 137.9305558 | AL128: 152.9228303 | AM128: 118.9304073
A129: RAL 6022 | B129: 90 | C129: 80 | D129: 100 | E129: 20 | F129: 58 | G129: 51 | H129: 39 | I129: #3a3327 | J129: Olive drab | K129: 58 | L129: 51 | M129: 39 | N129: 0.2274509804 | O129: 0.2 | P129: 0.1529411765 | Q129: 0.04231141062 | R129: 0.03310476657 | S129: 0.02028856306 | T129: 4.231141062 | U129: 3.310476657 | V129: 2.028856306 | W129: 3.29495759 | X129: 3.41367692 | Y129: 2.404697759 | AA129: 0.0341367692 | AB129: 0.04231405443 | AC129: 0.03310290937 | AD129: 0.02029056021 | AE129: 10.79008388 | AF129: 8.44124189 | AG129: 5.174092853 | AH129: 0.2271583339 | AI129: 0.1996940392 | AJ129: 0.152649705 | AK129: 57.92537515 | AL129: 50.92198 | AM129: 38.92567478
A130: RAL 6024 | B130: 90 | C130: 10 | D130: 80 | E130: 10 | F130: 0 | G130: 131 | H130: 81 | I130: #008351 | J130: Traffic green | K130: =F130 -> 0 | L130: =G130 -> 131 | M130: =H130 -> 81 | N130: =K130/255 -> 0 | O130: =L130/255 -> 0.5137254902 | P130: =M130/255 -> 0.3176470588 | Q130: =IF(N130>0.04045,((N130+0.055)/1.055)^2.4,N130/12.92) -> 0 | R130: =IF(O130>0.04045,((O130+0.055)/1.055)^2.4,O130/12.92) -> 0.2269658735 | S130: =IF(P130>0.04045,((P130+0.055)/1.055)^2.4,P130/12.92) -> 0.08228270713 | T130: =Q130*100 -> 0 | U130: =R130*100 -> 22.69658735 | V130: =S130*100 -> 8.228270713 | W130: =T130*0.4124+U130*0.3576+V130*0.1805 -> 9.6015025 | X130: =T130*0.2126+U130*0.7152+V130*0.0722 -> 16.82668042 | Y130: =T130*0.0193+U130*0.1192+V130*0.9505 -> 10.52640452 | AA130: =X130/100 -> 0.1682668042 | AB130: 1.965724994e-05 | AC130: 0.2269801452 | AD130: 0.08229715597 | AE130: 0.005012598735 | AF130: 57.87993703 | AG130: 20.98577477 | AH130: -0.04375961557 | AI130: 0.5134403906 | AJ130: 0.3173743228 | AK130: -11.15870197 | AL130: 130.9272996 | AM130: 80.93045231
A131: RAL 6025 | B131: 80 | C131: 30 | D131: 90 | E131: 10 | F131: 94 | G131: 110 | H131: 59 | I131: #5e6e3b | J131: Fern green | K131: 94 | L131: 110 | M131: 59 | N131: 0.368627451 | O131: 0.431372549 | P131: 0.231372549 | Q131: 0.1119324278 | R131: 0.1559264637 | S131: 0.04373502926 | T131: 11.19324278 | U131: 15.59264637 | V131: 4.373502926 | W131: 10.98144094 | X131: 13.84731101 | Y131: 6.231687564 | AA131: 0.1384731101 | AB131: =(3.2405*W131-1.5371*X131-0.4985*Y131)/100 -> 0.1119416137 | AC131: =(-0.9693*W131+1.876*X131+0.0416*Y131)/100 -> 0.1559248295 | AD131: =(0.0556*W131-0.204*X131+1.0572*Y131)/100 -> 0.04373856763 | AE131: =AB131*255 -> 28.5451115 | AF131: =AC131*255 -> 39.76083153 | AG131: =AD131*255 -> 11.15333475 | AH131: =1.055*AB131^(1/2.4)-0.0553 -> 0.3683419363 | AI131: =1.055*AC131^(1/2.4)-0.0553 -> 0.4310704251 | AJ131: =1.055*AD131^(1/2.4)-0.0553 -> 0.2310822025 | AK131: =AH131*255 -> 93.92719376 | AL131: =AI131*255 -> 109.9229584 | AM131: =AJ131*255 -> 58.92596164
A132: RAL 6026 | B132: 100 | C132: 30 | D132: 70 | E132: 40 | F132: 0 | G132: 95 | H132: 78 | I132: #005f4e | J132: Opal green | K132: 0 | L132: 95 | M132: 78 | N132: 0 | O132: 0.3725490196 | P132: 0.3058823529 | Q132: 0 | R132: 0.1144353738 | S132: 0.07618538148 | T132: 0 | U132: 11.44353738 | V132: 7.618538148 | W132: 5.467355104 | X132: 8.73447639 | Y132: 8.605490166 | AA132: 0.0873447639 | AB132: 1.363706489e-05 | AC132: 0.114443588 | AD132: 0.07619875963 | AE132: 0.003477451546 | AF132: 29.18311493 | AG132: 19.43068371 | AH132: -0.045390475 | AI132: 0.3722618066 | AJ132: 0.3056087561 | AK132: -11.57457113 | AL132: 94.92676068 | AM132: 77.93023282
A133: RAL 6027 | B133: 60 | C133: 0 | D133: 30 | E133: 0 | F133: 126 | G133: 186 | H133: 181 | I133: #7ebab5 | J133: Light green | K133: 126 | L133: 186 | M133: 181 | N133: 0.4941176471 | O133: 0.7294117647 | P133: 0.7098039216 | Q133: 0.2086368701 | R133: 0.4910208498 | S133: 0.4620769997 | T133: 20.86368701 | U133: 49.10208498 | V133: 46.20769997 | W133: 34.50357996 | X133: 42.88962698 | Y133: 50.17605651 | AA133: 0.4288962698 | AB133: 0.2087044106 | AC133: 0.4910394411 | AD133: 0.4621504208 | AE133: 53.21962471 | AF133: 125.2150575 | AG133: 117.8483573 | AH133: 0.4938917075 | AI133: 0.7291241394 | AJ133: 0.7095545536 | AK133: 125.9423854 | AL133: 185.9266556 | AM133: 180.9364112
A134: RAL 6028 | B134: 100 | C134: 60 | D134: 100 | E134: 0 | F134: 49 | G134: 84 | H134: 66 | I134: #315442 | J134: Pine green | K134: 49 | L134: 84 | M134: 66 | N134: 0.1921568627 | O134: 0.3294117647 | P134: 0.2588235294 | Q134: 0.03071344373 | R134: 0.08865558629 | S134: 0.05448027644 | T134: 3.071344373 | U134: 8.865558629 | V134: 5.448027644 | W134: 5.420315175 | X134: 7.386962941 | Y134: 6.294401811 | AA134: 0.07386962941 | AB134: 0.03072271285 | AC134: 0.08865878093 | AD134: 0.05448870678 | AE134: 7.834291777 | AF134: 22.60798914 | AG134: 13.89462023 | AH134: 0.1918879393 | AI134: 0.3291175363 | AJ134: 0.2585437624 | AK134: 48.93142453 | AL134: 83.92497176 | AM134: 65.92865942
A135: RAL 6029 | B135: 100 | C135: 20 | D135: 100 | E135: 5 | F135: 0 | G135: 111 | H135: 61 | I135: #006f3d | J135: Mint green | K135: 0 | L135: 111 | M135: 61 | N135: 0 | O135: 0.4352941176 | P135: 0.2392156863 | Q135: 0 | R135: 0.1589608351 | S135: 0.04666508634 | T135: 0 | U135: 15.89608351 | V135: 4.666508634 | W135: 6.52674427 | X135: 11.70580085 | Y135: 6.33032961 | AA135: 0.1170580085 | AB135: 1.259014959e-05 | AC135: 0.1589705088 | AD135: 0.04667328073 | AE135: 0.003210488145 | AF135: 40.53747974 | AG135: 11.90168659 | AH135: -0.04571485551 | AI135: 0.4350065497 | AJ135: 0.238937212 | AK135: -11.65728816 | AL135: 110.9266702 | AM135: 60.92898905
A136: RAL 6032 | B136: 90 | C136: 10 | D136: 80 | E136: 0 | F136: 35 | G136: 127 | H136: 82 | I136: #237f52 | J136: Signal green | K136: 35 | L136: 127 | M136: 82 | N136: 0.137254902 | O136: 0.4980392157 | P136: 0.3215686275 | Q136: 0.01680737575 | R136: 0.2122307574 | S136: 0.08437621154 | T136: 1.680737575 | U136: 21.22307574 | V136: 8.437621154 | W136: 9.80549868 | X136: 16.14526483 | Y136: 10.58218777 | AA136: 0.1614526483 | AB136: 0.01682611303 | AC136: 0.2122426595 | AD136: 0.08439040613 | AE136: 4.290658823 | AF136: 54.12187819 | AG136: 21.51955356 | AH136: 0.1370441773 | AI136: 0.4977521384 | AJ136: 0.321295022 | AK136: 34.94626522 | AL136: 126.9267953 | AM136: 81.93023061
A137: RAL 6033 | B137: 80 | C137: 20 | D137: 50 | E137: 0 | F137: 70 | G137: 135 | H137: 127 | I137: #46877f | J137: Mint turquoise | K137: 70 | L137: 135 | M137: 127 | N137: 0.2745098039 | O137: 0.5294117647 | P137: 0.4980392157 | Q137: 0.06124605423 | R137: 0.2422811225 | S137: 0.2122307574 | T137: 6.124605423 | U137: 24.22811225 | V137: 21.22307574 | W137: 15.02052539 | X137: 20.16234306 | Y137: 23.17872936 | AA137: 0.2016234306 | AB137: 0.06127878415 | AC137: 0.2422939546 | AD137: 0.212265759 | AE137: 15.62608996 | AF137: 61.78495843 | AG137: 54.12776855 | AH137: 0.2742831634 | AI137: 0.5291246615 | AJ137: 0.4977772174 | AK137: 69.94220667 | AL137: 134.9267887 | AM137: 126.9331904
A138: RAL 6034 | B138: 60 | C138: 10 | D138: 40 | E138: 0 | F138: 122 | G138: 172 | H138: 172 | I138: #7aacac | J138: Pastel turquoise | K138: 122 | L138: 172 | M138: 172 | N138: 0.4784313725 | O138: 0.6745098039 | P138: 0.6745098039 | Q138: 0.1946178304 | R138: 0.4125426135 | S138: 0.4125426135 | T138: 19.46178304 | U138: 41.25426135 | V138: 41.25426135 | W138: 30.22495736 | X138: 36.62118046 | Y138: 44.50529578 | AA138: 0.3662118046 | AB138: 0.1946766789 | AC138: 0.4125570368 | AD138: 0.4126078551 | AE138: 49.64255312 | AF138: 105.2020444 | AG138: 105.2150031 | AH138: 0.4781985744 | AI138: 0.674220431 | AJ138: 0.6742578719 | AK138: 121.9406365 | AL138: 171.9262099 | AM138: 171.9357573
A139: RAL 6035 | B139: 100 | C139: 20 | D139: 100 | E139: 50 | F139: 25 | G139: 77 | H139: 37 | I139: #194d25 | J139: Pearl green | K139: 25 | L139: 77 | M139: 37 | N139: 0.09803921569 | O139: 0.3019607843 | P139: 0.1450980392 | Q139: 0.00972121732 | R139: 0.07421356838 | S139: 0.01850022013 | T139: 0.972121732 | U139: 7.421356838 | V139: 1.850022013 | W139: 3.388709181 | X139: 5.64799908 | Y139: 2.661833608 | AA139: 0.0564799908 | AB139: 0.009726486612 | AC139: 0.07421702743 | AD139: 0.01850310908 | AE139: 2.480254086 | AF139: 18.925342 | AG139: 4.718292816 | AH139: 0.09777377415 | AI139: 0.3016677166 | AJ139: 0.1448110582 | AK139: 24.93231241 | AL139: 76.92526774 | AM139: 36.92681983
A140: RAL 6036 | B140: 100 | C140: 0 | D140: 70 | E140: 50 | F140: 4 | G140: 87 | H140: 75 | I140: #04574b | J140: Pearl opal green | K140: 4 | L140: 87 | M140: 75 | N140: 0.01568627451 | O140: 0.3411764706 | P140: 0.2941176471 | Q140: 0.001214107934 | R140: 0.09530746663 | S140: 0.0703600957 | T140: 0.1214107934 | U140: 9.530746663 | V140: 7.03600957 | W140: 4.728264545 | X140: 7.350201839 | Y140: 7.826135327 | AA140: 0.07350201839 | AB140: 0.001226175518 | AC140: 0.09531439056 | AD140: 0.07037240601 | AE140: 0.3126747571 | AF140: 24.30516959 | AG140: 17.94496353 | AH140: 0.00928763663 | AI140: 0.3408884627 | AJ140: 0.2938430967 | AK140: 2.368347341 | AL140: 86.92655798 | AM140: 74.92998965
A141: RAL 6037 | B141: 90 | C141: 0 | D141: 100 | E141: 0 | F141: 0 | G141: 139 | H141: 41 | I141: #008b29 | J141: Pure green | K141: 0 | L141: 139 | M141: 41 | N141: 0 | O141: 0.5450980392 | P141: 0.1607843137 | Q141: 0 | R141: 0.2581828529 | S141: 0.02217388479 | T141: 0 | U141: 25.81828529 | V141: 2.217388479 | W141: 9.632857441 | X141: 18.62533309 | Y141: 5.185167356 | AA141: 0.1862533309 | AB141: 1.469119018e-05 | AC141: 0.2581969912 | AD141: 0.02217777853 | AE141: 0.003746253495 | AF141: 65.84023276 | AG141: 5.655333525 | AH141: -0.04507822772 | AI141: 0.5448117314 | AJ141: 0.1605001011 | AK141: -11.49494807 | AL141: 138.9269915 | AM141: 40.92752579
A142: RAL 6038 | B142: 100 | C142: 0 | D142: 100 | E142: 0 | F142: 0 | G142: 181 | H142: 26 | I142: #00b51a | J142: Luminous green | K142: 0 | L142: 181 | M142: 26 | N142: 0 | O142: 0.7098039216 | P142: 0.1019607843 | Q142: 0 | R142: 0.4620769997 | S142: 0.01032982303 | T142: 0 | U142: 46.20769997 | V142: 1.032982303 | W142: 16.71032681 | X142: 33.12232834 | Y142: 6.489807515 | AA142: 0.3312232834 | AB142: 2.314104774e-05 | AC142: 0.4621014417 | AD142: 0.01033163695 | AE142: 0.005900967174 | AF142: 117.8358676 | AG142: 2.634567421 | AH142: -0.04294776959 | AI142: 0.7095207776 | AJ142: 0.101672268 | AK142: -10.95168125 | AL142: 180.9277983 | AM142: 25.92642835
A143: RAL 7000 | B143: 50 | C143: 10 | D143: 5 | E143: 40 | F143: 122 | G143: 136 | H143: 142 | I143: #7a888e | J143: Squirrel grey | K143: 122 | L143: 136 | M143: 142 | N143: 0.4784313725 | O143: 0.5333333333 | P143: 0.5568627451 | Q143: 0.1946178304 | R143: 0.2462013267 | S143: 0.270497791 | T143: 19.46178304 | U143: 24.62013267 | V143: 27.0497791 | W143: 21.7126839 | X143: 23.69888801 | Y143: 29.02114726 | AA143: 0.2369888801 | AB143: 0.194653495 | AC143: 0.2462028913 | AD143: 0.2705380896 | AE143: 49.63664122 | AF143: 62.78173729 | AG143: 68.98721284 | AH143: 0.478172101 | AI143: 0.5330348912 | AJ143: 0.5566007246 | AK143: 121.9338858 | AL143: 135.9238973 | AM143: 141.9331848
A144: RAL 7001 | B144: 10 | C144: 0 | D144: 0 | E144: 40 | F144: 140 | G144: 150 | H144: 157 | I144: #8c969d | J144: Silver grey | K144: 140 | L144: 150 | M144: 157 | N144: 0.5490196078 | O144: 0.5882352941 | P144: 0.6156862745 | Q144: 0.2622506575 | R144: 0.3049873141 | S144: 0.337163615 | T144: 26.22506575 | U144: 30.49873141 | V144: 33.7163615 | W144: 27.80736672 | X144: 29.82246298 | Y144: 36.18899416 | AA144: 0.2982246298 | AB144: 0.2622945041 | AC144: 0.3049872215 | AD144: 0.3372131177 | AE144: 66.88509856 | AF144: 77.77174148 | AG144: 85.98934501 | AH144: 0.5487616842 | AI144: 0.5879352128 | AJ144: 0.6154273022 | AK144: 139.9342295 | AL144: 149.9234793 | AM144: 156.9339621
A145: RAL 7002 | B145: 30 | C145: 30 | D145: 50 | E145: 40 | F145: 129 | G145: 120 | H145: 99 | I145: #817863 | J145: Olive grey | K145: 129 | L145: 120 | M145: 99 | N145: 0.5058823529 | O145: 0.4705882353 | P145: 0.3882352941 | Q145: 0.2195261997 | R145: 0.1878207723 | S145: 0.1247718176 | T145: 21.95261997 | U145: 18.78207723 | V145: 12.47718176 | W145: 18.0218626 | X145: 19.00092116 | Y145: 14.52207043 | AA145: 0.1900092116 | AB145: 0.2195427773 | AC145: 0.1878125481 | AD145: 0.124785605 | AE145: 55.98340821 | AF145: 47.89219978 | AG145: 31.82032928 | AH145: 0.5056000005 | AI145: 0.470278646 | AJ145: 0.387955701 | AK145: 128.9280001 | AL145: 119.9210547 | AM145: 98.92870376
A146: RAL 7003 | B146: 30 | C146: 20 | D146: 40 | E146: 40 | F146: 122 | G146: 118 | H146: 105 | I146: #7a7669 | J146: Moss grey | K146: 122 | L146: 118 | M146: 105 | N146: 0.4784313725 | O146: 0.462745098 | P146: 0.4117647059 | Q146: 0.1946178304 | R146: 0.1811642442 | S146: 0.1412632911 | T146: 19.46178304 | U146: 18.11642442 | V146: 14.12632911 | W146: 17.05427511 | X146: 18.11436279 | Y146: 15.96216603 | AA146: 0.1811436279 | AB146: 0.1946365168 | AC146: 0.1811586183 | AD146: 0.1412808961 | AE146: 49.63231179 | AF146: 46.19544767 | AG146: 36.02662851 | AH146: 0.4781527127 | AI146: 0.4624383987 | AJ146: 0.4114889428 | AK146: 121.9289417 | AL146: 117.9217917 | AM146: 104.9296804
A147: RAL 7004 | B147: 0 | C147: 0 | D147: 0 | E147: 45 | F147: 155 | G147: 155 | H147: 155 | I147: #9b9b9b | J147: Signal grey | K147: 155 | L147: 155 | M147: 155 | N147: 0.6078431373 | O147: 0.6078431373 | P147: 0.6078431373 | Q147: 0.3277780981 | R147: 0.3277780981 | S147: 0.3277780981 | T147: 32.77780981 | U147: 32.77780981 | V147: 32.77780981 | W147: 31.15530822 | X147: 32.77780981 | Y147: 35.69503488 | AA147: 0.3277780981 | AB147: 0.3278202995 | AC147: 0.3277724439 | AD147: 0.3278235281 | AE147: 83.59417637 | AF147: 83.58197319 | AG147: 83.59499967 | AH147: 0.6075786947 | AI147: 0.607538373 | AJ147: 0.6075814149 | AK147: 154.9325671 | AL147: 154.9222851 | AM147: 154.9332608
A148: RAL 7005 | B148: 30 | C148: 10 | D148: 20 | E148: 60 | F148: 108 | G148: 110 | H148: 107 | I148: #6c6e6b | J148: Mouse grey | K148: 108 | L148: 110 | M148: 107 | N148: 0.4235294118 | O148: 0.431372549 | P148: 0.4196078431 | Q148: 0.1499597898 | R148: 0.1559264637 | S148: 0.1470272665 | T148: 14.99597898 | U148: 15.59264637 | V148: 14.70272665 | W148: 14.41411423 | X148: 15.40154268 | Y148: 16.12300752 | AA148: 0.1540154268 | AB148: 0.1499790667 | AC148: 0.1559241025 | AD148: 0.147047536 | AE148: 38.24466202 | AF148: 39.76064615 | AG148: 37.49712167 | AH148: 0.4232550415 | AI148: 0.4310694802 | AJ148: 0.4193351047 | AK148: 107.9300356 | AL148: 109.9227175 | AM148: 106.9304517
A149: RAL 7006 | B149: 0 | C149: 10 | D149: 30 | E149: 60 | F149: 118 | G149: 106 | H149: 94 | I149: #766a5e | J149: Beige grey | K149: 118 | L149: 106 | M149: 94 | N149: 0.462745098 | O149: 0.4156862745 | P149: 0.368627451 | Q149: 0.1811642442 | R149: 0.1441284709 | S149: 0.1119324278 | T149: 18.11642442 | U149: 14.41284709 | V149: 11.19324278 | W149: 14.64562787 | X149: 14.9677722 | Y149: 12.70683563 | AA149: 0.149677722 | AB149: 0.1811783692 | AC149: 0.1441213791 | AD149: 0.1119453801 | AE149: 46.20048414 | AF149: 36.75095166 | AG149: 28.54607192 | AH149: 0.4624619174 | AI149: 0.4153766244 | AJ149: 0.3683478753 | AK149: 117.9277889 | AL149: 105.9210392 | AM149: 93.9287082
A150: RAL 7008 | B150: 30 | C150: 40 | D150: 70 | E150: 40 | F150: 116 | G150: 94 | H150: 61 | I150: #745e3d | J150: Khaki grey | K150: 116 | L150: 94 | M150: 61 | N150: 0.4549019608 | O150: 0.368627451 | P150: 0.2392156863 | Q150: 0.1746474037 | R150: 0.1119324278 | S150: 0.04666508634 | T150: 17.46474037 | U150: 11.19324278 | V150: 4.666508634 | W150: 12.04746735 | X150: 12.05533296 | Y150: 6.106820485 | AA150: 0.1205533296 | AB150: 0.1746531565 | AC150: 0.1119223827 | AD150: 0.04666681877 | AE150: 44.53655491 | AF150: 28.54020758 | AG150: 11.90003879 | AH150: 0.4546089591 | AI150: 0.3683116099 | AJ150: 0.2389202374 | AK150: 115.9252846 | AL150: 93.91946051 | AM150: 60.92466053
A151: RAL 7009 | B151: 20 | C151: 50 | D151: 40 | E151: 80 | F151: 93 | G151: 96 | H151: 88 | I151: #5d6058 | J151: Green grey | K151: 93 | L151: 96 | M151: 88 | N151: 0.3647058824 | O151: 0.3764705882 | P151: 0.3450980392 | Q151: 0.1094617108 | R151: 0.1169706678 | S151: 0.09758734714 | T151: 10.94617108 | U151: 11.69706678 | V151: 9.758734714 | W151: 10.45852365 | X151: 11.39747878 | Y151: 10.88122881 | AA151: 0.1139747878 | AB151: 0.1094748869 | AC151: 0.1169688233 | AD151: 0.0976004334 | AE151: 27.91609617 | AF151: 29.82704994 | AG151: 24.88811052 | AH151: 0.364426932 | AI151: 0.3761677534 | AJ151: 0.3448203935 | AK151: 92.92886766 | AL151: 95.92277711 | AM151: 87.92920033
A152: RAL 7010 | B152: 20 | C152: 5 | D152: 30 | E152: 80 | F152: 88 | G152: 92 | H152: 86 | I152: #585c56 | J152: Tarpaulin grey | K152: 88 | L152: 92 | M152: 86 | N152: 0.3450980392 | O152: 0.3607843137 | P152: 0.337254902 | Q152: 0.09758734714 | R152: 0.107023103 | S152: 0.09305896285 | T152: 9.758734714 | U152: 10.7023103 | V152: 9.305896285 | W152: 9.531362638 | X152: 10.40088504 | Y152: 10.30931339 | AA152: 0.1040088504 | AB152: 0.09759987515 | AC152: 0.1070217796 | AD152: 0.09307169327 | AE152: 24.88796816 | AF152: 27.2905538 | AG152: 23.73328178 | AH152: 0.3448194399 | AI152: 0.3604821715 | AJ152: 0.3369772595 | AK152: 87.92895717 | AL152: 91.92295374 | AM152: 85.92920118
A153: RAL 7011 | B153: 40 | C153: 10 | D153: 20 | E153: 80 | F153: 82 | G153: 89 | H153: 93 | I153: #52595d | J153: Iron grey | K153: 82 | L153: 89 | M153: 93 | N153: 0.3215686275 | O153: 0.3490196078 | P153: 0.3647058824 | Q153: 0.08437621154 | R153: 0.09989872825 | S153: 0.1094617108 | T153: 8.437621154 | U153: 9.989872825 | V153: 10.94617108 | W153: 9.027837366 | X153: 9.728908853 | Y153: 11.75797454 | AA153: 0.09728908853 | AB153: 0.08439050878 | AC153: 0.09989881991 | AD153: 0.1094778103 | AE153: 21.51957974 | AF153: 25.47419908 | AG153: 27.91684164 | AH153: 0.3212952129 | AI153: 0.3487197623 | AJ153: 0.3644316021 | AK153: 81.93027928 | AL153: 88.92353939 | AM153: 92.93005854
A154: RAL 7012 | B154: 20 | C154: 0 | D154: 10 | E154: 80 | F154: 87 | G154: 93 | H154: 94 | I154: #575d5e | J154: Basalt grey | K154: 87 | L154: 93 | M154: 94 | N154: 0.3411764706 | O154: 0.3647058824 | P154: 0.368627451 | Q154: 0.09530746663 | R154: 0.1094617108 | S154: 0.1119324278 | T154: 9.530746663 | U154: 10.94617108 | V154: 11.19324278 | W154: 9.865211024 | X154: 10.66309042 | Y154: 12.12790427 | AA154: 0.1066309042 | AB154: 0.09532219753 | AC154: 0.1094612941 | AD154: 0.1119485568 | AE154: 24.30716037 | AF154: 27.91262999 | AG154: 28.54688198 | AH154: 0.3409019835 | AI154: 0.3644052166 | AJ154: 0.3683528844 | AK154: 86.93000579 | AL154: 92.92333024 | AM154: 93.92998553
A155: RAL 7013 | B155: 10 | C155: 10 | D155: 40 | E155: 80 | F155: 87 | G155: 80 | H155: 68 | I155: #575044 | J155: Brown grey | K155: 87 | L155: 80 | M155: 68 | N155: 0.3411764706 | O155: 0.3137254902 | P155: 0.2666666667 | Q155: 0.09530746663 | R155: 0.08021982031 | S155: 0.05780543019 | T155: 9.530746663 | U155: 8.021982031 | V155: 5.780543019 | W155: 7.842528713 | X155: 8.180913495 | Y155: 6.634569808 | AA155: 0.08180913495 | AB155: 0.09531499112 | AC155: 0.0802162874 | AD155: 0.05781205445 | AE155: 24.30532274 | AF155: 20.45515329 | AG155: 14.74207388 | AH155: 0.3408895028 | AI155: 0.3134187239 | AJ155: 0.2663820252 | AK155: 86.92682321 | AL155: 79.9217746 | AM155: 67.92741642
A156: RAL 7015 | B156: 40 | C156: 10 | D156: 10 | E156: 80 | F156: 79 | G156: 83 | H156: 88 | I156: #4f5358 | J156: Slate grey | K156: 79 | L156: 83 | M156: 88 | N156: 0.3098039216 | O156: 0.3254901961 | P156: 0.3450980392 | Q156: 0.07818742181 | R156: 0.08650046204 | S156: 0.09758734714 | T156: 7.818742181 | U156: 8.650046204 | V156: 9.758734714 | W156: 8.079157414 | X156: 8.553358279 | Y156: 10.45766458 | AA156: 0.08553358279 | AB156: 0.07819996797 | AC156: 0.08650011696 | AD156: 0.09760159055 | AE156: 19.94099183 | AF156: 22.05752983 | AG156: 24.88840559 | AH156: 0.309528311 | AI156: 0.3251895636 | AJ156: 0.34482237 | AK156: 78.92971931 | AL156: 82.92333873 | AM156: 87.92970436
A157: RAL 7016 | B157: 60 | C157: 30 | D157: 30 | E157: 80 | F157: 56 | G157: 62 | H157: 66 | I157: #383e42 | J157: Anthracite grey | K157: 56 | L157: 62 | M157: 66 | N157: 0.2196078431 | O157: 0.2431372549 | P157: 0.2588235294 | Q157: 0.03954623528 | R157: 0.04817182423 | S157: 0.05448027644 | T157: 3.954623528 | U157: 4.817182423 | V157: 5.448027644 | W157: 4.336880167 | X157: 4.679349427 | Y157: 5.828882655 | AA157: 0.04679349427 | AB157: 0.03955334174 | AC157: 0.04817203097 | AD157: 0.05448837997 | AE157: 10.08610214 | AF157: 12.2838679 | AG157: 13.89453689 | AH157: 0.2193284033 | AI157: 0.242837788 | AJ157: 0.2585429781 | AK157: 55.92874285 | AL157: 61.92363595 | AM157: 65.92845941
A158: RAL 7021 | B158: 50 | C158: 10 | D158: 5 | E158: 95 | F158: 47 | G158: 50 | H158: 52 | I158: #2f3234 | J158: Black grey | K158: 47 | L158: 50 | M158: 52 | N158: 0.1843137255 | O158: 0.1960784314 | P158: 0.2039215686 | Q158: 0.0284260395 | R158: 0.03189603307 | S158: 0.03433980681 | T158: 2.84260395 | U158: 3.189603307 | V158: 3.433980681 | W158: 2.932725525 | X158: 3.13347529 | Y158: 3.699061608 | AA158: 0.0313347529 | AB158: 0.02843049983 | AC158: 0.03189589757 | AD158: 0.03434478512 | AE158: 7.249777456 | AF158: 8.133453879 | AG158: 8.757920204 | AH158: 0.1840293709 | AI158: 0.1957779869 | AJ158: 0.2036372081 | AK158: 46.92748957 | AL158: 49.92338666 | AM158: 51.92748807
A159: RAL 7022 | B159: 30 | C159: 20 | D159: 40 | E159: 80 | F159: 76 | G159: 74 | H159: 68 | I159: #4c4a44 | J159: Umbra grey | K159: 76 | L159: 74 | M159: 68 | N159: 0.2980392157 | O159: 0.2901960784 | P159: 0.2666666667 | Q159: 0.07227185068 | R159: 0.06847816984 | S159: 0.05780543019 | T159: 7.227185068 | U159: 6.847816984 | V159: 5.780543019 | W159: 6.472658491 | X159: 6.851413459 | Y159: 6.450150596 | AA159: 0.06851413459 | AB159: 0.0722794214 | AC159: 0.06847630038 | AD159: 0.05781290677 | AE159: 18.43125246 | AF159: 17.4614566 | AG159: 14.74229123 | AH159: 0.2977546244 | AI159: 0.2898921518 | AJ159: 0.2663840012 | AK159: 75.92742922 | AL159: 73.9224987 | AM159: 67.92792031
A160: RAL 7023 | B160: 40 | C160: 20 | D160: 40 | E160: 40 | F160: 128 | G160: 128 | H160: 118 | I160: #808076 | J160: Concrete grey | K160: 128 | L160: 128 | M160: 118 | N160: 0.5019607843 | O160: 0.5019607843 | P160: 0.462745098 | Q160: 0.2158605001 | R160: 0.2158605001 | S160: 0.1811642442 | T160: 21.58605001 | U160: 21.58605001 | V160: 18.11642442 | W160: 19.89127312 | X160: 21.33554304 | Y160: 20.20932934 | AA160: 0.2133554304 | AB160: 0.2158845665 | AC160: 0.2158557582 | AD160: 0.1811880699 | AE160: 55.05056445 | AF160: 55.04321834 | AG160: 46.20295781 | AH160: 0.5016866567 | AI160: 0.5016556863 | AJ160: 0.4624734681 | AK160: 127.9300975 | AL160: 127.9222 | AM160: 117.9307344
A161: RAL 7024 | B161: 80 | C161: 60 | D161: 50 | E161: 40 | F161: 69 | G161: 73 | H161: 78 | I161: #45494e | J161: Graphite grey | K161: 69 | L161: 73 | M161: 78 | N161: 0.2705882353 | O161: 0.2862745098 | P161: 0.3058823529 | Q161: 0.05951123816 | R161: 0.06662593864 | S161: 0.07618538148 | T161: 5.951123816 | U161: 6.662593864 | V161: 7.618538148 | W161: 6.211933163 | X161: 6.580354509 | Y161: 8.150458388 | AA161: 0.06580354509 | AB161: 0.05952102993 | AC161: 0.06662577313 | AD161: 0.07619655772 | AE161: 15.17786263 | AF161: 16.98957215 | AG161: 19.43012222 | AH161: 0.2703105555 | AI161: 0.2859741566 | AJ161: 0.3056044106 | AK161: 68.92919166 | AL161: 72.92340992 | AM161: 77.92912471
A162: RAL 7026 | B162: 60 | C162: 20 | D162: 30 | E162: 80 | F162: 55 | G162: 67 | H162: 69 | I162: #374345 | J162: Granite grey | K162: 55 | L162: 67 | M162: 69 | N162: 0.2156862745 | O162: 0.262745098 | P162: 0.2705882353 | Q162: 0.0382043716 | R162: 0.05612849005 | S162: 0.05951123816 | T162: 3.82043716 | U162: 5.612849005 | V162: 5.951123816 | W162: 4.656880938 | X162: 5.256205688 | Y162: 6.399329226 | AA162: 0.05256205688 | AB162: 0.03821243296 | AC162: 0.05612939274 | AD162: 0.05952027477 | AE162: 9.744170405 | AF162: 14.31299515 | AG162: 15.17767007 | AH162: 0.2154100716 | AI162: 0.2624472273 | AJ162: 0.2703088342 | AK162: 54.92956826 | AL162: 66.92404295 | AM162: 68.92875273
A163: RAL 7030 | B163: 20 | C163: 10 | D163: 20 | E163: 40 | F163: 146 | G163: 142 | H163: 133 | I163: #928e85 | J163: Stone grey | K163: 146 | L163: 142 | M163: 133 | N163: 0.5725490196 | O163: 0.5568627451 | P163: 0.5215686275 | Q163: 0.2874408377 | R163: 0.270497791 | S163: 0.2345505822 | T163: 28.74408377 | U163: 27.0497791 | V163: 23.45505822 | W163: 25.76069916 | X163: 27.15044943 | Y163: 26.07312732 | AA163: 0.2715044943 | AB163: 0.2874713585 | AC163: 0.2704903952 | AD163: 0.2345811339 | AE163: 73.30519643 | AF163: 68.97505078 | AG163: 59.81818915 | AH163: 0.5722767829 | AI163: 0.5565557745 | AJ163: 0.5212999187 | AK163: 145.9305796 | AL163: 141.9217225 | AM163: 132.9314793
A164: RAL 7031 | B164: 60 | C164: 30 | D164: 30 | E164: 40 | F164: 91 | G164: 104 | H164: 109 | I164: #5b686d | J164: Blue grey | K164: 91 | L164: 104 | M164: 109 | N164: 0.3568627451 | O164: 0.4078431373 | P164: 0.4274509804 | Q164: 0.1046164841 | R164: 0.138431615 | S164: 0.152926152 | T164: 10.46164841 | U164: 13.8431615 | V164: 15.2926152 | W164: 12.0250154 | X164: 13.22890238 | Y164: 16.38764541 | AA164: 0.1322890238 | AB164: 0.1046367533 | AC164: 0.1384329948 | AD164: 0.152949135 | AE164: 26.68237208 | AF164: 35.30041367 | AG164: 39.00202943 | AH164: 0.3565959921 | AI164: 0.4075450594 | AJ164: 0.4271811902 | AK164: 90.93197799 | AL164: 103.9239901 | AM164: 108.9312035
A165: RAL 7032 | B165: 0 | C165: 0 | D165: 20 | E165: 40 | F165: 181 | G165: 176 | H165: 161 | I165: #b5b0a1 | J165: Pebble grey | K165: 181 | L165: 176 | M165: 161 | N165: 0.7098039216 | O165: 0.6901960784 | P165: 0.631372549 | Q165: 0.4620769997 | R165: 0.4341536362 | S165: 0.3564001441 | T165: 46.20769997 | U165: 43.41536362 | V165: 35.64001441 | W165: 41.0144121 | X165: 43.44763411 | Y165: 39.94275365 | AA165: 0.4344763411 | AB165: 0.4621238131 | AC165: 0.434141105 | AD165: 0.3564456312 | AE165: 117.8415723 | AF165: 110.7059818 | AG165: 90.89363595 | AH165: 0.7095362052 | AI165: 0.6898871163 | AJ165: 0.6311090481 | AK165: 180.9317323 | AL165: 175.9212147 | AM165: 160.9328073
A166: RAL 7033 | B166: 30 | C166: 10 | D166: 30 | E166: 40 | F166: 127 | G166: 130 | H166: 116 | I166: #7f8274 | J166: Cement grey | K166: 127 | L166: 130 | M166: 116 | N166: 0.4980392157 | O166: 0.5098039216 | P166: 0.4549019608 | Q166: 0.2122307574 | R166: 0.2232279573 | S166: 0.1746474037 | T166: 21.22307574 | U166: 22.32279573 | V166: 17.46474037 | W166: 19.88741383 | X166: 21.73824366 | Y166: 19.67071833 | AA166: 0.2173824366 | AB166: 0.2122545708 | AC166: 0.2232237678 | AD166: 0.1746702192 | AE166: 54.12491555 | AF166: 56.92206078 | AG166: 44.5409059 | AH166: 0.4977650706 | AI166: 0.5094995048 | AJ166: 0.4546297149 | AK166: 126.930093 | AL166: 129.9223737 | AM166: 115.9305773
A167: RAL 7034 | B167: 5 | C167: 5 | D167: 40 | E167: 40 | F167: 146 | G167: 136 | H167: 111 | I167: #92886f | J167: Yellow grey | K167: 146 | L167: 136 | M167: 111 | N167: 0.5725490196 | O167: 0.5333333333 | P167: 0.4352941176 | Q167: 0.2874408377 | R167: 0.2462013267 | S167: 0.1589608351 | T167: 28.74408377 | U167: 24.62013267 | V167: 15.89608351 | W167: 23.52746266 | X167: 24.86700833 | Y167: 18.598708 | AA167: 0.2486700833 | AB167: 0.2874620833 | AC167: 0.2461904431 | AD167: 0.1589781133 | AE167: 73.30283123 | AF167: 62.77856299 | AG167: 40.53941888 | AH167: 0.5722683458 | AI167: 0.5330224966 | AJ167: 0.4350163221 | AK167: 145.9284282 | AL167: 135.9207366 | AM167: 110.9291621
A168: RAL 7035 | B168: 5 | C168: 0 | D168: 5 | E168: 20 | F168: 197 | G168: 199 | H168: 196 | I168: #c5c7c4 | J168: Light grey | K168: 197 | L168: 199 | M168: 196 | N168: 0.7725490196 | O168: 0.7803921569 | P168: 0.768627451 | Q168: 0.5583403896 | R168: 0.5711248295 | S168: 0.5520114015 | T168: 55.83403896 | U168: 57.11248295 | V168: 55.20114015 | W168: 53.41318737 | X168: 56.70268681 | Y168: 60.35408863 | AA168: 0.5670268681 | AB168: 0.5584122059 | AC168: 0.5711156802 | AD168: 0.5520876761 | AE168: 142.3951125 | AF168: 145.6344985 | AG168: 140.7823574 | AH168: 0.7722933692 | AI168: 0.7800865807 | AJ168: 0.768374868 | AK168: 196.9348092 | AL168: 198.9220781 | AM168: 195.9355913
A169: RAL 7036 | B169: 10 | C169: 10 | D169: 10 | E169: 40 | F169: 151 | G169: 147 | H169: 146 | I169: #979392 | J169: Platinum grey | K169: 151 | L169: 147 | M169: 146 | N169: 0.5921568627 | O169: 0.5764705882 | P169: 0.5725490196 | Q169: 0.3094689228 | R169: 0.2917706498 | S169: 0.2874408377 | T169: 30.94689228 | U169: 29.17706498 | V169: 28.74408377 | W169: 28.38452394 | X169: 29.52206902 | Y169: 31.39643279 | AA169: 0.2952206902 | AB169: 0.3095055577 | AC169: 0.2917637404 | AD169: 0.287479862 | AE169: 78.92391722 | AF169: 74.3997538 | AG169: 73.30736481 | AH169: 0.5918887826 | AI169: 0.5761643574 | AJ169: 0.5722845177 | AK169: 150.9316396 | AL169: 146.9219111 | AM169: 145.932552
A170: RAL 7037 | B170: 30 | C170: 20 | D170: 20 | E170: 40 | F170: 122 | G170: 123 | H170: 122 | I170: #7a7b7a | J170: Dusty grey | K170: 122 | L170: 123 | M170: 122 | N170: 0.4784313725 | O170: 0.4823529412 | P170: 0.4784313725 | Q170: 0.1946178304 | R170: 0.1980693196 | S170: 0.1946178304 | T170: 19.46178304 | U170: 19.80693196 | V170: 19.46178304 | W170: 18.62185003 | X170: 19.70863355 | Y170: 21.23502349 | AA170: 0.1970863355 | AB170: 0.1946430521 | AC170: 0.1980661427 | AD170: 0.1946448045 | AE170: 49.63397827 | AF170: 50.50686639 | AG170: 49.63442514 | AH170: 0.4781601758 | AI170: 0.4820493501 | AJ170: 0.478162177 | AK170: 121.9308448 | AL170: 122.9225843 | AM170: 121.9313551
A171: RAL 7038 | B171: 30 | C171: 10 | D171: 20 | E171: 20 | F171: 176 | G171: 176 | H171: 169 | I171: #b0b0a9 | J171: Agate grey | K171: 176 | L171: 176 | M171: 169 | N171: 0.6901960784 | O171: 0.6901960784 | P171: 0.662745098 | Q171: 0.4341536362 | R171: 0.4341536362 | S171: 0.3967552307 | T171: 43.41536362 | U171: 43.41536362 | V171: 39.67552307 | W171: 40.5912619 | X171: 43.14534713 | Y171: 43.72461254 | AA171: 0.4314534713 | AB171: 0.4342055176 | AC171: 0.4341450494 | AD171: 0.3968088373 | AE171: 110.722407 | AF171: 110.7069876 | AG171: 101.1862535 | AH171: 0.6899331818 | AI171: 0.6898899373 | AJ171: 0.6624855032 | AK171: 175.9329613 | AL171: 175.921934 | AM171: 168.9338033
A172: RAL 7039 | B172: 50 | C172: 40 | D172: 50 | E172: 40 | F172: 107 | G172: 102 | H172: 94 | I172: #6b665e | J172: Quartz grey | K172: 107 | L172: 102 | M172: 94 | N172: 0.4196078431 | O172: 0.4 | P172: 0.368627451 | Q172: 0.1470272665 | R172: 0.1328683216 | S172: 0.1119324278 | T172: 14.70272665 | U172: 13.28683216 | V172: 11.19324278 | W172: 12.83515597 | X172: 13.43669417 | Y172: 12.50673028 | AA172: 0.1343669417 | AB172: 0.1470417527 | AC172: 0.1328640156 | AD172: 0.1119466432 | AE172: 37.49564693 | AF172: 33.88032399 | AG172: 28.54639401 | AH172: 0.4193273266 | AI172: 0.399693856 | AJ172: 0.368349867 | AK172: 106.9284683 | AL172: 101.9219333 | AM172: 93.92921607
A173: RAL 7040 | B173: 20 | C173: 5 | D173: 10 | E173: 40 | F173: 152 | G173: 158 | H173: 161 | I173: #989ea1 | J173: Window grey | K173: 152 | L173: 158 | M173: 161 | N173: 0.5960784314 | O173: 0.6196078431 | P173: 0.631372549 | Q173: 0.3139887134 | R173: 0.3419144249 | S173: 0.3564001441 | T173: 31.39887134 | U173: 34.19144249 | V173: 35.64001441 | W173: 31.60877698 | X173: 33.70232876 | Y173: 38.55745186 | AA173: 0.3370232876 | AB173: 0.3140350251 | AC173: 0.3419117122 | AD173: 0.3564511104 | AE173: 80.07893139 | AF173: 87.18748662 | AG173: 90.89503316 | AH173: 0.5958184424 | AI173: 0.619305613 | AJ173: 0.6311134445 | AK173: 151.9337028 | AL173: 157.9229313 | AM173: 160.9339284
A174: RAL 7042 | B174: 30 | C174: 10 | D174: 20 | E174: 40 | F174: 142 | G174: 146 | H174: 145 | I174: #8e9291 | J174: Traffic grey A | K174: 142 | L174: 146 | M174: 145 | N174: 0.5568627451 | O174: 0.5725490196 | P174: 0.568627451 | Q174: 0.270497791 | R174: 0.2874408377 | S174: 0.2831487404 | T174: 27.0497791 | U174: 28.74408377 | V174: 28.31487404 | W174: 26.54504802 | X174: 28.35288566 | Y174: 30.8616433 | AA174: 0.2835288566 | AB174: 0.2705347839 | AC174: 0.2874374281 | AD174: 0.2831884529 | AE174: 68.9863699 | AF174: 73.29654415 | AG174: 72.2130555 | AH174: 0.5565976093 | AI174: 0.5722459179 | AJ174: 0.5683638935 | AK174: 141.9323904 | AL174: 145.9227091 | AM174: 144.9327929
A175: RAL 7043 | B175: 30 | C175: 10 | D175: 20 | E175: 80 | F175: 79 | G175: 82 | H175: 80 | I175: #4f5250 | J175: Traffic grey B | K175: 79 | L175: 82 | M175: 80 | N175: 0.3098039216 | O175: 0.3215686275 | P175: 0.3137254902 | Q175: 0.07818742181 | R175: 0.08437621154 | S175: 0.08021982031 | T175: 7.818742181 | U175: 8.437621154 | V175: 8.021982031 | W175: 7.689710357 | X175: 8.27603834 | Y175: 8.781560087 | AA175: 0.0827603834 | AB175: 0.07819800176 | AC175: 0.08437524576 | AD175: 0.08023101398 | AE175: 19.94049045 | AF175: 21.51568767 | AG175: 20.45890856 | AH175: 0.3095244889 | AI175: 0.3212668315 | AJ175: 0.3134469272 | AK175: 78.92874467 | AL175: 81.92304203 | AM175: 79.92896645
A176: RAL 7044 | B176: 0 | C176: 0 | D176: 15 | E176: 30 | F176: 183 | G176: 179 | H176: 168 | I176: #b7b3a8 | J176: Silk grey | K176: 183 | L176: 179 | M176: 168 | N176: 0.7176470588 | O176: 0.7019607843 | P176: 0.6588235294 | Q176: 0.4735314961 | R176: 0.4507857828 | S176: 0.3915724777 | T176: 47.35314961 | U176: 45.07857828 | V176: 39.15724777 | W176: 42.71642172 | X176: 45.13463209 | Y176: 43.50624633 | AA176: 0.4513463209 | AB176: 0.4735825781 | AC176: 0.4507740207 | AD176: 0.3916237172 | AE176: 120.7635574 | AF176: 114.9473753 | AG176: 99.86404789 | AH176: 0.7173817864 | AI176: 0.7016525547 | AJ176: 0.6585624479 | AK176: 182.9323555 | AL176: 178.9214014 | AM176: 167.9334242
A177: RAL 7045 | B177: 20 | C177: 10 | D177: 10 | E177: 40 | F177: 141 | G177: 146 | H177: 149 | I177: #8d9295 | J177: Telegrey 1 | K177: 141 | L177: 146 | M177: 149 | N177: 0.5529411765 | O177: 0.5725490196 | P177: 0.5843137255 | Q177: 0.2663556048 | R177: 0.2874408377 | S177: 0.3005437944 | T177: 26.63556048 | U177: 28.74408377 | V177: 30.05437944 | W177: 26.68820499 | X177: 28.39041507 | Y177: 32.50704876 | AA177: 0.2839041507 | AB177: 0.2663945746 | AC177: 0.287438348 | AD177: 0.3005867147 | AE177: 67.93061651 | AF177: 73.29677874 | AG177: 76.64961226 | AH177: 0.5526782358 | AI177: 0.5722467548 | AJ177: 0.5840517654 | AK177: 140.9329501 | AL177: 145.9229225 | AM177: 148.9332002
A178: RAL 7046 | B178: 30 | C178: 10 | D178: 10 | E178: 40 | F178: 127 | G178: 134 | H178: 138 | I178: #7f868a | J178: Telegrey 2 | K178: 127 | L178: 134 | M178: 138 | N178: 0.4980392157 | O178: 0.5254901961 | P178: 0.5411764706 | Q178: 0.2122307574 | R178: 0.2383975738 | S178: 0.2541520943 | T178: 21.22307574 | U178: 23.83975738 | V178: 25.41520943 | W178: 21.86493898 | X178: 23.3971985 | Y178: 27.40846101 | AA178: 0.233971985 | AB178: 0.2122638313 | AC178: 0.2383965102 | AD178: 0.2541888709 | AE178: 54.12727697 | AF178: 60.7911101 | AG178: 64.81816208 | AH178: 0.4977751245 | AI178: 0.5251891169 | AJ178: 0.5409124143 | AK178: 126.9326568 | AL178: 133.9232248 | AM178: 137.9326656
A179: RAL 7047 | B179: 0 | C179: 0 | D179: 5 | E179: 20 | F179: 200 | G179: 200 | H179: 199 | I179: #c8c8c7 | J179: Telegrey 4 | K179: 200 | L179: 200 | M179: 199 | N179: 0.7843137255 | O179: 0.7843137255 | P179: 0.7803921569 | Q179: 0.5775804404 | R179: 0.5775804404 | S179: 0.5711248295 | T179: 57.75804404 | U179: 57.75804404 | V179: 57.11248295 | W179: 54.78249708 | X179: 57.71143453 | Y179: 62.28490414 | AA179: 0.5771143453 | AB179: 0.5776541107 | AC179: 0.5775702877 | AD179: 0.5712037485 | AE179: 147.3017982 | AF179: 147.2804234 | AG179: 145.6569559 | AH179: 0.7840583298 | AI179: 0.7840075782 | AJ179: 0.7801402532 | AK179: 199.9348741 | AL179: 199.9219324 | AM179: 198.9357646
A180: RAL 7048 | B180: 60 | C180: 60 | D180: 70 | E180: 0 | F180: 129 | G180: 123 | H180: 115 | I180: #817b73 | J180: Pearl mouse grey | K180: 129 | L180: 123 | M180: 115 | N180: 0.5058823529 | O180: 0.4823529412 | P180: 0.4509803922 | Q180: 0.2195261997 | R180: 0.1980693196 | S180: 0.1714411007 | T180: 21.95261997 | U180: 19.80693196 | V180: 17.14411007 | W180: 19.23073121 | X180: 20.07084949 | Y180: 19.08014848 | AA180: 0.2007084949 | AB180: 0.2195482773 | AC180: 0.1980630005 | AD180: 0.1714630833 | AE180: 55.98481071 | AF180: 50.50606513 | AG180: 43.72308625 | AH180: 0.5056058554 | AI180: 0.4820457981 | AJ180: 0.4507074237 | AK180: 128.9294931 | AL180: 122.9216785 | AM180: 114.930393
A181: RAL 8000 | B181: 50 | C181: 50 | D181: 80 | E181: 10 | F181: 137 | G181: 105 | H181: 62 | I181: #89693e | J181: Green brown | K181: 137 | L181: 105 | M181: 62 | N181: 0.537254902 | O181: 0.4117647059 | P181: 0.2431372549 | Q181: 0.2501582847 | R181: 0.1412632911 | S181: 0.04817182423 | T181: 25.01582847 | U181: 14.12632911 | V181: 4.817182423 | W181: 16.23760438 | X181: 15.76931629 | Y181: 6.745395813 | AA181: 0.1576931629 | AB181: 0.2501636112 | AC181: 0.1412473589 | AD181: 0.04817102734 | AE181: 63.79172085 | AF181: 36.01807653 | AG181: 12.28361197 | AH181: 0.5369601563 | AI181: 0.4114427704 | AJ181: 0.2428351999 | AK181: 136.9248399 | AL181: 104.9179064 | AM181: 61.92297598
A182: RAL 8001 | B182: 40 | C182: 60 | D182: 90 | E182: 10 | F182: 157 | G182: 98 | H182: 43 | I182: #9d622b | J182: Ochre brown | K182: 157 | L182: 98 | M182: 43 | N182: 0.6156862745 | O182: 0.3843137255 | P182: 0.168627451 | Q182: 0.337163615 | R182: 0.1221387722 | S182: 0.02415763245 | T182: 33.7163615 | U182: 12.21387722 | V182: 2.415763245 | W182: 18.70835525 | X182: 16.07788155 | Y182: 4.402802906 | AA182: 0.1607788155 | AB182: 0.3371631619 | AC182: 0.1221125365 | AD182: 0.02414939948 | AE182: 85.97660628 | AF182: 31.13869682 | AG182: 6.158096866 | AH182: 0.6153858989 | AI182: 0.383974404 | AJ182: 0.1682956925 | AK182: 156.9234042 | AL182: 97.91347302 | AM182: 42.91540159
A183: RAL 8002 | B183: 60 | C183: 80 | D183: 80 | E183: 10 | F183: 121 | G183: 77 | H183: 62 | I183: #794d3e | J183: Signal brown | K183: 121 | L183: 77 | M183: 62 | N183: 0.4745098039 | O183: 0.3019607843 | P183: 0.2431372549 | Q183: 0.1912016827 | R183: 0.07421356838 | S183: 0.04817182423 | T183: 19.12016827 | U183: 7.421356838 | V183: 4.817182423 | W183: 11.40853603 | X183: 9.720502757 | Y183: 5.832376876 | AA183: 0.09720502757 | AB183: 0.1912053634 | AC183: 0.07419996077 | AD183: 0.04817320874 | AE183: 48.75736767 | AF183: 18.92099 | AG183: 12.28416823 | AH183: 0.4742140511 | AI183: 0.3016335114 | AJ183: 0.2428408252 | AK183: 120.924583 | AL183: 76.91654541 | AM183: 61.92441043
A184: RAL 8003 | B184: 50 | C184: 70 | D184: 80 | E184: 10 | F184: 126 | G184: 75 | H184: 38 | I184: #7e4b26 | J184: Clay brown | K184: 126 | L184: 75 | M184: 38 | N184: 0.4941176471 | O184: 0.2941176471 | P184: 0.1490196078 | Q184: 0.2086368701 | R184: 0.0703600957 | S184: 0.01938236096 | T184: 20.86368701 | U184: 7.03600957 | V184: 1.938236096 | W184: 11.47011316 | X184: 9.60771455 | Y184: 3.083654909 | AA184: 0.0960771455 | AB184: 0.208636817 | AC184: 0.07034371851 | AD184: 0.01937804494 | AE184: 53.20238832 | AF184: 17.93764822 | AG184: 4.941401459 | AH184: 0.4938175887 | AI184: 0.2937837858 | AJ184: 0.1487006772 | AK184: 125.9234851 | AL184: 74.91486538 | AM184: 37.91867268
A185: RAL 8004 | B185: 40 | C185: 80 | D185: 80 | E185: 10 | F185: 141 | G185: 73 | H185: 49 | I185: #8d4931 | J185: Copper brown | K185: 141 | L185: 73 | M185: 49 | N185: 0.5529411765 | O185: 0.2862745098 | P185: 0.1921568627 | Q185: 0.2663556048 | R185: 0.06662593864 | S185: 0.03071344373 | T185: 26.63556048 | U185: 6.662593864 | V185: 3.071344373 | W185: 13.92142637 | X185: 10.64955835 | Y185: 4.227560333 | AA185: 0.1064955835 | AB185: 0.2663550717 | AC185: 0.06660399403 | AD185: 0.03070898186 | AE185: 67.92054329 | AF185: 16.98401848 | AG185: 7.830790373 | AH185: 0.5526406695 | AI185: 0.2859276696 | AJ185: 0.1918419015 | AK185: 140.9233707 | AL185: 72.91155575 | AM185: 48.91968487
A186: RAL 8007 | B186: 60 | C186: 70 | D186: 80 | E186: 20 | F186: 112 | G186: 69 | H186: 42 | I186: #70452a | J186: Fawn brown | K186: 112 | L186: 69 | M186: 42 | N186: 0.4392156863 | O186: 0.2705882353 | P186: 0.1647058824 | Q186: 0.1620293756 | R186: 0.05951123816 | S186: 0.02315336618 | T186: 16.20293756 | U186: 5.951123816 | V186: 2.315336618 | W186: 9.228131588 | X186: 7.868155583 | Y186: 3.222818109 | AA186: 0.07868155583 | AB186: 0.1620304364 | AC186: 0.0594990116 | AD186: 0.02315143682 | AE186: 41.31776127 | AF186: 15.17224796 | AG186: 5.90361639 | AH186: 0.4389170343 | AI186: 0.270260362 | AJ186: 0.1643982539 | AK186: 111.9238438 | AL186: 68.9163923 | AM186: 41.92155473
A187: RAL 8008 | B187: 50 | C187: 60 | D187: 70 | E187: 20 | F187: 114 | G187: 74 | H187: 37 | I187: #724a25 | J187: Olive brown | K187: 114 | L187: 74 | M187: 37 | N187: 0.4470588235 | O187: 0.2901960784 | P187: 0.1450980392 | Q187: 0.1682694002 | R187: 0.06847816984 | S187: 0.01850022013 | T187: 16.82694002 | U187: 6.847816984 | V187: 1.850022013 | W187: 9.722138391 | X187: 8.608537745 | Y187: 2.89946565 | AA187: 0.08608537745 | AB187: 0.1682702246 | AC187: 0.06846565838 | AD187: 0.0184972428 | AE187: 42.90890728 | AF187: 17.45874289 | AG187: 4.716796914 | AH187: 0.4467598484 | AI187: 0.2898697979 | AJ187: 0.1447846208 | AK187: 113.9237614 | AL187: 73.91679847 | AM187: 36.9200783
A188: RAL 8011 | B188: 10 | C188: 60 | D188: 100 | E188: 80 | F188: 90 | G188: 56 | H188: 38 | I188: #5a3826 | J188: Nut brown | K188: 90 | L188: 56 | M188: 38 | N188: 0.3529411765 | O188: 0.2196078431 | P188: 0.1490196078 | Q188: 0.1022417331 | R188: 0.03954623528 | S188: 0.01938236096 | T188: 10.22417331 | U188: 3.954623528 | V188: 1.938236096 | W188: 5.980474061 | X188: 5.141946639 | Y188: 2.511011078 | AA188: 0.05141946639 | AB188: 0.10224301 | AC188: 0.03953876447 | AD188: 0.01938198156 | AE188: 26.07196754 | AF188: 10.08238494 | AG188: 4.942405297 | AH188: 0.3526432992 | AI188: 0.2192862265 | AJ188: 0.1487179438 | AK188: 89.9240413 | AL188: 55.91798776 | AM188: 37.92307568
A189: RAL 8012 | B189: 5 | C189: 100 | D189: 100 | E189: 80 | F189: 102 | G189: 51 | H189: 43 | I189: #66332b | J189: red brown | K189: 102 | L189: 51 | M189: 43 | N189: 0.4 | O189: 0.2 | P189: 0.168627451 | Q189: 0.1328683216 | R189: 0.03310476657 | S189: 0.02415763245 | T189: 13.28683216 | U189: 3.310476657 | V189: 2.415763245 | W189: 7.099361299 | X189: 5.366851528 | Y189: 2.947227642 | AA189: 0.05366851528 | AB189: 0.1328689983 | AC189: 0.03309407229 | AD189: 0.0241569584 | AE189: 33.88159456 | AF189: 8.438988433 | AG189: 6.160024392 | AH189: 0.3997009656 | AI189: 0.1996656734 | AJ189: 0.1683248511 | AK189: 101.9237462 | AL189: 50.91474671 | AM189: 42.92283703
A190: RAL 8014 | B190: 30 | C190: 60 | D190: 100 | E190: 80 | F190: 74 | G190: 53 | H190: 38 | I190: #4a3526 | J190: Sepia brown | K190: 74 | L190: 53 | M190: 38 | N190: 0.2901960784 | O190: 0.2078431373 | P190: 0.1490196078 | Q190: 0.06847816984 | R190: 0.03560131488 | S190: 0.01938236096 | T190: 6.847816984 | U190: 3.560131488 | V190: 1.938236096 | W190: 4.44699436 | X190: 4.141992577 | Y190: 2.39882395 | AA190: 0.04141992577 | AB190: 0.06848014693 | AC190: 0.03559697518 | AD190: 0.01938323081 | AE190: 17.46243747 | AF190: 9.07722867 | AG190: 4.942723856 | AH190: 0.2899002311 | AI190: 0.2075297869 | AJ190: 0.1487234228 | AK190: 73.92455892 | AL190: 52.92009565 | AM190: 37.92447282
A191: RAL 8015 | B191: 0 | C191: 90 | D191: 100 | E191: 80 | F191: 94 | G191: 47 | H191: 38 | I191: #5e2f26 | J191: Chestnut brown | K191: 94 | L191: 47 | M191: 38 | N191: 0.368627451 | O191: 0.1843137255 | P191: 0.1490196078 | Q191: 0.1119324278 | R191: 0.0284260395 | S191: 0.01938236096 | T191: 11.19324278 | U191: 2.84260395 | V191: 1.938236096 | W191: 5.982460112 | X191: 4.552654407 | Y191: 2.397161386 | AA191: 0.04552654407 | AB191: 0.1119329195 | AC191: 0.02841702995 | AD191: 0.019381623 | AE191: 28.54289448 | AF191: 7.246342638 | AG191: 4.942313865 | AH191: 0.3683282263 | AI191: 0.1839821185 | AJ191: 0.1487163712 | AK191: 93.92369772 | AL191: 46.91544021 | AM191: 37.92267467
A192: RAL 8016 | B192: 40 | C192: 80 | D192: 80 | E192: 80 | F192: 76 | G192: 43 | H192: 32 | I192: #4c2b20 | J192: Mahogany brown | K192: 76 | L192: 43 | M192: 32 | N192: 0.2980392157 | O192: 0.168627451 | P192: 0.1254901961 | Q192: 0.07227185068 | R192: 0.02415763245 | S192: 0.0144438436 | T192: 7.227185068 | U192: 2.415763245 | V192: 1.44438436 | W192: 4.105079435 | X192: 3.368537969 | Y192: 1.800330984 | AA192: 0.03368537969 | AB192: 0.07227265203 | AC192: 0.02415217502 | AD192: 0.01444370588 | AE192: 18.42952627 | AF192: 6.15880463 | AG192: 3.683144999 | AH192: 0.2977408467 | AI192: 0.1683063998 | AJ192: 0.125189479 | AK192: 75.92391591 | AL192: 42.91813195 | AM192: 31.92331715
A193: RAL 8017 | B193: 60 | C193: 80 | D193: 80 | E193: 80 | F193: 68 | G193: 47 | H193: 41 | I193: #442f29 | J193: Chocolate brown | K193: 68 | L193: 47 | M193: 41 | N193: 0.2666666667 | O193: 0.1843137255 | P193: 0.1607843137 | Q193: 0.05780543019 | R193: 0.0284260395 | S193: 0.02217388479 | T193: 5.780543019 | U193: 2.84260395 | V193: 2.217388479 | W193: 3.800649734 | X193: 3.422069239 | Y193: 2.558030621 | AA193: 0.03422069239 | AB193: 0.05780764572 | AC193: 0.0284224618 | AD193: 0.02217563973 | AE193: 14.74094966 | AF193: 7.247727758 | AG193: 5.65478813 | AH193: 0.2663718035 | AI193: 0.184001175 | AJ193: 0.1604914294 | AK193: 67.9248099 | AL193: 46.92029962 | AM193: 40.9253145
A194: RAL 8019 | B194: 90 | C194: 90 | D194: 80 | E194: 80 | F194: 61 | G194: 54 | H194: 53 | I194: #3d3635 | J194: Grey brown | K194: =F194 -> 61 | L194: =G194 -> 54 | M194: =H194 -> 53 | N194: =K194/255 -> 0.2392156863 | O194: =L194/255 -> 0.2117647059 | P194: =M194/255 -> 0.2078431373 | Q194: =IF(N194>0.04045,((N194+0.055)/1.055)^2.4,N194/12.92) -> 0.04666508634 | R194: =IF(O194>0.04045,((O194+0.055)/1.055)^2.4,O194/12.92) -> 0.0368894504 | S194: =IF(P194>0.04045,((P194+0.055)/1.055)^2.4,P194/12.92) -> 0.03560131488 | T194: =Q194*100 -> 4.666508634 | U194: =R194*100 -> 3.68894504 | V194: =S194*100 -> 3.560131488 | W194: =T194*0.4124+U194*0.3576+V194*0.1805 -> 3.88623864 | X194: =T194*0.2126+U194*0.7152+V194*0.0722 -> 3.887474722 | Y194: =T194*0.0193+U194*0.1192+V194*0.9505 -> 3.913690844 | AA194: =X194/100 -> 0.03887474722 | AB194: 0.04666944034 | AC194: 0.03688781003 | AD194: 0.03560583986 | AE194: 11.90070729 | AF194: 9.406391557 | AG194: 9.079489164 | AH194: 0.238927124 | AI194: 0.2114597632 | AJ194: 0.2075570566 | AK194: 60.92641662 | AL194: 53.92223961 | AM194: 52.92704944
A195: RAL 8022 | B195: 100 | C195: 100 | D195: 80 | E195: 95 | F195: 26 | G195: 23 | H195: 24 | I195: #1a1718 | J195: Black brown | K195: 26 | L195: 23 | M195: 24 | N195: 0.1019607843 | O195: 0.09019607843 | P195: 0.09411764706 | Q195: 0.01032982303 | R195: 0.008568125618 | S195: 0.009134058702 | T195: 1.032982303 | U195: 0.8568125618 | V195: 0.9134058702 | W195: 0.8972678334 | X195: 0.8983522856 | Y195: 0.9902608955 | AA195: 0.008983522856 | AB195: =(3.2405*W195-1.5371*X195-0.4985*Y195)/100 -> 0.0103309406 | AC195: =(-0.9693*W195+1.876*X195+0.0416*Y195)/100 -> 0.008567820302 | AD195: =(0.0556*W195-0.204*X195+1.0572*Y195)/100 -> 0.009135280439 | AE195: =AB195*255 -> 2.634389852 | AF195: =AC195*255 -> 2.184794177 | AG195: =AD195*255 -> 2.329496512 | AH195: =1.055*AB195^(1/2.4)-0.0553 -> 0.1016678596 | AI195: =1.055*AC195^(1/2.4)-0.0553 -> 0.08989392261 | AJ195: =1.055*AD195^(1/2.4)-0.0553 -> 0.09382595732 | AK195: =AH195*255 -> 25.92530421 | AL195: =AI195*255 -> 22.92295027 | AM195: =AJ195*255 -> 23.92561912
A196: RAL 8023 | B196: 20 | C196: 70 | D196: 100 | E196: 20 | F196: 164 | G196: 87 | H196: 41 | I196: #a45729 | J196: Orange brown | K196: 164 | L196: 87 | M196: 41 | N196: 0.6431372549 | O196: 0.3411764706 | P196: 0.1607843137 | Q196: 0.3712376805 | R196: 0.09530746663 | S196: 0.02217388479 | T196: 37.12376805 | U196: 9.530746663 | V196: 2.217388479 | W196: 19.11827557 | X196: 14.86899855 | Y196: 3.960181475 | AA196: 0.1486899855 | AB196: 0.3712348385 | AC196: 0.09527640316 | AD196: 0.02216404273 | AE196: 94.66488382 | AF196: 24.29548281 | AG196: 5.651830897 | AH196: 0.642835028 | AI196: 0.3408226632 | AJ196: 0.1604444012 | AK196: 163.9229321 | AL196: 86.90977912 | AM196: 40.91332231
A197: RAL 8024 | B197: 30 | C197: 60 | D197: 70 | E197: 40 | F197: 121 | G197: 80 | H197: 56 | I197: #795038 | J197: Beige brown | K197: 121 | L197: 80 | M197: 56 | N197: 0.4745098039 | O197: 0.3137254902 | P197: 0.2196078431 | Q197: 0.1912016827 | R197: 0.08021982031 | S197: 0.03954623528 | T197: 19.12016827 | U197: 8.021982031 | V197: 3.954623528 | W197: 11.46762772 | X197: 10.08779314 | Y197: 5.084109169 | AA197: 0.1008779314 | AB197: 0.1912047236 | AC197: 0.08020627331 | AD197: 0.03954610513 | AE197: 48.75720451 | AF197: 20.45259969 | AG197: 10.08425681 | AH197: 0.4742133128 | AI197: 0.3133995439 | AJ197: 0.2193074666 | AK197: 120.9243948 | AL197: 79.9168837 | AM197: 55.92340398
A198: RAL 8025 | B198: 40 | C198: 50 | D198: 60 | E198: 40 | F198: 117 | G198: 88 | H198: 71 | I198: #755847 | J198: Pale brown | K198: 117 | L198: 88 | M198: 71 | N198: 0.4588235294 | O198: 0.3450980392 | P198: 0.2784313725 | Q198: 0.177888416 | R198: 0.09758734714 | S198: 0.06301001765 | T198: 17.7888416 | U198: 9.758734714 | V198: 6.301001765 | W198: 11.96317263 | X198: 11.21628712 | Y198: 7.495667999 | AA198: 0.1121628712 | AB198: 0.1778951547 | AC198: 0.09757671196 | AD198: 0.06301450034 | AE198: 45.36326445 | AF198: 24.88206155 | AG198: 16.06869759 | AH198: 0.4585316396 | AI198: 0.3447798707 | AJ198: 0.2781412561 | AK198: 116.9255681 | AL198: 87.91886702 | AM198: 70.92602032
A199: RAL 8028 | B199: 20 | C199: 50 | D199: 70 | E199: 80 | F199: 81 | G199: 58 | H199: 42 | I199: #513a2a | J199: Terra brown | K199: 81 | L199: 58 | M199: 42 | N199: 0.3176470588 | O199: 0.2274509804 | P199: 0.1647058824 | Q199: 0.08228270713 | R199: 0.04231141062 | S199: 0.02315336618 | T199: 8.228270713 | U199: 4.231141062 | V199: 2.315336618 | W199: 5.324313145 | X199: 4.942609745 | Y199: 2.863885095 | AA199: 0.04942609745 | AB199: 0.08228504589 | AC199: 0.0423061677 | AD199: 0.02315438745 | AE199: 20.9826867 | AF199: 10.78807276 | AG199: 5.9043688 | AH199: 0.3173514721 | AI199: 0.2271363968 | AJ199: 0.1644099202 | AK199: 80.92462538 | AL199: 57.91978119 | AM199: 41.92452966
A200: RAL 8029 | B200: 0 | C200: 80 | D200: 100 | E200: 50 | F200: 127 | G200: 64 | H200: 49 | I200: #7f4031 | J200: Pearl copper | K200: 127 | L200: 64 | M200: 49 | N200: 0.4980392157 | O200: 0.2509803922 | P200: 0.1921568627 | Q200: 0.2122307574 | R200: 0.05126945837 | S200: 0.03071344373 | T200: 21.22307574 | U200: 5.126945837 | V200: 3.071344373 | W200: 11.14016993 | X200: 8.400568629 | Y200: 3.940050132 | AA200: 0.08400568629 | AB200: 0.2122309162 | AC200: 0.05125206124 | AD200: 0.03071098448 | AE200: 54.11888362 | AF200: 13.06927562 | AG200: 7.831301041 | AH200: 0.497739388 | AI200: 0.2506371264 | AJ200: 0.1918486167 | AK200: 126.923544 | AL200: 63.91246723 | AM200: 48.92139725
... 14 more rows

Sheet PALETTE RAL classic
A1: RAL | B1: color sample | C1: coef.refl. Y
A2: RAL 1000 | C2: 0.498745206
A3: RAL 1001 | C3: 0.4598200914
A4: RAL 1002 | C4: 0.4355521567
A5: RAL 1003 | C5: 0.4828494123
A6: RAL 1004 | C6: 0.4106319327
A7: RAL 1005 | C7: 0.3213624953
A8: RAL 1006 | C8: 0.3621955324
A9: RAL 1007 | C9: 0.3601625658
A10: RAL 1011 | C10: 0.2511681611
A11: RAL 1012 | C11: 0.4617857978
A12: RAL 1013 | C12: 0.7003381883
A13: RAL 1014 | C13: 0.5718510145
A14: RAL 1015 | C14: 0.66252377
A15: RAL 1016 | C15: 0.706991988
A16: RAL 1017 | C16: 0.4854795147
A17: RAL 1018 | C17: 0.6277845334
A18: RAL 1019 | C18: 0.2894257518
A19: RAL 1020 | C19: 0.2805808979
A20: RAL 1021 | C20: 0.5320192862
A21: RAL 1023 | C21: 0.5297510512
A22: RAL 1024 | C22: 0.3060582739
A23: RAL 1026 | C23: 0.9278
A24: RAL 1027 | C24: 0.2342593974
A25: RAL 1028 | C25: 0.4470268957
A26: RAL 1032 | C26: 0.4236313661
A27: RAL 1033 | C27: 0.433347797
A28: RAL 1034 | C28: 0.4204829771
A29: RAL 1035 | C29: 0.2333174341
A30: RAL 1036 | C30: 0.1406241854
A31: RAL 1037 | C31: 0.3908303367
A32: RAL 2000 | C32: 0.2605728691
A33: RAL 2001 | C33: 0.1515296478
A34: RAL 2002 | C34: 0.1882805999
A35: RAL 2003 | C35: 0.3317897315
A36: RAL 2004 | C36: 0.2236183841
A37: RAL 2005 | C37: 0.265809032
A38: RAL 2007 | C38: 0.5310078943
A39: RAL 2008 | C39: 0.2862972048
A40: RAL 2009 | C40: 0.2173144863
A41: RAL 2010 | C41: 0.2139179953
A42: RAL 2011 | C42: 0.2735231787
A43: RAL 2012 | C43: 0.2398931674
A44: RAL 2013 | C44: 0.09689812668
A45: RAL 3000 | C45: 0.09905650553
A46: RAL 3001 | C46: 0.08351664203
A47: RAL 3002 | C47: 0.0822242274
A48: RAL 3003 | C48: 0.0587908712
A49: RAL 3004 | C49: 0.04077656714
A50: RAL 3005 | C50: 0.02918037465
A51: RAL 3007 | C51: 0.06269090572
A52: RAL 3009 | C52: 0.05896654596
A53: RAL 3011 | C53: 0.05448049613
A54: RAL 3012 | C54: 0.296124217
A55: RAL 3013 | C55: 0.08666871058
A56: RAL 3014 | C56: 0.2624233191
A57: RAL 3015 | C57: 0.4249371506
A58: RAL 3016 | C58: 0.1164971398
A59: RAL 3017 | C59: 0.1998382276
A60: RAL 3018 | C60: 0.1619153986
A61: RAL 3020 | C61: 0.115307525
A62: RAL 3022 | C62: 0.2402442566
A63: RAL 3024 | C63: 0.2324657766
A64: RAL 3026 | C64: 0.2299506063
A65: RAL 3027 | C65: 0.1043520933
A66: RAL 3028 | C66: 0.1476610834
A67: RAL 3031 | C67: 0.1083880955
A68: RAL 3032 | C68: 0.04444823426
A69: RAL 3033 | C69: 0.1121490644
A70: RAL 4001 | C70: 0.1485520898
A71: RAL 4002 | C71: 0.09402437387
A72: RAL 4003 | C72: 0.2217860051
A73: RAL 4004 | C73: 0.03980771786
A74: RAL 4005 | C74: 0.1608527491
A75: RAL 4006 | C75: 0.09448301074
A76: RAL 4007 | C76: 0.02867900885
A77: RAL 4008 | C77: 0.1168612204
A78: RAL 4009 | C78: 0.2629361578
A79: RAL 4010 | C79: 0.1569006722
A80: RAL 4011 | C80: 0.1398794671
A81: RAL 4012 | C81: 0.1517349585
A82: RAL 5000 | C82: 0.0739262945
A83: RAL 5001 | C83: 0.06190540845
A84: RAL 5002 | C84: 0.04258407234
A85: RAL 5003 | C85: 0.03775530187
A86: RAL 5004 | C86: 0.01288420808
A87: RAL 5005 | C87: 0.07935782749
A88: RAL 5007 | C88: 0.1322106479
A89: RAL 5008 | C89: 0.03957058559
A90: RAL 5009 | C90: 0.09880565109
A91: RAL 5010 | C91: 0.0704720056
A92: RAL 5011 | C92: 0.02273610306
A93: RAL 5012 | C93: 0.2126871953
A94: RAL 5013 | C94: 0.03027831912
A95: RAL 5014 | C95: 0.1952188848
A96: RAL 5015 | C96: 0.1754989252
A97: RAL 5017 | C97: 0.0937562069
A98: RAL 5018 | C98: 0.2039095231
A99: RAL 5019 | C99: 0.09644100846
A100: RAL 5020 | C100: 0.04288593366
A101: RAL 5021 | C101: 0.1405448897
A102: RAL 5022 | C102: 0.029550387
A103: RAL 5023 | C103: 0.1315485101
A104: RAL 5024 | C104: 0.2633279094
A105: RAL 5025 | C105: 0.1188171975
A106: RAL 5026 | C106: 0.02824659077
A107: RAL 6000 | C107: 0.1429596924
A108: RAL 6001 | C108: 0.1074180695
A109: RAL 6002 | C109: 0.07976067962
A110: RAL 6003 | C110: 0.0821823082
A111: RAL 6004 | C111: 0.04540497931
A112: RAL 6005 | C112: 0.04245889356
A113: RAL 6006 | C113: 0.04084170426
A114: RAL 6007 | C114: 0.02932170159
A115: RAL 6008 | C115: 0.03435375227
A116: RAL 6009 | C116: 0.03144708194
A117: RAL 6010 | C117: 0.1324206711
A118: RAL 6011 | C118: 0.1832471722
A119: RAL 6012 | C119: 0.0427135366
A120: RAL 6013 | C120: 0.18055026
A121: RAL 6014 | C121: 0.05377227944
A122: RAL 6015 | C122: 0.04595928542
A123: RAL 6016 | C123: 0.1062495334
A124: RAL 6017 | C124: 0.1762361626
A125: RAL 6018 | C125: 0.2563961946
A126: RAL 6019 | C126: 0.5743545874
A127: RAL 6020 | C127: 0.04913890317
A128: RAL 6021 | C128: 0.2951764856
A129: RAL 6022 | C129: 0.0341367692
A130: RAL 6024 | C130: 0.1682668042
A131: RAL 6025 | C131: 0.1384731101
A132: RAL 6026 | C132: 0.0873447639
A133: RAL 6027 | C133: 0.4288962698
A134: RAL 6028 | C134: 0.07386962941
A135: RAL 6029 | C135: 0.1170580085
A136: RAL 6032 | C136: 0.1614526483
A137: RAL 6033 | C137: 0.2016234306
A138: RAL 6034 | C138: 0.3662118046
A139: RAL 6035 | C139: 0.0564799908
A140: RAL 6036 | C140: 0.07350201839
A141: RAL 6037 | C141: 0.1862533309
A142: RAL 6038 | C142: 0.3312232834
A143: RAL 7000 | C143: 0.2369888801
A144: RAL 7001 | C144: 0.2982246298
A145: RAL 7002 | C145: 0.1900092116
A146: RAL 7003 | C146: 0.1811436279
A147: RAL 7004 | C147: 0.3277780981
A148: RAL 7005 | C148: 0.1540154268
A149: RAL 7006 | C149: 0.149677722
A150: RAL 7008 | C150: 0.1205533296
A151: RAL 7009 | C151: 0.1139747878
A152: RAL 7010 | C152: 0.1040088504
A153: RAL 7011 | C153: 0.09728908853
A154: RAL 7012 | C154: 0.1066309042
A155: RAL 7013 | C155: 0.08180913495
A156: RAL 7015 | C156: 0.08553358279
A157: RAL 7016 | C157: 0.04679349427
A158: RAL 7021 | C158: 0.0313347529
A159: RAL 7022 | C159: 0.06851413459
A160: RAL 7023 | C160: 0.2133554304
A161: RAL 7024 | C161: 0.06580354509
A162: RAL 7026 | C162: 0.05256205688
A163: RAL 7030 | C163: 0.2715044943
A164: RAL 7031 | C164: 0.1322890238
A165: RAL 7032 | C165: 0.4344763411
A166: RAL 7033 | C166: 0.2173824366
A167: RAL 7034 | C167: 0.2486700833
A168: RAL 7035 | C168: 0.5670268681
A169: RAL 7036 | C169: 0.2952206902
A170: RAL 7037 | C170: 0.1970863355
A171: RAL 7038 | C171: 0.4314534713
A172: RAL 7039 | C172: 0.1343669417
A173: RAL 7040 | C173: 0.3370232876
A174: RAL 7042 | C174: 0.2835288566
A175: RAL 7043 | C175: 0.0827603834
A176: RAL 7044 | C176: 0.4513463209
A177: RAL 7045 | C177: 0.2839041507
A178: RAL 7046 | C178: 0.233971985
A179: RAL 7047 | C179: 0.5771143453
A180: RAL 7048 | C180: 0.2007084949
A181: RAL 8000 | C181: 0.1576931629
A182: RAL 8001 | C182: 0.1607788155
A183: RAL 8002 | C183: 0.09720502757
A184: RAL 8003 | C184: 0.0960771455
A185: RAL 8004 | C185: 0.1064955835
A186: RAL 8007 | C186: 0.07868155583
A187: RAL 8008 | C187: 0.08608537745
A188: RAL 8011 | C188: 0.05141946639
A189: RAL 8012 | C189: 0.05366851528
A190: RAL 8014 | C190: 0.04141992577
A191: RAL 8015 | C191: 0.04552654407
A192: RAL 8016 | C192: 0.03368537969
A193: RAL 8017 | C193: 0.03422069239
A194: RAL 8019 | C194: 0.03887474722
A195: RAL 8022 | C195: 0.008983522856
A196: RAL 8023 | C196: 0.1486899855
A197: RAL 8024 | C197: 0.1008779314
A198: RAL 8025 | C198: 0.1121628712
A199: RAL 8028 | C199: 0.04942609745
A200: RAL 8029 | C200: 0.08400568629
... 14 more rows

Sheet NCS S (hidden)
A1: NCS S | B1: C | C1: M | D1: Y | E1: K | F1: sR | G1: sG | H1: sB | I1: sR | J1: sG | K1: sB | L1: var_R | M1: var_G | N1: var_B | O1: var_Rbis | P1: var_Gbis | Q1: var_Bbis | R1: var_Rtris | S1: var_Gtris | T1: var_Btris | U1: X | V1: Y | W1: Z | X1: color sample | Y1: coef.refl. Y
A2: NCS S 0300-N | B2: 0 | C2: 0 | D2: 0 | E2: 0 | F2: 255 | G2: 255 | H2: 255 | I2: =F2 -> 255 | J2: =G2 -> 255 | K2: =H2 -> 255 | L2: =I2/255 -> 1 | M2: =J2/255 -> 1 | N2: =K2/255 -> 1 | O2: =IF(L2>0.04045,((L2+0.055)/1.055)^2.4,L2/12.92) -> 1 | P2: =IF(M2>0.04045,((M2+0.055)/1.055)^2.4,M2/12.92) -> 1 | Q2: =IF(N2>0.04045,((N2+0.055)/1.055)^2.4,N2/12.92) -> 1 | R2: =O2*100 -> 100 | S2: =P2*100 -> 100 | T2: =Q2*100 -> 100 | U2: =R2*0.4124+S2*0.3576+T2*0.1805 -> 95.05 | V2: =R2*0.2126+S2*0.7152+T2*0.0722 -> 100 | W2: =R2*0.0193+S2*0.1192+T2*0.9505 -> 108.9 | Y2: =V2/100 -> 1
A3: NCS S 0500-N | B3: 0 | C3: 0 | D3: 1 | E3: 1 | F3: 252 | G3: 252 | H3: 251 | I3: 252 | J3: 252 | K3: 251 | L3: 0.9882352941 | M3: 0.9882352941 | N3: 0.9843137255 | O3: 0.9734452904 | P3: 0.9734452904 | Q3: 0.9646862479 | R3: 97.34452904 | S3: 97.34452904 | T3: 96.46862479 | U3: 92.36787414 | V3: 97.28128875 | W3: 105.1756451 | Y3: 0.9728128875
A4: NCS S 0502-B | B4: 3 | C4: 0 | D4: 0 | E4: 0 | F4: 250 | G4: 253 | H4: 255 | I4: 250 | J4: 253 | K4: 255 | L4: 0.9803921569 | M4: 0.9921568627 | N4: 1 | O4: 0.9559733532 | P4: 0.9822505503 | Q4: 1 | R4: 95.59733532 | S4: 98.22505503 | T4: 100 | U4: 92.59962077 | V4: 97.79455285 | W4: 108.6034551 | Y4: 0.9779455285
A5: NCS S 0502-B50G | B5: 3 | C5: 0 | D5: 4 | E5: 0 | F5: 250 | G5: 253 | H5: 248 | I5: 250 | J5: 253 | K5: 248 | L5: 0.9803921569 | M5: 0.9921568627 | N5: 0.9725490196 | O5: 0.9559733532 | P5: 0.9822505503 | Q5: 0.9386857285 | R5: 95.59733532 | S5: 98.22505503 | T5: 93.86857285 | U5: 91.49289817 | V5: 97.35186381 | W5: 102.7755336 | Y5: 0.9735186381
A6: NCS S 0502-G | B6: 3 | C6: 0 | D6: 5 | E6: 0 | F6: 250 | G6: 253 | H6: 247 | I6: 250 | J6: 253 | K6: 247 | L6: 0.9803921569 | M6: 0.9921568627 | N6: 0.968627451 | O6: 0.9559733532 | P6: 0.9822505503 | Q6: 0.9301108584 | R6: 95.59733532 | S6: 98.22505503 | T6: 93.01108584 | U6: 91.33812176 | V6: 97.28995325 | W6: 101.9604922 | Y6: 0.9728995325
A7: NCS S 0502-G50Y | B7: 2 | C7: 0 | D7: 5 | E7: 0 | F7: 252 | G7: 253 | H7: 247 | I7: 252 | J7: 253 | K7: 247 | L7: 0.9882352941 | M7: 0.9921568627 | N7: 0.968627451 | O7: 0.9734452904 | P7: 0.9822505503 | Q7: 0.9301108584 | R7: 97.34452904 | S7: 98.22505503 | T7: 93.01108584 | U7: 92.05866445 | V7: 97.66140663 | W7: 101.9942131 | Y7: 0.9766140663
A8: NCS S 0502-R | B8: 0 | C8: 2 | D8: 3 | E8: 0 | F8: 255 | G8: 251 | H8: 248 | I8: 255 | J8: 251 | K8: 248 | L8: 1 | M8: 0.9843137255 | N8: 0.9725490196 | O8: 1 | P8: 0.9646862479 | Q8: 0.9386857285 | R8: 100 | S8: 96.46862479 | T8: 93.86857285 | U8: 92.68045762 | V8: 97.03167141 | W8: 102.6511386 | Y8: 0.9703167141
A9: NCS S 0502-R50B | B9: 2 | C9: 2 | D9: 0 | E9: 0 | F9: 252 | G9: 251 | H9: 253 | I9: 252 | J9: 251 | K9: 253 | L9: 0.9882352941 | M9: 0.9843137255 | N9: 0.9921568627 | O9: 0.9734452904 | P9: 0.9646862479 | Q9: 0.9822505503 | R9: 97.34452904 | S9: 96.46862479 | T9: 98.22505503 | U9: 92.37168643 | V9: 96.7816563 | W9: 106.7407243 | Y9: 0.967816563
A10: NCS S 0502-Y | B10: 0 | C10: 0 | D10: 8 | E10: 0 | F10: 255 | G10: 253 | H10: 242 | I10: 255 | J10: 253 | K10: 242 | L10: 1 | M10: 0.9921568627 | N10: 0.9490196078 | O10: 1 | P10: 0.9822505503 | Q10: 0.8879231179 | R10: 100 | S10: 98.22505503 | T10: 88.79231179 | U10: 92.39229196 | V10: 97.92136427 | W10: 98.03551891 | Y10: 0.9792136427
A11: NCS S 0502-Y50R | B11: 0 | C11: 2 | D11: 10 | E11: 0 | F11: 255 | G11: 250 | H11: 237 | I11: 255 | J11: 250 | K11: 237 | L11: 1 | M11: 0.9803921569 | N11: 0.9294117647 | O11: 1 | P11: 0.9559733532 | Q11: 0.8468732315 | R11: 100 | S11: 95.59733532 | T11: 84.68732315 | U11: 90.71166894 | V11: 95.74563896 | W11: 93.82050303 | Y11: 0.9574563896
A12: NCS S 0505-B | B12: 5 | C12: 0 | D12: 2 | E12: 0 | F12: 247 | G12: 252 | H12: 251 | I12: 247 | J12: 252 | K12: 251 | L12: 0.968627451 | M12: 0.9882352941 | N12: 0.9843137255 | O12: 0.9301108584 | P12: 0.9734452904 | Q12: 0.9646862479 | R12: 93.01108584 | S12: 97.34452904 | T12: 96.46862479 | U12: 90.58076216 | V12: 96.35999873 | W12: 105.0920097 | Y12: 0.9635999873
A13: NCS S 0505-B20G | B13: 7 | C13: 0 | D13: 5 | E13: 0 | F13: 243 | G13: 252 | H13: 246 | I13: 243 | J13: 252 | K13: 246 | L13: 0.9529411765 | M13: 0.9882352941 | N13: 0.9647058824 | O13: 0.8962693534 | P13: 0.9734452904 | Q13: 0.9215818563 | R13: 89.62693534 | S13: 97.34452904 | T13: 92.15818563 | U13: 88.40710422 | V13: 95.32931462 | W13: 100.9296232 | Y13: 0.9532931462
A14: NCS S 0505-B50G | B14: 7 | C14: 0 | D14: 6 | E14: 0 | F14: 243 | G14: 252 | H14: 245 | I14: 243 | J14: 252 | K14: 245 | L14: 0.9529411765 | M14: 0.9882352941 | N14: 0.9607843137 | O14: 0.8962693534 | P14: 0.9734452904 | Q14: 0.9130986518 | R14: 89.62693534 | S14: 97.34452904 | T14: 91.30986518 | U14: 88.25398238 | V14: 95.26806589 | W14: 100.1232946 | Y14: 0.9526806589
A15: NCS S 0505-B80G | B15: 8 | C15: 0 | D15: 8 | E15: 0 | F15: 243 | G15: 253 | H15: 243 | I15: 243 | J15: 253 | K15: 243 | L15: 0.9529411765 | M15: 0.9921568627 | N15: 0.9529411765 | O15: 0.8962693534 | P15: 0.9822505503 | Q15: 0.8962693534 | R15: 89.62693534 | S15: 98.22505503 | T15: 89.62693534 | U15: 88.26508964 | V15: 95.77631054 | W15: 98.62862845 | Y15: 0.9577631054
A16: NCS S 0505-G | B16: 8 | C16: 0 | D16: 10 | E16: 0 | F16: 244 | G16: 252 | H16: 239 | I16: 244 | J16: 252 | K16: 239 | L16: 0.9568627451 | M16: 0.9882352941 | N16: 0.937254902 | O16: 0.9046611744 | P16: 0.9734452904 | Q16: 0.8631572135 | R16: 90.46611744 | S16: 97.34452904 | T16: 86.31572135 | U16: 87.69861812 | V16: 95.08589882 | W16: 95.39255707 | Y16: 0.9508589882
A17: NCS S 0505-G10Y | B17: 7 | C17: 0 | D17: 10 | E17: 0 | F17: 246 | G17: 253 | H17: 239 | I17: 246 | J17: 253 | K17: 239 | L17: 0.9647058824 | M17: 0.9921568627 | N17: 0.937254902 | O17: 0.9215818563 | P17: 0.9822505503 | Q17: 0.8631572135 | R17: 92.15818563 | S17: 98.22505503 | T17: 86.31572135 | U17: 88.71130314 | V17: 96.07538471 | W17: 95.53017268 | Y17: 0.9607538471
A18: NCS S 0505-G20Y | B18: 5 | C18: 0 | D18: 10 | E18: 0 | F18: 248 | G18: 252 | H18: 238 | I18: 248 | J18: 252 | K18: 238 | L18: 0.9725490196 | M18: 0.9882352941 | N18: 0.9333333333 | O18: 0.9386857285 | P18: 0.9734452904 | Q18: 0.8549926081 | R18: 93.86857285 | S18: 97.34452904 | T18: 85.49926081 | U18: 88.9544196 | V18: 95.75031239 | W18: 94.68217872 | Y18: 0.9575031239
A19: NCS S 0505-G30Y | B19: 5 | C19: 0 | D19: 13 | E19: 0 | F19: 249 | G19: 252 | H19: 234 | I19: 249 | J19: 252 | K19: 234 | L19: 0.9764705882 | M19: 0.9882352941 | N19: 0.9176470588 | O19: 0.9473065367 | P19: 0.9734452904 | Q19: 0.8227857544 | R19: 94.73065367 | S19: 97.34452904 | T19: 82.27857544 | U19: 88.72860803 | V19: 95.70105729 | W19: 91.63755543 | Y19: 0.9570105729
A20: NCS S 0505-G40Y | B20: 5 | C20: 0 | D20: 15 | E20: 0 | F20: 250 | G20: 252 | H20: 231 | I20: 250 | J20: 252 | K20: 231 | L20: 0.9803921569 | M20: 0.9882352941 | N20: 0.9058823529 | O20: 0.9559733532 | P20: 0.9734452904 | Q20: 0.799102738 | R20: 95.59733532 | S20: 97.34452904 | T20: 79.9102738 | U20: 88.65854909 | V20: 95.71432243 | W20: 89.40321168 | Y20: 0.9571432243
A21: NCS S 0505-G50Y | B21: 3 | C21: 0 | D21: 15 | E21: 0 | F21: 252 | G21: 252 | H21: 231 | I21: 252 | J21: 252 | K21: 231 | L21: 0.9882352941 | M21: 0.9882352941 | N21: 0.9058823529 | O21: 0.9734452904 | P21: 0.9734452904 | Q21: 0.799102738 | R21: 97.34452904 | S21: 97.34452904 | T21: 79.9102738 | U21: 89.37909178 | V21: 96.08577581 | W21: 89.43693252 | Y21: 0.9608577581
A22: NCS S 0505-G60Y | B22: 2 | C22: 0 | D22: 15 | E22: 0 | F22: 253 | G22: 251 | H22: 230 | I22: 253 | J22: 251 | K22: 230 | L22: 0.9921568627 | M22: 0.9843137255 | N22: 0.9019607843 | O22: 0.9822505503 | P22: 0.9646862479 | Q22: 0.7912979403 | R22: 98.22505503 | S22: 96.46862479 | T22: 79.12979403 | U22: 89.28812074 | V22: 95.59017828 | W22: 88.60767287 | Y22: 0.9559017828
A23: NCS S 0505-G70Y | B23: 2 | C23: 0 | D23: 17 | E23: 0 | F23: 253 | G23: 251 | H23: 227 | I23: 253 | J23: 251 | K23: 227 | L23: 0.9921568627 | M23: 0.9843137255 | N23: 0.8901960784 | O23: 0.9822505503 | P23: 0.9646862479 | Q23: 0.7681511472 | R23: 98.22505503 | S23: 96.46862479 | T23: 76.81511472 | U23: 88.87032113 | V23: 95.42305843 | W23: 86.40757018 | Y23: 0.9542305843
A24: NCS S 0505-G80Y | B24: 1 | C24: 0 | D24: 15 | E24: 0 | F24: 254 | G24: 252 | H24: 231 | I24: 254 | J24: 252 | K24: 231 | L24: 0.9960784314 | M24: 0.9882352941 | N24: 0.9058823529 | O24: 0.9911020971 | P24: 0.9734452904 | Q24: 0.799102738 | R24: 99.11020971 | S24: 97.34452904 | T24: 79.9102738 | U24: 90.10725849 | V24: 96.46115952 | W24: 89.47101016 | Y24: 0.9646115952
A25: NCS S 0505-G90Y | B25: 0 | C25: 0 | D25: 13 | E25: 0 | F25: 255 | G25: 252 | H25: 234 | I25: 255 | J25: 252 | K25: 234 | L25: 1 | M25: 0.9882352941 | N25: 0.9176470588 | O25: 1 | P25: 0.9734452904 | Q25: 0.8227857544 | R25: 100 | S25: 97.34452904 | T25: 82.27857544 | U25: 90.90168645 | V25: 96.82132032 | W25: 91.73925382 | Y25: 0.9682132032
A26: NCS S 0505-R | B26: 0 | C26: 6 | D26: 6 | E26: 0 | F26: 255 | G26: 244 | H26: 239 | I26: 255 | J26: 244 | K26: 239 | L26: 1 | M26: 0.9568627451 | N26: 0.937254902 | O26: 1 | P26: 0.9046611744 | Q26: 0.8631572135 | R26: 100 | S26: 90.46611744 | T26: 86.31572135 | U26: 89.1706713 | V26: 92.19336227 | W26: 94.75665434 | Y26: 0.9219336227
A27: NCS S 0505-R10B | B27: 0 | C27: 7 | D27: 5 | E27: 0 | F27: 255 | G27: 243 | H27: 239 | I27: 255 | J27: 243 | K27: 239 | L27: 1 | M27: 0.9529411765 | N27: 0.937254902 | O27: 1 | P27: 0.8962693534 | Q27: 0.8631572135 | R27: 100 | S27: 89.62693534 | T27: 86.31572135 | U27: 88.87057978 | V27: 91.59317923 | W27: 94.65662383 | Y27: 0.9159317923
A28: NCS S 0505-R20B | B28: 0 | C28: 6 | D28: 4 | E28: 0 | F28: 255 | G28: 245 | H28: 243 | I28: 255 | J28: 245 | K28: 243 | L28: 1 | M28: 0.9607843137 | N28: 0.9529411765 | O28: 1 | P28: 0.9130986518 | Q28: 0.8962693534 | R28: 100 | S28: 91.30986518 | T28: 89.62693534 | U28: 90.07006962 | V28: 93.03588031 | W28: 98.00453797 | Y28: 0.9303588031
A29: NCS S 0505-R30B | B29: 0 | C29: 5 | D29: 2 | E29: 0 | F29: 255 | G29: 246 | H29: 247 | I29: 255 | J29: 246 | K29: 247 | L29: 1 | M29: 0.9647058824 | N29: 0.968627451 | O29: 1 | P29: 0.9215818563 | Q29: 0.9301108584 | R29: 100 | S29: 92.15818563 | T29: 93.01108584 | U29: 90.98426817 | V29: 93.88693476 | W29: 101.3222928 | Y29: 0.9388693476
A30: NCS S 0505-R40B | B30: 0 | C30: 5 | D30: 0 | E30: 0 | F30: 255 | G30: 246 | H30: 250 | I30: 255 | J30: 246 | K30: 250 | L30: 1 | M30: 0.9647058824 | N30: 0.9803921569 | O30: 1 | P30: 0.9215818563 | Q30: 0.9559733532 | R30: 100 | S30: 92.15818563 | T30: 95.59733532 | U30: 91.45108621 | V30: 94.07366197 | W30: 103.780523 | Y30: 0.9407366197
A31: NCS S 0505-R50B | B31: 0 | C31: 3 | D31: 0 | E31: 0 | F31: 255 | G31: 250 | H31: 253 | I31: 255 | J31: 250 | K31: 253 | L31: 1 | M31: 0.9803921569 | N31: 0.9921568627 | O31: 1 | P31: 0.9559733532 | Q31: 0.9822505503 | R31: 100 | S31: 95.59733532 | T31: 98.22505503 | U31: 93.15522955 | V31: 96.7230632 | W31: 106.6881172 | Y31: 0.967230632
A32: NCS S 0505-R60B | B32: 2 | C32: 2 | D32: 0 | E32: 0 | F32: 252 | G32: 250 | H32: 253 | I32: 252 | J32: 250 | K32: 253 | L32: 0.9882352941 | M32: 0.9803921569 | N32: 0.9921568627 | O32: 0.9734452904 | P32: 0.9559733532 | Q32: 0.9822505503 | R32: 97.34452904 | S32: 95.59733532 | T32: 98.22505503 | U32: 92.06011332 | V32: 96.15851007 | W32: 106.6368666 | Y32: 0.9615851007
A33: NCS S 0505-R70B | B33: 4 | C33: 2 | D33: 0 | E33: 0 | F33: 248 | G33: 249 | H33: 253 | I33: 248 | J33: 249 | K33: 253 | L33: 0.9725490196 | M33: 0.9764705882 | N33: 0.9921568627 | O33: 0.9386857285 | P33: 0.9473065367 | Q33: 0.9822505503 | R33: 93.86857285 | S33: 94.73065367 | T33: 98.22505503 | U33: 90.31670363 | V33: 94.79967107 | W33: 106.4664722 | Y33: 0.9479967107
A34: NCS S 0505-R80B | B34: 5 | C34: 1 | D34: 0 | E34: 0 | F34: 246 | G34: 249 | H34: 253 | I34: 246 | J34: 249 | K34: 253 | L34: 0.9647058824 | M34: 0.9764705882 | N34: 0.9921568627 | O34: 0.9215818563 | P34: 0.9473065367 | Q34: 0.9822505503 | R34: 92.15818563 | S34: 94.73065367 | T34: 98.22505503 | U34: 89.61133994 | V34: 94.43604275 | W34: 106.4334617 | Y34: 0.9443604275
A35: NCS S 0505-R90B | B35: 5 | C35: 0 | D35: 0 | E35: 0 | F35: 246 | G35: 251 | H35: 253 | I35: 246 | J35: 251 | K35: 253 | L35: 0.9647058824 | M35: 0.9843137255 | N35: 0.9921568627 | O35: 0.9215818563 | P35: 0.9646862479 | Q35: 0.9822505503 | R35: 92.15818563 | S35: 96.46862479 | T35: 98.22505503 | U35: 90.23283841 | V35: 95.67903969 | W35: 106.6406279 | Y35: 0.9567903969
A36: NCS S 0505-Y | B36: 0 | C36: 0 | D36: 14 | E36: 0 | F36: 255 | G36: 251 | H36: 231 | I36: 255 | J36: 251 | K36: 231 | L36: 1 | M36: 0.9843137255 | N36: 0.9058823529 | O36: 1 | P36: 0.9646862479 | Q36: 0.799102738 | R36: 100 | S36: 96.46862479 | T36: 79.9102738 | U36: 90.16098465 | V36: 96.02388222 | W36: 89.38377532 | Y36: 0.9602388222
A37: NCS S 0505-Y10R | B37: 0 | C37: 1 | D37: 15 | E37: 0 | F37: 255 | G37: 249 | H37: 229 | I37: 255 | J37: 249 | K37: 229 | L37: 1 | M37: 0.9764705882 | N37: 0.8980392157 | O37: 1 | P37: 0.9473065367 | Q37: 0.7835377915 | R37: 100 | S37: 94.73065367 | T37: 78.35377915 | U37: 89.25853889 | V37: 94.66850636 | W37: 87.697161 | Y37: 0.9466850636
A38: NCS S 0505-Y20R | B38: 0 | C38: 2 | D38: 17 | E38: 0 | F38: 255 | G38: 248 | H38: 225 | I38: 255 | J38: 248 | K38: 225 | L38: 1 | M38: 0.9725490196 | N38: 0.8823529412 | O38: 1 | P38: 0.9386857285 | Q38: 0.7529422168 | R38: 100 | S38: 93.86857285 | T38: 75.29422168 | U38: 88.39800866 | V38: 93.8310461 | W38: 84.68629159 | Y38: 0.938310461
A39: NCS S 0505-Y30R | B39: 0 | C39: 4 | D39: 19 | E39: 0 | F39: 255 | G39: 245 | H39: 220 | I39: 255 | J39: 245 | K39: 220 | L39: 1 | M39: 0.9607843137 | N39: 0.862745098 | O39: 1 | P39: 0.9130986518 | Q39: 0.7156935005 | R39: 100 | S39: 91.30986518 | T39: 71.56935005 | U39: 86.81067547 | V39: 91.73212265 | W39: 80.84080315 | Y39: 0.9173212265
A40: NCS S 0505-Y40R | B40: 0 | C40: 5 | D40: 21 | E40: 0 | F40: 255 | G40: 243 | H40: 215 | I40: 255 | J40: 243 | K40: 215 | L40: 1 | M40: 0.9529411765 | N40: 0.8431372549 | O40: 1 | P40: 0.8962693534 | Q40: 0.6795424696 | R40: 100 | S40: 89.62693534 | T40: 67.95424696 | U40: 85.55633365 | V40: 90.26748078 | W40: 77.20404243 | Y40: 0.9026748078
A41: NCS S 0505-Y50R | B41: 0 | C41: 6 | D41: 18 | E41: 0 | F41: 255 | G41: 243 | H41: 219 | I41: 255 | J41: 243 | K41: 219 | L41: 1 | M41: 0.9529411765 | N41: 0.8588235294 | O41: 1 | P41: 0.8962693534 | Q41: 0.7083757799 | R41: 100 | S41: 89.62693534 | T41: 70.83757799 | U41: 86.0767749 | V41: 90.47565728 | W41: 79.94464857 | Y41: 0.9047565728
A42: NCS S 0505-Y60R | B42: 0 | C42: 6 | D42: 15 | E42: 0 | F42: 255 | G42: 243 | H42: 224 | I42: 255 | J42: 243 | K42: 224 | L42: 1 | M42: 0.9529411765 | N42: 0.8784313725 | O42: 1 | P42: 0.8962693534 | Q42: 0.7454042095 | R42: 100 | S42: 89.62693534 | T42: 74.54042095 | U42: 86.74513806 | V42: 90.74300255 | W42: 83.46420081 | Y42: 0.9074300255
A43: NCS S 0505-Y70R | B43: 0 | C43: 7 | D43: 13 | E43: 0 | F43: 255 | G43: 242 | H43: 226 | I43: 255 | J43: 242 | K43: 226 | L43: 1 | M43: 0.9490196078 | N43: 0.8862745098 | O43: 1 | P43: 0.8879231179 | Q43: 0.7605245047 | R43: 100 | S43: 88.79231179 | T43: 76.05245047 | U43: 86.719598 | V43: 90.25524831 | W43: 84.80189773 | Y43: 0.9025524831
A44: NCS S 0505-Y80R | B44: 0 | C44: 7 | D44: 10 | E44: 0 | F44: 255 | G44: 242 | H44: 231 | I44: 255 | J44: 242 | K44: 231 | L44: 1 | M44: 0.9490196078 | N44: 0.9058823529 | O44: 1 | P44: 0.8879231179 | Q44: 0.799102738 | R44: 100 | S44: 88.79231179 | T44: 79.9102738 | U44: 87.41593512 | V44: 90.53378316 | W44: 88.46875881 | Y44: 0.9053378316
A45: NCS S 0505-Y90R | B45: 0 | C45: 6 | D45: 8 | E45: 0 | F45: 255 | G45: 245 | H45: 236 | I45: 255 | J45: 245 | K45: 236 | L45: 1 | M45: 0.9607843137 | N45: 0.9254901961 | O45: 1 | P45: 0.9130986518 | Q45: 0.8387990117 | R45: 100 | S45: 91.30986518 | T45: 83.87990117 | U45: 89.03272995 | V45: 92.62094444 | W45: 92.541982 | Y45: 0.9262094444
A46: NCS S 0507-B | B46: 7 | C46: 0 | D46: 2 | E46: 0 | F46: 244 | G46: 251 | H46: 251 | I46: 244 | J46: 251 | K46: 251 | L46: 0.9568627451 | M46: 0.9843137255 | N46: 0.9843137255 | O46: 0.9046611744 | P46: 0.9646862479 | Q46: 0.9646862479 | R46: 90.46611744 | S46: 96.46862479 | T46: 96.46862479 | U46: 89.21799383 | V46: 95.19249173 | W46: 104.938484 | Y46: 0.9519249173
A47: NCS S 0507-B20G | B47: 8 | C47: 0 | D47: 5 | E47: 0 | F47: 242 | G47: 251 | H47: 246 | I47: 242 | J47: 251 | K47: 246 | L47: 0.9490196078 | M47: 0.9843137255 | N47: 0.9647058824 | O47: 0.8879231179 | P47: 0.9646862479 | Q47: 0.9215818563 | R47: 88.79231179 | S47: 96.46862479 | T47: 92.15818563 | U47: 87.74968211 | V47: 94.52542694 | W47: 100.8091071 | Y47: 0.9452542694
A48: NCS S 0507-B80G | B48: 10 | C48: 0 | D48: 10 | E48: 0 | F48: 240 | G48: 251 | H48: 240 | I48: 240 | J48: 251 | K48: 240 | L48: 0.9411764706 | M48: 0.9843137255 | N48: 0.9411764706 | O48: 0.8713671192 | P48: 0.9646862479 | Q48: 0.8713671192 | R48: 87.13671192 | S48: 96.46862479 | T48: 87.13671192 | U48: 86.16053672 | V48: 93.810896 | W48: 96.00424329 | Y48: 0.93810896
A49: NCS S 0507-G | B49: 8 | C49: 0 | D49: 12 | E49: 0 | F49: 245 | G49: 252 | H49: 236 | I49: 245 | J49: 252 | K49: 236 | L49: 0.9607843137 | M49: 0.9882352941 | N49: 0.9254901961 | O49: 0.9130986518 | P49: 0.9734452904 | Q49: 0.8387990117 | R49: 91.30986518 | S49: 97.34452904 | T49: 83.87990117 | U49: 87.60691415 | V49: 95.08941337 | W49: 93.09359433 | Y49: 0.9508941337
A50: NCS S 0507-G40Y | B50: 6 | C50: 0 | D50: 16 | E50: 0 | F50: 249 | G50: 252 | H50: 229 | I50: 249 | J50: 252 | K50: 229 | L50: 0.9764705882 | M50: 0.9882352941 | N50: 0.8980392157 | O50: 0.9473065367 | P50: 0.9734452904 | Q50: 0.7835377915 | R50: 94.73065367 | S50: 97.34452904 | T50: 78.35377915 | U50: 88.0201823 | V50: 95.417687 | W50: 87.90703656 | Y50: 0.95417687
A51: NCS S 0507-G80Y | B51: 1 | C51: 0 | D51: 18 | E51: 0 | F51: 254 | G51: 250 | H51: 225 | I51: 254 | J51: 250 | K51: 225 | L51: 0.9960784314 | M51: 0.9803921569 | N51: 0.8823529412 | O51: 0.9911020971 | P51: 0.9559733532 | Q51: 0.7529422168 | R51: 99.11020971 | S51: 95.59733532 | T51: 75.29422168 | U51: 88.64926461 | V51: 94.87828761 | W51: 84.87518712 | Y51: 0.9487828761
A52: NCS S 0507-R | B52: 0 | C52: 10 | D52: 8 | E52: 0 | F52: 255 | G52: 238 | H52: 232 | I52: 255 | J52: 238 | K52: 232 | L52: 1 | M52: 0.9333333333 | N52: 0.9098039216 | O52: 1 | P52: 0.8549926081 | Q52: 0.8069522577 | R52: 100 | S52: 85.49926081 | T52: 80.69522577 | U52: 86.38002392 | V52: 88.23526663 | W52: 88.82232398 | Y52: 0.8823526663
A53: NCS S 0507-R20B | B53: 0 | C53: 7 | D53: 3 | E53: 0 | F53: 255 | G53: 243 | H53: 242 | I53: 255 | J53: 243 | K53: 242 | L53: 1 | M53: 0.9529411765 | N53: 0.9490196078 | O53: 1 | P53: 0.8962693534 | Q53: 0.8879231179 | R53: 100 | S53: 89.62693534 | T53: 88.79231179 | U53: 89.31760435 | V53: 91.77198906 | W53: 97.01062305 | Y53: 0.9177198906
A54: NCS S 0507-R40B | B54: 0 | C54: 6 | D54: 0 | E54: 0 | F54: 255 | G54: 246 | H54: 250 | I54: 255 | J54: 246 | K54: 250 | L54: 1 | M54: 0.9647058824 | N54: 0.9803921569 | O54: 1 | P54: 0.9215818563 | Q54: 0.9559733532 | R54: 100 | S54: 92.15818563 | T54: 95.59733532 | U54: 91.45108621 | V54: 94.07366197 | W54: 103.780523 | Y54: 0.9407366197
A55: NCS S 0507-R60B | B55: 3 | C55: 4 | D55: 0 | E55: 0 | F55: 249 | G55: 246 | H55: 251 | I55: 249 | J55: 246 | K55: 251 | L55: 0.9764705882 | M55: 0.9647058824 | N55: 0.9843137255 | O55: 0.9473065367 | P55: 0.9215818563 | Q55: 0.9646862479 | R55: 94.73065367 | S55: 92.15818563 | T55: 96.46862479 | U55: 89.43527553 | V55: 93.01630604 | W55: 104.5069852 | Y55: 0.9301630604
A56: NCS S 0507-R80B | B56: 7 | C56: 1 | D56: 0 | E56: 0 | F56: 244 | G56: 249 | H56: 253 | I56: 244 | J56: 249 | K56: 253 | L56: 0.9568627451 | M56: 0.9764705882 | N56: 0.9921568627 | O56: 0.9046611744 | P56: 0.9473065367 | Q56: 0.9822505503 | R56: 90.46611744 | S56: 94.73065367 | T56: 98.22505503 | U56: 88.91353102 | V56: 94.07630905 | W56: 106.4008048 | Y56: 0.9407630905
A57: NCS S 0507-Y | B57: 0 | C57: 0 | D57: 25 | E57: 0 | F57: 255 | G57: 249 | H57: 214 | I57: 255 | J57: 249 | K57: 214 | L57: 1 | M57: 0.9764705882 | N57: 0.8392156863 | O57: 1 | P57: 0.9473065367 | Q57: 0.672443157 | R57: 100 | S57: 94.73065367 | T57: 67.2443157 | U57: 87.25328074 | V57: 93.8664031 | W57: 77.13761599 | Y57: 0.938664031
A58: NCS S 0507-Y20R | B58: 0 | C58: 3 | D58: 25 | E58: 0 | F58: 255 | G58: 245 | H58: 211 | I58: 255 | J58: 245 | K58: 211 | L58: 1 | M58: 0.9607843137 | N58: 0.8274509804 | O58: 1 | P58: 0.9130986518 | Q58: 0.6514056374 | R58: 100 | S58: 91.30986518 | T58: 65.14056374 | U58: 85.65027954 | V58: 91.26796428 | W58: 74.73024177 | Y58: 0.9126796428
A59: NCS S 0507-Y40R | B59: 0 | C59: 6 | D59: 23 | E59: 0 | F59: 255 | G59: 242 | H59: 211 | I59: 255 | J59: 242 | K59: 211 | L59: 1 | M59: 0.9490196078 | N59: 0.8274509804 | O59: 1 | P59: 0.8879231179 | Q59: 0.6514056374 | R59: 100 | S59: 88.79231179 | T59: 65.14056374 | U59: 84.75000245 | V59: 89.46741009 | W59: 74.4301494 | Y59: 0.8946741009
A60: NCS S 0507-Y60R | B60: 0 | C60: 8 | D60: 20 | E60: 0 | F60: 255 | G60: 240 | H60: 214 | I60: 255 | J60: 240 | K60: 214 | L60: 1 | M60: 0.9411764706 | N60: 0.8392156863 | O60: 1 | P60: 0.8713671192 | Q60: 0.672443157 | R60: 100 | S60: 87.13671192 | T60: 67.2443157 | U60: 84.53768717 | V60: 88.43521596 | W60: 76.23241813 | Y60: 0.8843521596
A61: NCS S 0507-Y80R | B61: 0 | C61: 8 | D61: 12 | E61: 0 | F61: 255 | G61: 241 | H61: 227 | I61: 255 | J61: 241 | K61: 227 | L61: 1 | M61: 0.9450980392 | N61: 0.8901960784 | O61: 1 | P61: 0.8796223969 | Q61: 0.7681511472 | R61: 100 | S61: 87.96223969 | T61: 76.81511472 | U61: 86.56042512 | V61: 89.71664511 | W61: 85.42786552 | Y61: 0.8971664511
A62: NCS S 0510-B | B62: 12 | C62: 0 | D62: 2 | E62: 0 | F62: 235 | G62: 248 | H62: 251 | I62: 235 | J62: 248 | K62: 251 | L62: 0.9215686275 | M62: 0.9725490196 | N62: 0.9843137255 | O62: 0.8307698768 | P62: 0.9386857285 | Q62: 0.9646862479 | R62: 83.07698768 | S62: 93.86857285 | T62: 96.46862479 | U62: 85.24093814 | V62: 91.76200559 | W62: 104.4859476 | Y62: 0.9176200559
A63: NCS S 0510-B10G | B63: 14 | C63: 0 | D63: 5 | E63: 0 | F63: 233 | G63: 249 | H63: 249 | I63: 233 | J63: 249 | K63: 249 | L63: 0.9137254902 | M63: 0.9764705882 | N63: 0.9764705882 | O63: 0.8148465722 | P63: 0.9473065367 | Q63: 0.9473065367 | R63: 81.48465722 | S63: 94.73065367 | T63: 94.73065367 | U63: 84.57883738 | V63: 91.91455483 | W63: 102.9060341 | Y63: 0.9191455483
A64: NCS S 0510-B30G | B64: 15 | C64: 0 | D64: 8 | E64: 0 | F64: 231 | G64: 250 | H64: 246 | I64: 231 | J64: 250 | K64: 246 | L64: 0.9058823529 | M64: 0.9803921569 | N64: 0.9647058824 | O64: 0.799102738 | P64: 0.9559733532 | Q64: 0.9215818563 | R64: 79.9102738 | S64: 95.59733532 | T64: 92.15818563 | U64: 83.77515653 | V64: 92.01395944 | W64: 100.5338261 | Y64: 0.9201395944
A65: NCS S 0510-B50G | B65: 15 | C65: 0 | D65: 10 | E65: 0 | F65: 231 | G65: 250 | H65: 242 | I65: 231 | J65: 250 | K65: 242 | L65: 0.9058823529 | M65: 0.9803921569 | N65: 0.9490196078 | O65: 0.799102738 | P65: 0.9559733532 | Q65: 0.8879231179 | R65: 79.9102738 | S65: 95.59733532 | T65: 88.79231179 | U65: 83.16761631 | V65: 91.77094335 | W65: 97.33456301 | Y65: 0.9177094335
A66: NCS S 0510-B70G | B66: 20 | C66: 0 | D66: 15 | E66: 0 | F66: 223 | G66: 249 | H66: 235 | I66: =F66 -> 223 | J66: =G66 -> 249 | K66: =H66 -> 235 | L66: =I66/255 -> 0.8745098039 | M66: =J66/255 -> 0.9764705882 | N66: =K66/255 -> 0.9215686275 | O66: =IF(L66>0.04045,((L66+0.055)/1.055)^2.4,L66/12.92) -> 0.7379104088 | P66: =IF(M66>0.04045,((M66+0.055)/1.055)^2.4,M66/12.92) -> 0.9473065367 | Q66: =IF(N66>0.04045,((N66+0.055)/1.055)^2.4,N66/12.92) -> 0.8307698768 | R66: =O66*100 -> 73.79104088 | S66: =P66*100 -> 94.73065367 | T66: =Q66*100 -> 83.07698768 | U66: =R66*0.4124+S66*0.3576+T66*0.1805 -> 79.30250329 | V66: =R66*0.2126+S66*0.7152+T66*0.0722 -> 89.43749731 | W66: =R66*0.0193+S66*0.1192+T66*0.9505 -> 91.68073779 | Y66: =V66/100 -> 0.8943749731
A67: NCS S 0510-B90G | B67: 15 | C67: 0 | D67: 15 | E67: 0 | F67: 231 | G67: 250 | H67: 231 | I67: 231 | J67: 250 | K67: 231 | L67: 0.9058823529 | M67: 0.9803921569 | N67: 0.9058823529 | O67: 0.799102738 | P67: 0.9559733532 | Q67: 0.799102738 | R67: 79.9102738 | S67: 95.59733532 | T67: 79.9102738 | U67: 81.56440845 | V67: 91.1296602 | W67: 88.8921859 | Y67: 0.911296602
A68: NCS S 0510-G | B68: 10 | C68: 0 | D68: 12 | E68: 0 | F68: 240 | G68: 251 | H68: 235 | I68: 240 | J68: 251 | K68: 235 | L68: 0.9411764706 | M68: 0.9843137255 | N68: 0.9215686275 | O68: 0.8713671192 | P68: 0.9646862479 | Q68: 0.8307698768 | R68: 87.13671192 | S68: 96.46862479 | T68: 83.07698768 | U68: 85.4277565 | V68: 93.51778391 | W68: 92.1454754 | Y68: 0.9351778391
A69: NCS S 0510-G10Y | B69: 10 | C69: 0 | D69: 13 | E69: 0 | F69: 241 | G69: 251 | H69: 234 | I69: 241 | J69: 251 | K69: 234 | L69: 0.9450980392 | M69: 0.9843137255 | N69: 0.9176470588 | O69: 0.8796223969 | P69: 0.9646862479 | Q69: 0.8227857544 | R69: 87.96223969 | S69: 96.46862479 | T69: 82.27857544 | U69: 85.62409074 | V69: 93.63564575 | W69: 91.40251726 | Y69: 0.9363564575
A70: NCS S 0510-G20Y | B70: 9 | C70: 0 | D70: 16 | E70: 0 | F70: 244 | G70: 252 | H70: 229 | I70: 244 | J70: 252 | K70: 229 | L70: 0.9568627451 | M70: 0.9882352941 | N70: 0.8980392157 | O70: 0.9046611744 | P70: 0.9734452904 | Q70: 0.7835377915 | R70: 90.46611744 | S70: 97.34452904 | T70: 78.35377915 | U70: 86.26148755 | V70: 94.51104659 | W70: 87.82473101 | Y70: 0.9451104659
A71: NCS S 0510-G30Y | B71: 8 | C71: 0 | D71: 18 | E71: 0 | F71: 246 | G71: 251 | H71: 225 | I71: 246 | J71: 251 | K71: 225 | L71: 0.9647058824 | M71: 0.9843137255 | N71: 0.8823529412 | O71: 0.9215818563 | P71: 0.9646862479 | Q71: 0.7529422168 | R71: 92.15818563 | S71: 96.46862479 | T71: 75.29422168 | U71: 86.09382299 | V71: 94.02343352 | W71: 84.84487076 | Y71: 0.9402343352
A72: NCS S 0510-G40Y | B72: 8 | C72: 0 | D72: 18 | E72: 0 | F72: 246 | G72: 251 | H72: 225 | I72: 246 | J72: 251 | K72: 225 | L72: 0.9647058824 | M72: 0.9843137255 | N72: 0.8823529412 | O72: 0.9215818563 | P72: 0.9646862479 | Q72: 0.7529422168 | R72: 92.15818563 | S72: 96.46862479 | T72: 75.29422168 | U72: 86.09382299 | V72: 94.02343352 | W72: 84.84487076 | Y72: 0.9402343352
A73: NCS S 0510-G50Y | B73: 4 | C73: 0 | D73: 17 | E73: 0 | F73: 251 | G73: 251 | H73: 227 | I73: 251 | J73: 251 | K73: 227 | L73: 0.9843137255 | M73: 0.9843137255 | N73: 0.8901960784 | O73: 0.9646862479 | P73: 0.9646862479 | Q73: 0.7681511472 | R73: 96.46862479 | S73: 96.46862479 | T73: 76.81511472 | U73: 88.1459693 | V73: 95.04964136 | W73: 86.37367108 | Y73: 0.9504964136
A74: NCS S 0510-G60Y | B74: 3 | C74: 0 | D74: 18 | E74: 0 | F74: 252 | G74: 251 | H74: 225 | I74: 252 | J74: 251 | K74: 225 | L74: 0.9882352941 | M74: 0.9843137255 | N74: 0.8823529412 | O74: 0.9734452904 | P74: 0.9646862479 | Q74: 0.7529422168 | R74: 97.34452904 | S74: 96.46862479 | T74: 75.29422168 | U74: 88.23267101 | V74: 95.12605013 | W74: 84.94496719 | Y74: 0.9512605013
A75: NCS S 0510-G70Y | B75: 2 | C75: 0 | D75: 20 | E75: 0 | F75: 254 | G75: 251 | H75: 222 | I75: 254 | J75: 251 | K75: 222 | L75: 0.9960784314 | M75: 0.9843137255 | N75: 0.8705882353 | O75: 0.9911020971 | P75: 0.9646862479 | Q75: 0.7304607401 | R75: 99.11020971 | S75: 96.46862479 | T75: 73.04607401 | U75: 88.55504707 | V75: 95.33911758 | W75: 82.84218047 | Y75: 0.9533911758
A76: NCS S 0510-G80Y | B76: 2 | C76: 0 | D76: 22 | E76: 0 | F76: 254 | G76: 250 | H76: 219 | I76: 254 | J76: 250 | K76: 219 | L76: 0.9960784314 | M76: 0.9803921569 | N76: 0.8588235294 | O76: 0.9911020971 | P76: 0.9559733532 | Q76: 0.7083757799 | R76: 99.11020971 | S76: 95.59733532 | T76: 70.83757799 | U76: 87.84484042 | V76: 94.55651794 | W76: 80.6391473 | Y76: 0.9455651794
A77: NCS S 0510-G90Y | B77: 0 | C77: 0 | D77: 18 | E77: 0 | F77: 255 | G77: 250 | H77: 225 | I77: 255 | J77: 250 | K77: 225 | L77: 1 | M77: 0.9803921569 | N77: 0.8823529412 | O77: 1 | P77: 0.9559733532 | Q77: 0.7529422168 | R77: 100 | S77: 95.59733532 | T77: 75.29422168 | U77: 89.01621413 | V77: 95.06745703 | W77: 84.89236008 | Y77: 0.9506745703
A78: NCS S 0510-R | B78: 0 | C78: 14 | D78: 10 | E78: 0 | F78: 255 | G78: 231 | H78: 226 | I78: 255 | J78: 231 | K78: 226 | L78: 1 | M78: 0.9058823529 | N78: 0.8862745098 | O78: 1 | P78: 0.799102738 | Q78: 0.7605245047 | R78: 100 | S78: 79.9102738 | T78: 76.05245047 | U78: 83.54338122 | V78: 83.90281475 | W78: 83.74315881 | Y78: 0.8390281475
A79: NCS S 0510-R10B | B79: 0 | C79: 13 | D79: 6 | E79: 0 | F79: 255 | G79: 234 | H79: 234 | I79: 255 | J79: 234 | K79: 234 | L79: 1 | M79: 0.9176470588 | N79: 0.9176470588 | O79: 1 | P79: 0.8227857544 | Q79: 0.8227857544 | R79: 100 | S79: 82.27857544 | T79: 82.27857544 | U79: 85.51410144 | V79: 86.0461503 | W79: 89.94339215 | Y79: 0.860461503
A80: NCS S 0510-R20B | B80: 0 | C80: 10 | D80: 3 | E80: 0 | F80: 255 | G80: 239 | H80: 241 | I80: 255 | J80: 239 | K80: 241 | L80: 1 | M80: 0.937254902 | N80: 0.9450980392 | O80: 1 | P80: 0.8631572135 | Q80: 0.8796223969 | R80: 100 | S80: 86.31572135 | T80: 87.96223969 | U80: 87.98368622 | V80: 89.34387761 | W80: 95.82694281 | Y80: 0.8934387761
A81: NCS S 0510-R30B | B81: 0 | C81: 8 | D81: 2 | E81: 0 | F81: 255 | G81: 242 | H81: 244 | I81: 255 | J81: 242 | K81: 244 | L81: 1 | M81: 0.9490196078 | N81: 0.9568627451 | O81: 1 | P81: 0.8879231179 | Q81: 0.9046611744 | R81: 100 | S81: 88.79231179 | T81: 90.46611744 | U81: 89.32126489 | V81: 91.29591507 | W81: 98.50208819 | Y81: 0.9129591507
A82: NCS S 0510-R40B | B82: 0 | C82: 8 | D82: 0 | E82: 0 | F82: 255 | G82: 242 | H82: 248 | I82: 255 | J82: 242 | K82: 248 | L82: 1 | M82: 0.9490196078 | N82: 0.9725490196 | O82: 1 | P82: 0.8879231179 | Q82: 0.9386857285 | R82: 100 | S82: 88.79231179 | T82: 93.86857285 | U82: 89.93540809 | V82: 91.54157235 | W82: 101.7361221 | Y82: 0.9154157235
A83: NCS S 0510-R50B | B83: 1 | C83: 5 | D83: 0 | E83: 0 | F83: 252 | G83: 245 | H83: 250 | I83: 252 | J83: 245 | K83: 250 | L83: 0.9882352941 | M83: 0.9607843137 | N83: 0.9803921569 | O83: 0.9734452904 | P83: 0.9130986518 | Q83: 0.9559733532 | R83: 97.34452904 | S83: 91.30986518 | T83: 95.59733532 | U83: 90.05261059 | V83: 92.90239006 | W83: 103.6281526 | Y83: 0.9290239006
A84: NCS S 0510-R60B | B84: 6 | C84: 6 | D84: 0 | E84: 0 | F84: 244 | G84: 241 | H84: 251 | I84: 244 | J84: 241 | K84: 251 | L84: 0.9568627451 | M84: 0.9450980392 | N84: 0.9843137255 | O84: 0.9046611744 | P84: 0.8796223969 | Q84: 0.9646862479 | R84: 90.46611744 | S84: 87.96223969 | T84: 96.46862479 | U84: 86.17611052 | V84: 89.1087251 | W84: 103.9245229 | Y84: 0.891087251
A85: NCS S 0510-R70B | B85: 8 | C85: 4 | D85: 0 | E85: 0 | F85: 242 | G85: 244 | H85: 252 | I85: 242 | J85: 244 | K85: 252 | L85: 0.9490196078 | M85: 0.9568627451 | N85: 0.9882352941 | O85: 0.8879231179 | P85: 0.9046611744 | Q85: 0.9734452904 | R85: 88.79231179 | S85: 90.46611744 | T85: 97.34452904 | U85: 86.53932047 | V85: 90.60688768 | W85: 105.0232277 | Y85: 0.9060688768
A86: NCS S 0510-R80B | B86: 10 | C86: 1 | D86: 0 | E86: 0 | F86: 238 | G86: 247 | H86: 252 | I86: 238 | J86: 247 | K86: 252 | L86: 0.9333333333 | M86: 0.968627451 | N86: 0.9882352941 | O86: 0.8549926081 | P86: 0.9301108584 | Q86: 0.9734452904 | R86: 85.49926081 | S86: 93.01108584 | T86: 97.34452904 | U86: 86.09134695 | V86: 91.72694644 | W86: 105.263032 | Y86: 0.9172694644
A87: NCS S 0510-R90B | B87: 11 | C87: 0 | D87: 0 | E87: 0 | F87: 236 | G87: 247 | H87: 252 | I87: 236 | J87: 247 | K87: 252 | L87: 0.9254901961 | M87: 0.968627451 | N87: 0.9882352941 | O87: 0.8387990117 | P87: 0.9301108584 | Q87: 0.9734452904 | R87: 83.87990117 | S87: 93.01108584 | T87: 97.34452904 | U87: 85.42352303 | V87: 91.38267058 | W87: 105.2317784 | Y87: 0.9138267058
A88: NCS S 0510-Y | B88: 0 | C88: 0 | D88: 30 | E88: 0 | F88: 255 | G88: 248 | H88: 202 | I88: 255 | J88: 248 | K88: 202 | L88: 1 | M88: 0.9725490196 | N88: 0.7921568627 | O88: 1 | P88: 0.9386857285 | Q88: 0.5906188409 | R88: 100 | S88: 93.86857285 | T88: 59.06188409 | U88: 85.46807173 | V88: 92.65907133 | W88: 69.25745471 | Y88: 0.9265907133
A89: NCS S 0510-Y10R | B89: 0 | C89: 3 | D89: 30 | E89: 0 | F89: 255 | G89: 244 | H89: 200 | I89: 255 | J89: 244 | K89: 200 | L89: 1 | M89: 0.9568627451 | N89: 0.7843137255 | O89: 1 | P89: 0.9046611744 | Q89: 0.5775804404 | R89: 100 | S89: 90.46611744 | T89: 57.75804404 | U89: 84.01601055 | V89: 90.13149797 | W89: 67.61258206 | Y89: 0.9013149797
A90: NCS S 0510-Y20R | B90: 0 | C90: 5 | D90: 35 | E90: 0 | F90: 255 | G90: 240 | H90: 189 | I90: 255 | J90: 240 | K90: 189 | L90: 1 | M90: 0.9411764706 | N90: 0.7411764706 | O90: 1 | P90: 0.8713671192 | Q90: 0.5088813209 | R90: 100 | S90: 87.13671192 | T90: 50.88813209 | U90: 81.58539602 | V90: 87.2542995 | W90: 60.68586561 | Y90: 0.872542995
A91: NCS S 0510-Y30R | B91: 0 | C91: 7 | D91: 30 | E91: 0 | F91: 255 | G91: 239 | H91: 198 | I91: 255 | J91: 239 | K91: 198 | L91: 1 | M91: 0.937254902 | N91: 0.7764705882 | O91: 1 | P91: 0.8631572135 | Q91: 0.5647115057 | R91: 100 | S91: 86.31572135 | T91: 56.47115057 | U91: 82.29954463 | V91: 87.07022098 | W91: 65.8946626 | Y91: 0.8707022098
A92: NCS S 0510-Y40R | B92: 0 | C92: 10 | D92: 28 | E92: 0 | F92: 255 | G92: 235 | H92: 199 | I92: 255 | J92: 235 | K92: 199 | L92: 1 | M92: 0.9215686275 | N92: 0.7803921569 | O92: 1 | P92: 0.8307698768 | Q92: 0.5711248295 | R92: 100 | S92: 83.07698768 | T92: 57.11248295 | U92: 81.25713397 | V92: 84.80018286 | W92: 66.11819197 | Y92: 0.8480018286
A93: NCS S 0510-Y50R | B93: 0 | C93: 10 | D93: 20 | E93: 0 | F93: 255 | G93: 236 | H93: 212 | I93: 255 | J93: 236 | K93: 212 | L93: 1 | M93: 0.9254901961 | N93: 0.831372549 | O93: 1 | P93: 0.8387990117 | Q93: 0.6583748173 | R93: 100 | S93: 83.87990117 | T93: 65.83748173 | U93: 83.11911811 | V93: 86.0043715 | W93: 74.5070106 | Y93: 0.860043715
A94: NCS S 0510-Y60R | B94: 0 | C94: 11 | D94: 21 | E94: 0 | F94: 255 | G94: 234 | H94: 208 | I94: 255 | J94: 234 | K94: 208 | L94: 1 | M94: 0.9176470588 | N94: 0.8156862745 | O94: 1 | P94: 0.8227857544 | Q94: 0.6307571363 | R94: 100 | S94: 82.27857544 | T94: 63.07571363 | U94: 82.04798489 | V94: 84.65970368 | W94: 71.691072 | Y94: 0.8465970368
A95: NCS S 0510-Y70R | B95: 0 | C95: 8 | D95: 17 | E95: 0 | F95: 255 | G95: 240 | H95: 219 | I95: 255 | J95: 240 | K95: 219 | L95: 1 | M95: 0.9411764706 | N95: 0.8588235294 | O95: 1 | P95: 0.8713671192 | Q95: 0.7083757799 | R95: 100 | S95: 87.13671192 | T95: 70.83757799 | U95: 85.18627101 | V95: 88.6946495 | W95: 79.64781394 | Y95: 0.886946495
A96: NCS S 0510-Y80R | B96: 0 | C96: 10 | D96: 12 | E96: 0 | F96: 255 | G96: 238 | H96: 225 | I96: 255 | J96: 238 | K96: 225 | L96: 1 | M96: 0.9333333333 | N96: 0.8823529412 | O96: 1 | P96: 0.8549926081 | Q96: 0.7529422168 | R96: 100 | S96: 85.49926081 | T96: 75.29422168 | U96: 85.40514268 | V96: 87.84531414 | W96: 83.68866959 | Y96: 0.8784531414
A97: NCS S 0510-Y90R | B97: 0 | C97: 12 | D97: 10 | E97: 0 | F97: 255 | G97: 233 | H97: 226 | I97: 255 | J97: 233 | K97: 226 | L97: 1 | M97: 0.9137254902 | N97: 0.8862745098 | O97: 1 | P97: 0.8148465722 | Q97: 0.7605245047 | R97: 100 | S97: 81.48465722 | T97: 76.05245047 | U97: 84.10638073 | V97: 85.02881377 | W97: 83.93082531 | Y97: 0.8502881377
A98: NCS S 0515-B | B98: 17 | C98: 0 | D98: 2 | E98: 0 | F98: 226 | G98: 245 | H98: 251 | I98: 226 | J98: 245 | K98: 251 | L98: 0.8862745098 | M98: 0.9607843137 | N98: 0.9843137255 | O98: 0.7605245047 | P98: 0.9130986518 | Q98: 0.9646862479 | R98: 76.05245047 | S98: 91.30986518 | T98: 96.46862479 | U98: 81.42902514 | V98: 88.43860126 | W98: 104.0453761 | Y98: 0.8843860126
A99: NCS S 0515-B20G | B99: 20 | C99: 0 | D99: 8 | E99: 0 | F99: 223 | G99: 247 | H99: 247 | I99: 223 | J99: 247 | K99: 247 | L99: 0.8745098039 | M99: 0.968627451 | N99: 0.968627451 | O99: 0.7379104088 | P99: 0.9301108584 | Q99: 0.9301108584 | R99: 73.79104088 | S99: 93.01108584 | T99: 93.01108584 | U99: 80.48069055 | V99: 88.92490428 | W99: 100.9181256 | Y99: 0.8892490428
A100: NCS S 0515-B50G | B100: 27 | C100: 0 | D100: 14 | E100: 0 | F100: 210 | G100: 245 | H100: 239 | I100: 210 | J100: 245 | K100: 239 | L100: 0.8235294118 | M100: 0.9607843137 | N100: 0.937254902 | O100: 0.644479682 | P100: 0.9130986518 | Q100: 0.8631572135 | R100: 64.4479682 | S100: 91.30986518 | T100: 86.31572135 | U100: 74.81073758 | V100: 85.2384487 | W100: 94.17107485 | Y100: 0.852384487
A101: NCS S 0515-B80G | B101: 20 | C101: 0 | D101: 15 | E101: 0 | F101: 223 | G101: 249 | H101: 235 | I101: 223 | J101: 249 | K101: 235 | L101: 0.8745098039 | M101: 0.9764705882 | N101: 0.9215686275 | O101: 0.7379104088 | P101: 0.9473065367 | Q101: 0.8307698768 | R101: 73.79104088 | S101: 94.73065367 | T101: 83.07698768 | U101: 79.30250329 | V101: 89.43749731 | W101: 91.68073779 | Y101: 0.8943749731
A102: NCS S 0515-G | B102: 12 | C102: 0 | D102: 15 | E102: 0 | F102: 237 | G102: 251 | H102: 231 | I102: 237 | J102: 251 | K102: 231 | L102: 0.9294117647 | M102: 0.9843137255 | N102: 0.9058823529 | O102: 0.8468732315 | P102: 0.9646862479 | Q102: 0.799102738 | R102: 84.68732315 | S102: 96.46862479 | T102: 79.9102738 | U102: 83.84603671 | V102: 92.76840712 | W102: 89.08824066 | Y102: 0.9276840712
A103: NCS S 0515-G20Y | B103: 14 | C103: 0 | D103: 20 | E103: 0 | F103: 235 | G103: 250 | H103: 221 | I103: 235 | J103: 250 | K103: 221 | L103: 0.9215686275 | M103: 0.9803921569 | N103: 0.8666666667 | O103: 0.8307698768 | P103: 0.9559733532 | Q103: 0.7230551289 | R103: 83.07698768 | S103: 95.59733532 | T103: 72.30551289 | U103: 81.49770191 | V103: 91.25383984 | W103: 81.72497824 | Y103: 0.9125383984
A104: NCS S 0515-G40Y | B104: 13 | C104: 0 | D104: 25 | E104: 0 | F104: 240 | G104: 250 | H104: 213 | I104: 240 | J104: 250 | K104: 213 | L104: 0.9411764706 | M104: 0.9803921569 | N104: 0.8352941176 | O104: 0.8713671192 | P104: 0.9559733532 | Q104: 0.6653872983 | R104: 87.13671192 | S104: 95.59733532 | T104: 66.53872983 | U104: 82.13102784 | V104: 91.70057547 | W104: 76.32200361 | Y104: 0.9170057547
A105: NCS S 0515-G60Y | B105: 6 | C105: 0 | D105: 25 | E105: 0 | F105: 250 | G105: 249 | H105: 216 | I105: 250 | J105: 249 | K105: 216 | L105: 0.9803921569 | M105: 0.9764705882 | N105: 0.8470588235 | O105: 0.9559733532 | P105: 0.9473065367 | Q105: 0.6866853124 | R105: 95.59733532 | S105: 94.73065367 | T105: 68.66853124 | U105: 85.69469273 | V105: 93.03322495 | W105: 78.40636144 | Y105: 0.9303322495
A106: NCS S 0515-G80Y | B106: 3 | C106: 0 | D106: 25 | E106: 0 | F106: 253 | G106: 250 | H106: 215 | I106: 253 | J106: 250 | K106: 215 | L106: 0.9921568627 | M106: 0.9803921569 | N106: 0.8431372549 | O106: 0.9822505503 | P106: 0.9559733532 | Q106: 0.6795424696 | R106: 98.22505503 | S106: 95.59733532 | T106: 67.95424696 | U106: 86.95936138 | V106: 94.16015756 | W106: 77.88145767 | Y106: 0.9416015756
A107: NCS S 0515-G90Y | B107: 0 | C107: 0 | D107: 25 | E107: 0 | F107: 255 | G107: 249 | H107: 214 | I107: 255 | J107: 249 | K107: 214 | L107: 1 | M107: 0.9764705882 | N107: 0.8392156863 | O107: 1 | P107: 0.9473065367 | Q107: 0.672443157 | R107: 100 | S107: 94.73065367 | T107: 67.2443157 | U107: 87.25328074 | V107: 93.8664031 | W107: 77.13761599 | Y107: 0.938664031
A108: NCS S 0515-R | B108: 0 | C108: 20 | D108: 14 | E108: 0 | F108: 255 | G108: 220 | H108: 213 | I108: 255 | J108: 220 | K108: 213 | L108: 1 | M108: 0.862745098 | N108: 0.8352941176 | O108: 1 | P108: 0.7156935005 | Q108: 0.6653872983 | R108: 100 | S108: 71.56935005 | T108: 66.53872983 | U108: 78.84344031 | V108: 77.25049545 | W108: 73.70612923 | Y108: 0.7725049545
A109: NCS S 0515-R10B | B109: 0 | C109: 16 | D109: 5 | E109: 0 | F109: 255 | G109: 228 | H109: 233 | I109: 255 | J109: 228 | K109: 233 | L109: 1 | M109: 0.8941176471 | N109: 0.9137254902 | O109: 1 | P109: 0.7758222183 | Q109: 0.8148465722 | R109: 100 | S109: 77.58222183 | T109: 81.48465722 | U109: 83.69138316 | V109: 82.62999731 | W109: 88.62896753 | Y109: 0.8262999731
A110: NCS S 0515-R20B | B110: 0 | C110: 17 | D110: 3 | E110: 0 | F110: 255 | G110: 227 | H110: 235 | I110: 255 | J110: 227 | K110: 235 | L110: 1 | M110: 0.8901960784 | N110: 0.9215686275 | O110: 1 | P110: 0.7681511472 | Q110: 0.8307698768 | R110: 100 | S110: 76.81511472 | T110: 83.07698768 | U110: 83.7044813 | V110: 82.19632856 | W110: 90.05103846 | Y110: 0.8219632856
A111: NCS S 0515-R40B | B111: 0 | C111: 11 | D111: 0 | E111: 0 | F111: 255 | G111: 237 | H111: 245 | I111: 255 | J111: 237 | K111: 245 | L111: 1 | M111: 0.9294117647 | N111: 0.9607843137 | O111: 1 | P111: 0.8468732315 | Q111: 0.9130986518 | R111: 100 | S111: 84.68732315 | T111: 91.30986518 | U111: 88.00561742 | V111: 88.42094578 | W111: 98.81475577 | Y111: 0.8842094578
A112: NCS S 0515-R60B | B112: 10 | C112: 9 | D112: 0 | E112: 0 | F112: 238 | G112: 234 | H112: 250 | I112: 238 | J112: 234 | K112: 250 | L112: 0.9333333333 | M112: 0.9176470588 | N112: 0.9803921569 | O112: 0.8549926081 | P112: 0.8227857544 | Q112: 0.9559733532 | R112: 85.49926081 | S112: 82.27857544 | T112: 95.59733532 | U112: 81.93803276 | V112: 83.92490761 | W112: 102.3230092 | Y112: 0.8392490761
A113: NCS S 0515-R80B | B113: 15 | C113: 2 | D113: 0 | E113: 0 | F113: 228 | G113: 242 | H113: 250 | I113: 228 | J113: 242 | K113: 250 | L113: 0.8941176471 | M113: 0.9490196078 | N113: 0.9803921569 | O113: 0.7758222183 | P113: 0.8879231179 | Q113: 0.9559733532 | R113: 77.58222183 | S113: 88.79231179 | T113: 95.59733532 | U113: 81.00235801 | V113: 86.90036936 | W113: 102.9466477 | Y113: 0.8690036936
A114: NCS S 0515-R90B | B114: 16 | C114: 1 | D114: 0 | E114: 0 | F114: 226 | G114: 242 | H114: 251 | I114: 226 | J114: 242 | K114: 251 | L114: 0.8862745098 | M114: 0.9490196078 | N114: 0.9843137255 | O114: 0.7605245047 | P114: 0.8879231179 | Q114: 0.9646862479 | R114: 76.05245047 | S114: 88.79231179 | T114: 96.46862479 | U114: 80.52874804 | V114: 86.63804707 | W114: 103.7452837 | Y114: 0.8663804707
A115: NCS S 0515-Y | B115: 0 | C115: 0 | D115: 35 | E115: 0 | F115: 255 | G115: 246 | H115: 190 | I115: 255 | J115: 246 | K115: 190 | L115: 1 | M115: 0.9647058824 | N115: 0.7450980392 | O115: 1 | P115: 0.9215818563 | Q115: 0.5149176654 | R115: 100 | S115: 92.15818563 | T115: 51.49176654 | U115: 83.49003104 | V115: 90.8892399 | W115: 61.85817982 | Y115: 0.908892399
A116: NCS S 0515-Y10R | B116: 0 | C116: 4 | D116: 40 | E116: 0 | F116: 255 | G116: 239 | H116: 179 | I116: 255 | J116: 239 | K116: 179 | L116: 1 | M116: 0.937254902 | N116: 0.7019607843 | O116: 1 | P116: 0.8631572135 | Q116: 0.4507857828 | R116: 100 | S116: 86.31572135 | T116: 45.07857828 | U116: 80.24318533 | V116: 86.24767726 | W116: 55.06602264 | Y116: 0.8624767726
A117: NCS S 0515-Y20R | B117: 0 | C117: 8 | D117: 40 | E117: 0 | F117: 255 | G117: 234 | H117: 177 | I117: 255 | J117: 234 | K117: 177 | L117: 1 | M117: 0.9176470588 | N117: 0.6941176471 | O117: 1 | P117: 0.8227857544 | Q117: 0.4396571738 | R117: 100 | S117: 82.27857544 | T117: 43.96571738 | U117: 78.59863057 | V117: 83.27996195 | W117: 53.52702057 | Y117: 0.8327996195
A118: NCS S 0515-Y30R | B118: 0 | C118: 14 | D118: 40 | E118: 0 | F118: 255 | G118: 225 | H118: 170 | I118: 255 | J118: 225 | K118: 170 | L118: 1 | M118: 0.8823529412 | N118: 0.6666666667 | O118: 1 | P118: 0.7529422168 | Q118: 0.4019777798 | R118: 100 | S118: 75.29422168 | T118: 40.19777798 | U118: 75.4209126 | V118: 78.01270691 | W118: 49.1130592 | Y118: 0.7801270691
A119: NCS S 0515-Y40R | B119: 0 | C119: 12 | D119: 35 | E119: 0 | F119: 255 | G119: 230 | H119: 184 | I119: 255 | J119: 230 | K119: 184 | L119: 1 | M119: 0.9019607843 | N119: 0.7215686275 | O119: 1 | P119: 0.7912979403 | Q119: 0.4793201831 | R119: 100 | S119: 79.12979403 | T119: 47.93201831 | U119: 78.18854365 | V119: 81.31432041 | W119: 56.92165485 | Y119: 0.8131432041
A120: NCS S 0515-Y50R | B120: 0 | C120: 15 | D120: 32 | E120: 0 | F120: 255 | G120: 226 | H120: 186 | I120: 255 | J120: 226 | K120: 186 | L120: 1 | M120: 0.8862745098 | N120: 0.7294117647 | O120: 1 | P120: 0.7605245047 | Q120: 0.4910208498 | R120: 100 | S120: 76.05245047 | T120: 49.10208498 | U120: 77.29928263 | V120: 79.19788311 | W120: 57.66698387 | Y120: 0.7919788311
A121: NCS S 0515-Y60R | B121: 0 | C121: 15 | D121: 27 | E121: 0 | F121: 255 | G121: 227 | H121: 196 | I121: 255 | J121: 227 | K121: 196 | L121: 1 | M121: 0.8901960784 | N121: 0.768627451 | O121: 1 | P121: 0.7681511472 | Q121: 0.5520114015 | R121: 100 | S121: 76.81511472 | T121: 55.20114015 | U121: 78.67289082 | V121: 80.18369237 | W121: 63.55504539 | Y121: 0.8018369237
A122: NCS S 0515-Y70R | B122: 0 | C122: 15 | D122: 23 | E122: 0 | F122: 255 | G122: 228 | H122: 202 | I122: 255 | J122: 228 | K122: 202 | L122: 1 | M122: 0.8941176471 | N122: 0.7921568627 | O122: 1 | P122: 0.7758222183 | Q122: 0.5906188409 | R122: 100 | S122: 77.58222183 | T122: 59.06188409 | U122: 79.64407261 | V122: 81.01107309 | W122: 67.31612167 | Y122: 0.8101107309
A123: NCS S 0515-Y80R | B123: 0 | C123: 16 | D123: 17 | E123: 0 | F123: 255 | G123: 226 | H123: 210 | I123: 255 | J123: 226 | K123: 210 | L123: 1 | M123: 0.8862745098 | N123: 0.8235294118 | O123: 1 | P123: 0.7605245047 | Q123: 0.644479682 | R123: 100 | S123: 76.05245047 | T123: 64.4479682 | U123: 80.06921455 | V123: 80.30585588 | W123: 72.25324587 | Y123: 0.8030585588
A124: NCS S 0515-Y90R | B124: 0 | C124: 17 | D124: 15 | E124: 0 | F124: 255 | G124: 224 | H124: 213 | I124: 255 | J124: 224 | K124: 213 | L124: 1 | M124: 0.8784313725 | N124: 0.8352941176 | O124: 1 | P124: 0.7454042095 | Q124: 0.6653872983 | R124: 100 | S124: 74.54042095 | T124: 66.53872983 | U124: 79.90589527 | V124: 79.37540536 | W124: 74.06028088 | Y124: 0.7937540536
A125: NCS S 0520-B | B125: 22 | C125: 0 | D125: 2 | E125: 0 | F125: 216 | G125: 241 | H125: 249 | I125: 216 | J125: 241 | K125: 249 | L125: 0.8470588235 | M125: 0.9450980392 | N125: 0.9764705882 | O125: 0.6866853124 | P125: 0.8796223969 | Q125: 0.9473065367 | R125: 68.66853124 | S125: 87.96223969 | T125: 94.73065367 | U125: 76.87308219 | V125: 84.34907676 | W125: 101.8518879 | Y125: 0.8434907676
A126: NCS S 0520-B10G | B126: 25 | C126: 0 | D126: 6 | E126: 0 | F126: 211 | G126: 242 | H126: 247 | I126: 211 | J126: 242 | K126: 247 | L126: 0.8274509804 | M126: 0.9490196078 | N126: 0.968627451 | O126: 0.6514056374 | P126: 0.8879231179 | Q126: 0.9301108584 | R126: 65.14056374 | S126: 88.79231179 | T126: 93.01108584 | U126: 75.40460018 | V126: 84.06854564 | W126: 100.2482935 | Y126: 0.8406854564
A127: NCS S 0520-B30G | B127: 23 | C127: 0 | D127: 11 | E127: 0 | F127: 217 | G127: 246 | H127: 243 | I127: 217 | J127: 246 | K127: 243 | L127: 0.8509803922 | M127: 0.9647058824 | N127: 0.9529411765 | O127: 0.6938717613 | P127: 0.9215818563 | Q127: 0.8962693534 | R127: 69.38717613 | S127: 92.15818563 | T127: 89.62693534 | U127: 77.74870044 | V127: 87.13431274 | W127: 97.51483026 | Y127: 0.8713431274
A128: NCS S 0520-B40G | B128: 31 | C128: 0 | D128: 15 | E128: 0 | F128: 202 | G128: 242 | H128: 237 | I128: 202 | J128: 242 | K128: 237 | L128: 0.7921568627 | M128: 0.9490196078 | N128: 0.9294117647 | O128: 0.5906188409 | P128: 0.8879231179 | Q128: 0.8468732315 | R128: 59.06188409 | S128: 88.79231179 | T128: 84.68732315 | U128: 71.39531352 | V128: 82.17524268 | W128: 92.21923858 | Y128: 0.8217524268
A129: NCS S 0520-B50G | B129: 33 | C129: 0 | D129: 17 | E129: 0 | F129: 197 | G129: 241 | H129: 234 | I129: 197 | J129: 241 | K129: 234 | L129: 0.7725490196 | M129: 0.9450980392 | N129: 0.9176470588 | O129: 0.5583403896 | P129: 0.8796223969 | Q129: 0.8227857544 | R129: 55.83403896 | S129: 87.96223969 | T129: 82.27857544 | U129: 69.33253745 | V129: 80.72142366 | W129: 89.76848188 | Y129: 0.8072142366
A130: NCS S 0520-B60G | B130: 28 | C130: 0 | D130: 16 | E130: 0 | F130: 209 | G130: 245 | H130: 236 | I130: =F130 -> 209 | J130: =G130 -> 245 | K130: =H130 -> 236 | L130: =I130/255 -> 0.8196078431 | M130: =J130/255 -> 0.9607843137 | N130: =K130/255 -> 0.9254901961 | O130: =IF(L130>0.04045,((L130+0.055)/1.055)^2.4,L130/12.92) -> 0.637596874 | P130: =IF(M130>0.04045,((M130+0.055)/1.055)^2.4,M130/12.92) -> 0.9130986518 | Q130: =IF(N130>0.04045,((N130+0.055)/1.055)^2.4,N130/12.92) -> 0.8387990117 | R130: =O130*100 -> 63.7596874 | S130: =P130*100 -> 91.30986518 | T130: =Q130*100 -> 83.87990117 | U130: =R130*0.4124+S130*0.3576+T130*0.1805 -> 74.08722503 | V130: =R130*0.2126+S130*0.7152+T130*0.0722 -> 84.91625398 | W130: =R130*0.0193+S130*0.1192+T130*0.9505 -> 91.84254396 | Y130: =V130/100 -> 0.8491625398
A131: NCS S 0520-B70G | B131: 30 | C131: 0 | D131: 22 | E131: 0 | F131: 204 | G131: 244 | H131: 225 | I131: 204 | J131: 244 | K131: 225 | L131: 0.8 | M131: 0.9568627451 | N131: 0.8823529412 | O131: 0.6038273389 | P131: 0.9046611744 | Q131: 0.7529422168 | R131: 60.38273389 | S131: 90.46611744 | T131: 75.29422168 | U131: 70.84313006 | V131: 82.97497922 | W131: 83.51610567 | Y131: 0.8297497922
A132: NCS S 0520-B90G | B132: 20 | C132: 0 | D132: 20 | E132: 0 | F132: 221 | G132: 249 | H132: 221 | I132: 221 | J132: 249 | K132: 221 | L132: 0.8666666667 | M132: 0.9764705882 | N132: 0.8666666667 | O132: 0.7230551289 | P132: 0.9473065367 | Q132: 0.7230551289 | R132: 72.30551289 | S132: 94.73065367 | T132: 72.30551289 | U132: 76.74562035 | V132: 88.34397358 | W132: 81.41378032 | Y132: 0.8834397358
A133: NCS S 0520-G | B133: 15 | C133: 0 | D133: 15 | E133: 0 | F133: 232 | G133: 250 | H133: 232 | I133: 232 | J133: 250 | K133: 232 | L133: 0.9098039216 | M133: 0.9803921569 | N133: 0.9098039216 | O133: 0.8069522577 | P133: 0.9559733532 | Q133: 0.8069522577 | R133: 80.69522577 | S133: 95.59733532 | T133: 80.69522577 | U133: 82.02980647 | V133: 91.35321452 | W133: 89.65343232 | Y133: 0.9135321452
A134: NCS S 0520-G10Y | B134: 17 | C134: 0 | D134: 24 | E134: 0 | F134: 231 | G134: 249 | H134: 215 | I134: 231 | J134: 249 | K134: 215 | L134: 0.9058823529 | M134: 0.9764705882 | N134: 0.8431372549 | O134: 0.799102738 | P134: 0.9473065367 | Q134: 0.6795424696 | R134: 79.9102738 | S134: 94.73065367 | T134: 67.95424696 | U134: 79.09642025 | V134: 89.64658435 | W134: 77.42467394 | Y134: 0.8964658435
A135: NCS S 0520-G20Y | B135: 18 | C135: 0 | D135: 28 | E135: 0 | F135: 230 | G135: 248 | H135: 207 | I135: 230 | J135: 248 | K135: 207 | L135: 0.9019607843 | M135: 0.9725490196 | N135: 0.8117647059 | O135: 0.7912979403 | P135: 0.9386857285 | Q135: 0.6239603917 | R135: 79.12979403 | S135: 93.86857285 | T135: 62.39603917 | U135: 77.46301378 | V135: 88.46279154 | W135: 72.02377414 | Y135: 0.8846279154
A136: NCS S 0520-G30Y | B136: 15 | C136: 0 | D136: 28 | E136: 0 | F136: 237 | G136: 249 | H136: 207 | I136: 237 | J136: 249 | K136: 207 | L136: 0.9294117647 | M136: 0.9764705882 | N136: 0.8117647059 | O136: 0.8468732315 | P136: 0.9473065367 | Q136: 0.6239603917 | R136: 84.68732315 | S136: 94.73065367 | T136: 62.39603917 | U136: 80.06321889 | V136: 90.26088244 | W136: 72.23379448 | Y136: 0.9026088244
A137: NCS S 0520-G40Y | B137: 13 | C137: 0 | D137: 30 | E137: 0 | F137: 241 | G137: 248 | H137: 203 | I137: 241 | J137: 248 | K137: 203 | L137: 0.9450980392 | M137: 0.9725490196 | N137: 0.7960784314 | O137: 0.8796223969 | P137: 0.9386857285 | Q137: 0.5972017884 | R137: 87.96223969 | S137: 93.86857285 | T137: 59.72017884 | U137: 80.62252158 | V137: 90.14737237 | W137: 69.65083509 | Y137: 0.9014737237
A138: NCS S 0520-G50Y | B138: 10 | C138: 0 | D138: 30 | E138: 0 | F138: 246 | G138: 249 | H138: 203 | I138: 246 | J138: 249 | K138: 203 | L138: 0.9647058824 | M138: 0.9764705882 | N138: 0.7960784314 | O138: 0.9215818563 | P138: 0.9473065367 | Q138: 0.5972017884 | R138: 92.15818563 | S138: 94.73065367 | T138: 59.72017884 | U138: 82.66120979 | V138: 91.65599068 | W138: 69.83457688 | Y138: 0.9165599068
A139: NCS S 0520-G60Y | B139: 8 | C139: 0 | D139: 30 | E139: 0 | F139: 248 | G139: 248 | H139: 203 | I139: 248 | J139: 248 | K139: 203 | L139: 0.9725490196 | M139: 0.9725490196 | N139: 0.7960784314 | O139: 0.9386857285 | P139: 0.9386857285 | Q139: 0.5972017884 | R139: 93.86857285 | S139: 93.86857285 | T139: 59.72017884 | U139: 83.05829337 | V139: 91.4030588 | W139: 69.76482732 | Y139: 0.914030588
A140: NCS S 0520-G70Y | B140: 6 | C140: 0 | D140: 30 | E140: 0 | F140: 251 | G140: 249 | H140: 203 | I140: 251 | J140: 249 | K140: 203 | L140: 0.9843137255 | M140: 0.9764705882 | N140: 0.7960784314 | O140: 0.9646862479 | P140: 0.9473065367 | Q140: 0.5972017884 | R140: 96.46862479 | S140: 94.73065367 | T140: 59.72017884 | U140: 84.4388349 | V140: 92.57239005 | W140: 69.91776836 | Y140: 0.9257239005
A141: NCS S 0520-G80Y | B141: 4 | C141: 0 | D141: 30 | E141: 0 | F141: 252 | G141: 248 | H141: 202 | I141: 252 | J141: 248 | K141: 202 | L141: 0.9882352941 | M141: 0.9725490196 | N141: 0.7921568627 | O141: 0.9734452904 | P141: 0.9386857285 | Q141: 0.5906188409 | R141: 97.34452904 | S141: 93.86857285 | T141: 59.06188409 | U141: 84.3729555 | V141: 92.0945182 | W141: 69.20620412 | Y141: 0.920945182
A142: NCS S 0520-G90Y | B142: 0 | C142: 0 | D142: 35 | E142: 0 | F142: 255 | G142: 246 | H142: 190 | I142: 255 | J142: 246 | K142: 190 | L142: 1 | M142: 0.9647058824 | N142: 0.7450980392 | O142: 1 | P142: 0.9215818563 | Q142: 0.5149176654 | R142: 100 | S142: 92.15818563 | T142: 51.49176654 | U142: 83.49003104 | V142: 90.8892399 | W142: 61.85817982 | Y142: 0.908892399
A143: NCS S 0520-R | B143: 0 | C143: 25 | D143: 15 | E143: 0 | F143: 255 | G143: 211 | H143: 207 | I143: 255 | J143: 211 | K143: 207 | L143: 1 | M143: 0.8274509804 | N143: 0.8117647059 | O143: 1 | P143: 0.6514056374 | Q143: 0.6239603917 | R143: 100 | S143: 65.14056374 | T143: 62.39603917 | U143: 75.79675066 | V143: 72.35352522 | W143: 69.00219043 | Y143: 0.7235352522
A144: NCS S 0520-R10B | B144: 0 | C144: 24 | D144: 9 | E144: 0 | F144: 255 | G144: 215 | H144: 220 | I144: 255 | J144: 215 | K144: 220 | L144: 1 | M144: 0.8431372549 | N144: 0.862745098 | O144: 1 | P144: 0.6795424696 | Q144: 0.7156935005 | R144: 100 | S144: 67.95424696 | T144: 71.56935005 | U144: 78.4587064 | V144: 75.0281845 | W144: 78.05681346 | Y144: 0.750281845
A145: NCS S 0520-R20B | B145: 0 | C145: 22 | D145: 6 | E145: 0 | F145: 255 | G145: 219 | H145: 227 | I145: 255 | J145: 219 | K145: 227 | L145: 1 | M145: 0.8588235294 | N145: 0.8901960784 | O145: 1 | P145: 0.7083757799 | Q145: 0.7681511472 | R145: 100 | S145: 70.83757799 | T145: 76.81511472 | U145: 80.4366461 | V145: 77.46908706 | W145: 83.38660584 | Y145: 0.7746908706
A146: NCS S 0520-R30B | B146: 0 | C146: 20 | D146: 2 | E146: 0 | F146: 254 | G146: 220 | H146: 233 | I146: 254 | J146: 220 | K146: 233 | L146: 0.9960784314 | M146: 0.862745098 | N146: 0.9137254902 | O146: 0.9911020971 | P146: 0.7156935005 | Q146: 0.8148465722 | R146: 99.11020971 | S146: 71.56935005 | T146: 81.48465722 | U146: 81.17423069 | V146: 78.14042199 | W146: 87.89506026 | Y146: 0.7814042199
A147: NCS S 0520-R40B | B147: 0 | C147: 20 | D147: 0 | E147: 0 | F147: 253 | G147: 220 | H147: 236 | I147: 253 | J147: 220 | K147: 236 | L147: 0.9921568627 | M147: 0.862745098 | N147: 0.9254901961 | O147: 0.9822505503 | P147: 0.7156935005 | Q147: 0.8387990117 | R147: 98.22505503 | S147: 71.56935005 | T147: 83.87990117 | U147: 81.24153444 | V147: 78.12517472 | W147: 90.15465615 | Y147: 0.7812517472
A148: NCS S 0520-R50B | B148: 6 | C148: 15 | D148: 0 | E148: 0 | F148: 248 | G148: 227 | H148: 247 | I148: 248 | J148: 227 | K148: 247 | L148: 0.9725490196 | M148: 0.8901960784 | N148: 0.968627451 | O148: 0.9386857285 | P148: 0.7681511472 | Q148: 0.9301108584 | R148: 93.86857285 | S148: 76.81511472 | T148: 93.01108584 | U148: 82.96898546 | V148: 81.61002904 | W148: 99.37506222 | Y148: 0.8161002904
A149: NCS S 0520-R60B | B149: 12 | C149: 11 | D149: 0 | E149: 0 | F149: 233 | G149: 230 | H149: 249 | I149: 233 | J149: 230 | K149: 249 | L149: 0.9137254902 | M149: 0.9019607843 | N149: 0.9764705882 | O149: 0.8148465722 | P149: 0.7912979403 | Q149: 0.9473065367 | R149: 81.48465722 | S149: 79.12979403 | T149: 94.73065367 | U149: 78.99996997 | V149: 80.75682001 | W149: 101.0464116 | Y149: 0.8075682001
A150: NCS S 0520-R70B | B150: 15 | C150: 10 | D150: 0 | E150: 0 | F150: 227 | G150: 230 | H150: 248 | I150: 227 | J150: 230 | K150: 248 | L150: 0.8901960784 | M150: 0.9019607843 | N150: 0.9725490196 | O150: 0.7681511472 | P150: 0.7912979403 | Q150: 0.9386857285 | R150: 76.81511472 | S150: 79.12979403 | T150: 93.86857285 | U150: 76.91864506 | V150: 79.70183304 | W150: 100.1368817 | Y150: 0.7970183304
A151: NCS S 0520-R80B | B151: 20 | C151: 3 | D151: 0 | E151: 0 | F151: 218 | G151: 237 | H151: 249 | I151: 218 | J151: 237 | K151: 249 | L151: 0.8549019608 | M151: 0.9294117647 | N151: 0.9764705882 | O151: 0.7011018919 | P151: 0.8468732315 | Q151: 0.9473065367 | R151: 70.11018919 | S151: 84.68732315 | T151: 94.73065367 | U151: 76.29651177 | V151: 82.31335294 | W151: 101.4893419 | Y151: 0.8231335294
A152: NCS S 0520-R90B | B152: 23 | C152: 1 | D152: 0 | E152: 0 | F152: 212 | G152: 237 | H152: 249 | I152: 212 | J152: 237 | K152: 249 | L152: 0.831372549 | M152: 0.9294117647 | N152: 0.9764705882 | O152: 0.6583748173 | P152: 0.8468732315 | Q152: 0.9473065367 | R152: 65.83748173 | S152: 84.68732315 | T152: 94.73065367 | U152: 74.53444721 | V152: 81.40497533 | W152: 101.4068786 | Y152: 0.8140497533
A153: NCS S 0520-Y | B153: 0 | C153: 3 | D153: 46 | E153: 0 | F153: 255 | G153: 238 | H153: 167 | I153: 255 | J153: 238 | K153: 167 | L153: 1 | M153: 0.9333333333 | N153: 0.6549019608 | O153: 1 | P153: 0.8549926081 | Q153: 0.3864294338 | R153: 100 | S153: 85.49926081 | T153: 38.64294338 | U153: 78.78958695 | V153: 85.19909184 | W153: 48.85162957 | Y153: 0.8519909184
A154: NCS S 0520-Y10R | B154: 0 | C154: 6 | D154: 46 | E154: 0 | F154: 255 | G154: 235 | H154: 165 | I154: 255 | J154: 235 | K154: 165 | L154: 1 | M154: 0.9215686275 | N154: 0.6470588235 | O154: 1 | P154: 0.8307698768 | Q154: 0.376262123 | R154: 100 | S154: 83.07698768 | T154: 37.6262123 | U154: 77.73986211 | V154: 83.39327411 | W154: 47.59649172 | Y154: 0.8339327411
A155: NCS S 0520-Y20R | B155: 0 | C155: 11 | D155: 45 | E155: 0 | F155: 255 | G155: 228 | H155: 163 | I155: 255 | J155: 228 | K155: 163 | L155: 1 | M155: 0.8941176471 | N155: 0.6392156863 | O155: 1 | P155: 0.7758222183 | Q155: 0.3662525956 | R155: 100 | S155: 77.58222183 | T155: 36.62525956 | U155: 75.59426188 | V155: 79.39114879 | W155: 45.99011005 | Y155: 0.7939114879
A156: NCS S 0520-Y30R | B156: 0 | C156: 19 | D156: 44 | E156: 0 | F156: 255 | G156: 216 | H156: 158 | I156: 255 | J156: 216 | K156: 158 | L156: 1 | M156: 0.8470588235 | N156: 0.6196078431 | O156: 1 | P156: 0.6866853124 | Q156: 0.3419144249 | R156: 100 | S156: 68.66853124 | T156: 34.19144249 | U156: 71.96742214 | V156: 72.84035569 | W156: 42.61425501 | Y156: 0.7284035569
A157: NCS S 0520-Y40R | B157: 0 | C157: 20 | D157: 40 | E157: 0 | F157: 255 | G157: 215 | H157: 165 | I157: 255 | J157: 215 | K157: 165 | L157: 1 | M157: 0.8431372549 | N157: 0.6470588235 | O157: 1 | P157: 0.6795424696 | Q157: 0.376262123 | R157: 100 | S157: 67.95424696 | T157: 37.6262123 | U157: 72.33197003 | V157: 72.57748996 | W157: 45.79386103 | Y157: 0.7257748996
A158: NCS S 0520-Y50R | B158: 0 | C158: 24 | D158: 38 | E158: 0 | F158: 255 | G158: 208 | H158: 165 | I158: 255 | J158: 208 | K158: 165 | L158: 1 | M158: 0.8156862745 | N158: 0.6470588235 | O158: 1 | P158: 0.6307571363 | Q158: 0.376262123 | R158: 100 | S158: 63.07571363 | T158: 37.6262123 | U158: 70.58740652 | V158: 69.08836292 | W158: 45.21233986 | Y158: 0.6908836292
A159: NCS S 0520-Y60R | B159: 0 | C159: 21 | D159: 31 | E159: 0 | F159: 255 | G159: 215 | H159: 182 | I159: 255 | J159: 215 | K159: 182 | L159: 1 | M159: 0.8431372549 | N159: 0.7137254902 | O159: 1 | P159: 0.6795424696 | Q159: 0.4677837961 | R159: 100 | S159: 67.95424696 | T159: 46.77837961 | U159: 73.98393623 | V159: 73.23827644 | W159: 54.49299606 | Y159: 0.7323827644
A160: NCS S 0520-Y70R | B160: 0 | C160: 25 | D160: 27 | E160: 0 | F160: 255 | G160: 208 | H160: 184 | I160: 255 | J160: 208 | K160: 184 | L160: 1 | M160: 0.8156862745 | N160: 0.7215686275 | O160: 1 | P160: 0.6307571363 | Q160: 0.4793201831 | R160: 100 | S160: 63.07571363 | T160: 47.93201831 | U160: 72.4476045 | V160: 69.83244211 | W160: 55.00800847 | Y160: 0.6983244211
A161: NCS S 0520-Y80R | B161: 0 | C161: 24 | D161: 23 | E161: 0 | F161: 255 | G161: 211 | H161: 192 | I161: 255 | J161: 211 | K161: 192 | L161: 1 | M161: 0.8274509804 | N161: 0.7529411765 | O161: 1 | P161: 0.6514056374 | Q161: 0.5271151257 | R161: 100 | S161: 65.14056374 | T161: 52.71151257 | U161: 74.04869361 | V161: 71.6543024 | W161: 59.7970479 | Y161: 0.716543024
A162: NCS S 0520-Y90R | B162: 0 | C162: 26 | D162: 19 | E162: 0 | F162: 255 | G162: 207 | H162: 197 | I162: 255 | J162: 207 | K162: 197 | L162: 1 | M162: 0.8117647059 | N162: 0.7725490196 | O162: 1 | P162: 0.6239603917 | Q162: 0.5583403896 | R162: 100 | S162: 62.39603917 | T162: 55.83403896 | U162: 73.63086764 | V162: 69.91686483 | W162: 62.4378619 | Y162: 0.6991686483
A163: NCS S 0525-R60B | B163: 17 | C163: 15 | D163: 0 | E163: 0 | F163: 223 | G163: 220 | H163: 245 | I163: 223 | J163: 220 | K163: 245 | L163: 0.8745098039 | M163: 0.862745098 | N163: 0.9607843137 | O163: 0.7379104088 | P163: 0.7156935005 | Q163: 0.9130986518 | R163: 73.79104088 | S163: 71.56935005 | T163: 91.30986518 | U163: 72.5060555 | V163: 73.46694671 | W163: 96.74526047 | Y163: 0.7346694671
A164: NCS S 0525-R70B | B164: 20 | C164: 12 | D164: 0 | E164: 0 | F164: 215 | G164: 224 | H164: 245 | I164: 215 | J164: 224 | K164: 245 | L164: 0.8431372549 | M164: 0.8784313725 | N164: 0.9607843137 | O164: 0.6795424696 | P164: 0.7454042095 | Q164: 0.9130986518 | R164: 67.95424696 | S164: 74.54042095 | T164: 91.30986518 | U164: 71.16141665 | V164: 74.35095424 | W164: 96.986762 | Y164: 0.7435095424
A165: NCS S 0530-B | B165: 32 | C165: 0 | D165: 2 | E165: 0 | F165: 194 | G165: 232 | H165: 244 | I165: 194 | J165: 232 | K165: 244 | L165: 0.7607843137 | M165: 0.9098039216 | N165: 0.9568627451 | O165: 0.539479489 | P165: 0.8069522577 | Q165: 0.9046611744 | R165: 53.9479489 | S165: 80.69522577 | T165: 90.46611744 | U165: 67.43388106 | V165: 75.71421308 | W165: 96.64811095 | Y165: 0.7571421308
A166: NCS S 0530-B10G | B166: 39 | C166: 0 | D166: 6 | E166: 0 | F166: 180 | G166: 230 | H166: 240 | I166: 180 | J166: 230 | K166: 240 | L166: 0.7058823529 | M166: 0.9019607843 | N166: 0.9411764706 | O166: 0.4564110232 | P166: 0.7912979403 | Q166: 0.8713671192 | R166: 45.64110232 | S166: 79.12979403 | T166: 87.13671192 | U166: 62.84738144 | V166: 72.58819765 | W166: 93.1365894 | Y166: 0.7258819765
A167: NCS S 0530-B30G | B167: 36 | C167: 0 | D167: 15 | E167: 0 | F167: 190 | G167: 238 | H167: 236 | I167: 190 | J167: 238 | K167: 236 | L167: 0.7450980392 | M167: 0.9333333333 | N167: 0.9254901961 | O167: 0.5149176654 | P167: 0.8549926081 | Q167: 0.8387990117 | R167: 51.49176654 | S167: 85.49926081 | T167: 83.87990117 | U167: 66.95006235 | V167: 78.15234976 | W167: 90.91314905 | Y167: 0.7815234976
A168: NCS S 0530-B40G | B168: 45 | C168: 0 | D168: 19 | E168: 0 | F168: 167 | G168: 231 | H168: 228 | I168: 167 | J168: 231 | K168: 228 | L168: 0.6549019608 | M168: 0.9058823529 | N168: 0.8941176471 | O168: 0.3864294338 | P168: 0.799102738 | Q168: 0.7758222183 | R168: 38.64294338 | S168: 79.9102738 | T168: 77.58222183 | U168: 58.5158548 | V168: 70.968754 | W168: 84.0130153 | Y168: 0.70968754
A169: NCS S 0530-B50G | B169: 39 | C169: 0 | D169: 21 | E169: 0 | F169: 184 | G169: 238 | H169: 227 | I169: 184 | J169: 238 | K169: 227 | L169: 0.7215686275 | M169: 0.9333333333 | N169: 0.8901960784 | O169: 0.4793201831 | P169: 0.8549926081 | Q169: 0.7681511472 | R169: 47.93201831 | S169: 85.49926081 | T169: 76.81511472 | U169: 64.20682823 | V169: 76.88546971 | W169: 84.12936639 | Y169: 0.7688546971
A170: NCS S 0530-B60G | B170: 37 | C170: 0 | D170: 23 | E170: 0 | F170: 190 | G170: 240 | H170: 224 | I170: 190 | J170: 240 | K170: 224 | L170: 0.7450980392 | M170: 0.9411764706 | N170: 0.8784313725 | O170: 0.5149176654 | P170: 0.8713671192 | Q170: 0.7454042095 | R170: 51.49176654 | S170: 87.13671192 | T170: 74.54042095 | U170: 65.84983868 | V170: 78.64914432 | W170: 82.23115727 | Y170: 0.7864914432
A171: NCS S 0530-B70G | B171: 35 | C171: 0 | D171: 24 | E171: 0 | F171: 195 | G171: 242 | H171: 223 | I171: 195 | J171: 242 | K171: 223 | L171: 0.7647058824 | M171: 0.9490196078 | N171: 0.8745098039 | O171: 0.5457244614 | P171: 0.8879231179 | Q171: 0.7379104088 | R171: 54.57244614 | S171: 88.79231179 | T171: 73.79104088 | U171: 67.57709036 | V171: 80.43407659 | W171: 81.77567613 | Y171: 0.8043407659
A172: NCS S 0530-B90G | B172: 30 | C172: 0 | D172: 29 | E172: 0 | F172: 204 | G172: 244 | H172: 208 | I172: 204 | J172: 244 | K172: 208 | L172: 0.8 | M172: 0.9568627451 | N172: 0.8156862745 | O172: 0.6038273389 | P172: 0.9046611744 | Q172: 0.6307571363 | R172: 60.38273389 | S172: 90.46611744 | T172: 63.07571363 | U172: 68.63768936 | V172: 82.09280294 | W172: 71.90241377 | Y172: 0.8209280294
A173: NCS S 0530-G | B173: 25 | C173: 0 | D173: 25 | E173: 0 | F173: 214 | G173: 247 | H173: 214 | I173: 214 | J173: 247 | K173: 214 | L173: 0.8392156863 | M173: 0.968627451 | N173: 0.8392156863 | O173: 0.672443157 | P173: 0.9301108584 | Q173: 0.672443157 | R173: 67.2443157 | S173: 93.01108584 | T173: 67.2443157 | U173: 73.12991907 | V173: 85.6727097 | W173: 76.30045879 | Y173: 0.856727097
A174: NCS S 0530-G10Y | B174: 27 | C174: 0 | D174: 34 | E174: 0 | F174: 213 | G174: 244 | H174: 195 | I174: 213 | J174: 244 | K174: 195 | L174: 0.8352941176 | M174: 0.9568627451 | N174: 0.7647058824 | O174: 0.6653872983 | P174: 0.9046611744 | Q174: 0.5457244614 | R174: 66.53872983 | S174: 90.46611744 | T174: 54.57244614 | U174: 69.64158231 | V174: 82.78763177 | W174: 63.93886874 | Y174: 0.8278763177
A175: NCS S 0530-G20Y | B175: 29 | C175: 0 | D175: 40 | E175: 0 | F175: 211 | G175: 242 | H175: 182 | I175: 211 | J175: 242 | K175: 182 | L175: 0.8274509804 | M175: 0.9490196078 | N175: 0.7137254902 | O175: 0.6514056374 | P175: 0.8879231179 | Q175: 0.4677837961 | R175: 65.14056374 | S175: 88.79231179 | T175: 46.77837961 | U175: 67.0595967 | V175: 80.73054425 | W175: 56.30410627 | Y175: 0.8073054425
A176: NCS S 0530-G30Y | B176: 25 | C176: 0 | D176: 40 | E176: 0 | F176: 221 | G176: 244 | H176: 183 | I176: 221 | J176: 244 | K176: 183 | L176: 0.8666666667 | M176: 0.9568627451 | N176: 0.7176470588 | O176: 0.7230551289 | P176: 0.9046611744 | Q176: 0.4735314961 | R176: 72.30551289 | S176: 90.46611744 | T176: 47.35314961 | U176: 70.71672062 | V176: 83.49241664 | W176: 57.18822631 | Y176: 0.8349241664
A177: NCS S 0530-G40Y | B177: 20 | C177: 0 | D177: 40 | E177: 0 | F177: 231 | G177: 245 | H177: 182 | I177: 231 | J177: 245 | K177: 182 | L177: 0.9058823529 | M177: 0.9607843137 | N177: 0.7137254902 | O177: 0.799102738 | P177: 0.9130986518 | Q177: 0.4677837961 | R177: 79.9102738 | S177: 91.30986518 | T177: 46.77837961 | U177: 74.05090222 | V177: 85.67113879 | W177: 56.88925403 | Y177: 0.8567113879
A178: NCS S 0530-G50Y | B178: 15 | C178: 0 | D178: 40 | E178: 0 | F178: 239 | G178: 245 | H178: 183 | I178: 239 | J178: 245 | K178: 183 | L178: 0.937254902 | M178: 0.9607843137 | N178: 0.7176470588 | O178: 0.8631572135 | P178: 0.9130986518 | Q178: 0.4735314961 | R178: 86.31572135 | S178: 91.30986518 | T178: 47.35314961 | U178: 76.79625478 | V178: 87.07443534 | W178: 57.55919806 | Y178: 0.8707443534
A179: NCS S 0530-G60Y | B179: 15 | C179: 0 | D179: 45 | E179: 0 | F179: 240 | G179: 244 | H179: 172 | I179: 240 | J179: 244 | K179: 172 | L179: 0.9411764706 | M179: 0.9568627451 | N179: 0.6745098039 | O179: 0.8713671192 | P179: 0.9046611744 | Q179: 0.4125426135 | R179: 87.13671192 | S179: 90.46611744 | T179: 41.25426135 | U179: 75.73225777 | V179: 86.20518982 | W179: 51.67747515 | Y179: 0.8620518982
A180: NCS S 0530-G70Y | B180: 10 | C180: 0 | D180: 50 | E180: 0 | F180: 247 | G180: 243 | H180: 158 | I180: 247 | J180: 243 | K180: 158 | L180: 0.968627451 | M180: 0.9529411765 | N180: 0.6196078431 | O180: 0.9301108584 | P180: 0.8962693534 | Q180: 0.3419144249 | R180: 93.01108584 | S180: 89.62693534 | T180: 34.19144249 | U180: 76.57991925 | V180: 86.34396315 | W180: 44.97761074 | Y180: 0.8634396315
A181: NCS S 0530-G80Y | B181: 5 | C181: 0 | D181: 45 | E181: 0 | F181: 251 | G181: 244 | H181: 169 | I181: 251 | J181: 244 | K181: 169 | L181: 0.9843137255 | M181: 0.9568627451 | N181: 0.662745098 | O181: 0.9646862479 | P181: 0.9046611744 | Q181: 0.3967552307 | R181: 96.46862479 | S181: 90.46611744 | T181: 39.67552307 | U181: 79.29577637 | V181: 88.07516959 | W181: 50.35699034 | Y181: 0.8807516959
A182: NCS S 0530-G90Y | B182: 0 | C182: 0 | D182: 45 | E182: 0 | F182: 255 | G182: 242 | H182: 169 | I182: 255 | J182: 242 | K182: 169 | L182: 1 | M182: 0.9490196078 | N182: 0.662745098 | O182: 1 | P182: 0.8879231179 | Q182: 0.3967552307 | R182: 100 | S182: 88.79231179 | T182: 39.67552307 | U182: 80.15356261 | V182: 87.62883416 | W182: 50.22562825 | Y182: 0.8762883416
A183: NCS S 0530-R | B183: 0 | C183: 34 | D183: 23 | E183: 0 | F183: 255 | G183: 193 | H183: 185 | I183: 255 | J183: 193 | K183: 185 | L183: 1 | M183: 0.7568627451 | N183: 0.7254901961 | O183: 1 | P183: 0.533276404 | Q183: 0.4851499401 | R183: 100 | S183: 53.3276404 | T183: 48.51499401 | U183: 69.06692063 | V183: 62.90271098 | W183: 54.40015654 | Y183: 0.6290271098
A184: NCS S 0530-R10B | B184: 0 | C184: 32 | D184: 12 | E184: 0 | F184: 255 | G184: 199 | H184: 207 | I184: 255 | J184: 199 | K184: 207 | L184: 1 | M184: 0.7803921569 | N184: 0.8117647059 | O184: 1 | P184: 0.5711248295 | Q184: 0.6239603917 | R184: 100 | S184: 57.11248295 | T184: 62.39603917 | U184: 72.92590897 | V184: 66.61184183 | W184: 68.0452432 | Y184: 0.6661184183
A185: NCS S 0530-R20B | B185: 0 | C185: 35 | D185: 6 | E185: 0 | F185: 253 | G185: 193 | H185: 212 | I185: 253 | J185: 193 | K185: 212 | L185: 0.9921568627 | M185: 0.7568627451 | N185: 0.831372549 | O185: 0.9822505503 | P185: 0.533276404 | Q185: 0.6583748173 | R185: 98.22505503 | S185: 53.3276404 | T185: 65.83748173 | U185: 71.46164236 | V185: 63.7760413 | W185: 70.83092468 | Y185: 0.637760413
A186: NCS S 0530-R30B | B186: 0 | C186: 34 | D186: 2 | E186: 0 | F186: 250 | G186: 192 | H186: 217 | I186: 250 | J186: 192 | K186: 217 | L186: 0.9803921569 | M186: 0.7529411765 | N186: 0.8509803922 | O186: 0.9559733532 | P186: 0.5271151257 | Q186: 0.6938717613 | R186: 95.59733532 | S186: 52.71151257 | T186: 69.38717613 | U186: 70.79836327 | V186: 63.0330214 | W186: 74.08075178 | Y186: 0.630330214
A187: NCS S 0530-R40B | B187: 5 | C187: 30 | D187: 0 | E187: 0 | F187: 245 | G187: 196 | H187: 227 | I187: 245 | J187: 196 | K187: 227 | L187: 0.9607843137 | M187: 0.768627451 | N187: 0.8901960784 | O187: 0.9130986518 | P187: 0.5520114015 | Q187: 0.7681511472 | R187: 91.30986518 | S187: 55.20114015 | T187: 76.81511472 | U187: 71.26124433 | V187: 64.43838406 | W187: 81.35502285 | Y187: 0.6443838406
A188: NCS S 0530-R50B | B188: 13 | C188: 28 | D188: 0 | E188: 0 | F188: 238 | G188: 199 | H188: 239 | I188: 238 | J188: 199 | K188: 239 | L188: 0.9333333333 | M188: 0.7803921569 | N188: 0.937254902 | O188: 0.8549926081 | P188: 0.5711248295 | Q188: 0.8631572135 | R188: 85.49926081 | S188: 57.11248295 | T188: 86.31572135 | U188: 71.26330676 | V188: 65.25598573 | W188: 90.50103684 | Y188: 0.6525598573
A189: NCS S 0530-R80B | B189: 30 | C189: 7 | D189: 0 | E189: 0 | F189: 194 | G189: 223 | H189: 242 | I189: 194 | J189: 223 | K189: 242 | L189: 0.7607843137 | M189: 0.8745098039 | N189: 0.9490196078 | O189: 0.539479489 | P189: 0.7379104088 | Q189: 0.8879231179 | R189: 53.9479489 | S189: 73.79104088 | T189: 88.79231179 | U189: 64.66282262 | V189: 70.65549128 | W189: 94.23417984 | Y189: 0.7065549128
A190: NCS S 0530-R90B | B190: 35 | C190: 2 | D190: 0 | E190: 0 | F190: 186 | G190: 226 | H190: 243 | I190: 186 | J190: 226 | K190: 243 | L190: 0.7294117647 | M190: 0.8862745098 | N190: 0.9529411765 | O190: 0.4910208498 | P190: 0.7605245047 | Q190: 0.8962693534 | R190: 49.10208498 | S190: 76.05245047 | T190: 89.62693534 | U190: 63.62371796 | V190: 71.30288057 | W190: 95.20352437 | Y190: 0.7130288057
A191: NCS S 0530-Y | B191: 0 | C191: 3 | D191: 55 | E191: 0 | F191: 255 | G191: 235 | H191: 146 | I191: 255 | J191: 235 | K191: 146 | L191: 1 | M191: 0.9215686275 | N191: 0.5725490196 | O191: 1 | P191: 0.8307698768 | Q191: 0.2874408377 | R191: 100 | S191: 83.07698768 | T191: 28.74408377 | U191: 76.13663791 | V191: 82.75198444 | W191: 39.15402856 | Y191: 0.8275198444
A192: NCS S 0530-Y10R | B192: 0 | C192: 11 | D192: 53 | E192: 0 | F192: 255 | G192: 226 | H192: 146 | I192: 255 | J192: 226 | K192: 146 | L192: 1 | M192: 0.8862745098 | N192: 0.5725490196 | O192: 1 | P192: 0.7605245047 | Q192: 0.2874408377 | R192: 100 | S192: 76.05245047 | T192: 28.74408377 | U192: 73.62466341 | V192: 77.72803542 | W192: 38.31670372 | Y192: 0.7772803542
A193: NCS S 0530-Y20R | B193: 0 | C193: 21 | D193: 60 | E193: 0 | F193: 255 | G193: 209 | H193: 122 | I193: 255 | J193: 209 | K193: 122 | L193: 1 | M193: 0.8196078431 | N193: 0.4784313725 | O193: 1 | P193: 0.637596874 | Q193: 0.1946178304 | R193: 100 | S193: 63.7596874 | T193: 19.46178304 | U193: 67.55331605 | V193: 68.26606916 | W193: 28.02857952 | Y193: 0.6826606916
A194: NCS S 0530-Y30R | B194: 0 | C194: 24 | D194: 49 | E194: 0 | F194: 255 | G194: 206 | H194: 144 | I194: =F194 -> 255 | J194: =G194 -> 206 | K194: =H194 -> 144 | L194: =I194/255 -> 1 | M194: =J194/255 -> 0.8078431373 | N194: =K194/255 -> 0.5647058824 | O194: =IF(L194>0.04045,((L194+0.055)/1.055)^2.4,L194/12.92) -> 1 | P194: =IF(M194>0.04045,((M194+0.055)/1.055)^2.4,M194/12.92) -> 0.6172065624 | Q194: =IF(N194>0.04045,((N194+0.055)/1.055)^2.4,N194/12.92) -> 0.2788942635 | R194: =O194*100 -> 100 | S194: =P194*100 -> 61.72065624 | T194: =Q194*100 -> 27.88942635 | U194: =R194*0.4124+S194*0.3576+T194*0.1805 -> 68.34534813 | V194: =R194*0.2126+S194*0.7152+T194*0.0722 -> 67.41622993 | W194: =R194*0.0193+S194*0.1192+T194*0.9505 -> 35.79600197 | Y194: =V194/100 -> 0.6741622993
A195: NCS S 0530-Y40R | B195: 0 | C195: 30 | D195: 50 | E195: 0 | F195: 255 | G195: 195 | H195: 136 | I195: 255 | J195: 195 | K195: 136 | L195: 1 | M195: 0.7647058824 | N195: 0.5333333333 | O195: 1 | P195: 0.5457244614 | Q195: 0.2462013267 | R195: 100 | S195: 54.57244614 | T195: 24.62013267 | U195: 65.19904069 | V195: 62.06778706 | W195: 31.83647168 | Y195: 0.6206778706
A196: NCS S 0530-Y50R | B196: 0 | C196: 34 | D196: 49 | E196: 0 | F196: 255 | G196: 187 | H196: 134 | I196: 255 | J196: 187 | K196: 134 | L196: 1 | M196: 0.7333333333 | N196: 0.5254901961 | O196: 1 | P196: 0.4969329951 | Q196: 0.2383975738 | R196: 100 | S196: 49.69329951 | T196: 23.83975738 | U196: 63.31340011 | V196: 58.52187829 | W196: 30.51313069 | Y196: 0.5852187829
A197: NCS S 0530-Y60R | B197: 0 | C197: 35 | D197: 42 | E197: 0 | F197: 255 | G197: 186 | H197: 146 | I197: 255 | J197: 186 | K197: 146 | L197: 1 | M197: 0.7294117647 | N197: 0.5725490196 | O197: 1 | P197: 0.4910208498 | Q197: 0.2874408377 | R197: 100 | S197: 49.10208498 | T197: 28.74408377 | U197: 63.98721271 | V197: 58.45313403 | W197: 35.10422016 | Y197: 0.5845313403
A198: NCS S 0530-Y70R | B198: 0 | C198: 40 | D198: 39 | E198: 0 | F198: 254 | G198: 174 | H198: 145 | I198: 254 | J198: 174 | K198: 145 | L198: 0.9960784314 | M198: 0.6823529412 | N198: 0.568627451 | O198: 0.9911020971 | P198: 0.42326767 | Q198: 0.2831487404 | R198: 99.11020971 | S198: 42.326767 | T198: 28.31487404 | U198: 61.11993713 | V198: 53.38726825 | W198: 33.87146545 | Y198: 0.5338726825
A199: NCS S 0530-Y80R | B199: 0 | C199: 36 | D199: 33 | E199: 0 | F199: 255 | G199: 185 | H199: 162 | I199: 255 | J199: 185 | K199: 162 | L199: 1 | M199: 0.7254901961 | N199: 0.6352941176 | O199: 1 | P199: 0.4851499401 | Q199: 0.3613067798 | R199: 100 | S199: 48.51499401 | T199: 36.13067798 | U199: 65.11054923 | V199: 58.56655866 | W199: 42.0551967 | Y199: 0.5856655866
A200: NCS S 0530-Y90R | B200: 0 | C200: 35 | D200: 26 | E200: 0 | F200: 255 | G200: 190 | H200: 178 | I200: 255 | J200: 190 | K200: 178 | L200: 1 | M200: 0.7450980392 | N200: 0.6980392157 | O200: 1 | P200: 0.5149176654 | Q200: 0.4452011945 | R200: 100 | S200: 51.49176654 | T200: 44.52011945 | U200: 67.68933727 | V200: 61.30126405 | W200: 50.38419211 | Y200: 0.6130126405
... 1751 more rows

Sheet PALETTE NCS S
A1: NCS S | B1: color sample | C1: coef.refl. Y
A2: NCS S 8010-R90B | C2: 0.001810162059
A3: NCS S 8010-R30B | C3: 0.002030523193
A4: NCS S 8505-R20B | C4: 0.002030523193
A5: NCS S 8010-R10B | C5: 0.002960677813
A6: NCS S 8505-R80B | C6: 0.003170868152
A7: NCS S 7020-R60B | C7: 0.004250170421
A8: NCS S 8505-B20G | C8: 0.004275419198
A9: NCS S 7020-R70B | C9: 0.004484462993
A10: NCS S 8505-B80G | C10: 0.004523357212
A11: NCS S 7020-R30B | C11: 0.004956391108
A12: NCS S 8502-B | C12: 0.005131174733
A13: NCS S 7020-R40B | C13: 0.005254396256
A14: NCS S 8010-B10G | C14: 0.005316926373
A15: NCS S 8010-R50B | C15: 0.005405434029
A16: NCS S 7020-R50B | C16: 0.006207964727
A17: NCS S 7020-R20B | C17: 0.00629395997
A18: NCS S 8502-R | C18: 0.006468581951
A19: NCS S 9000-N | C19: 0.006568929131
A20: NCS S 8502-Y | C20: 0.006656450823
A21: NCS S 8502-G | C21: 0.006792297144
A22: NCS S 7020-R10B | C22: 0.007198440882
A23: NCS S 7020-R80B | C23: 0.007774407865
A24: NCS S 7020-R90B | C24: 0.008133633266
A25: NCS S 8010-R70B | C25: 0.008165503633
A26: NCS S 8005-R50B | C26: 0.008861506192
A27: NCS S 7020-B | C27: 0.00891990198
A28: NCS S 8010-Y90R | C28: 0.009545361901
A29: NCS S 8005-Y80R | C29: 0.009890710242
A30: NCS S 6030-R | C30: 0.0101684612
A31: NCS S 7020-R | C31: 0.0101684612
A32: NCS S 6030-R30B | C32: 0.01020889843
A33: NCS S 8505-Y80R | C33: 0.01024260164
A34: NCS S 8010-B30G | C34: 0.01104685826
A35: NCS S 6030-R20B | C35: 0.01107973393
A36: NCS S 8010-Y70R | C36: 0.01118564443
A37: NCS S 6030-R10B | C37: 0.01193906516
A38: NCS S 8010-B70G | C38: 0.01214888322
A39: NCS S 7020-Y90R | C39: 0.01266983544
A40: NCS S 8505-G20Y | C40: 0.01273109498
A41: NCS S 6030-R40B | C41: 0.01311460594
A42: NCS S 8505-G80Y | C42: 0.01337227169
A43: NCS S 8010-Y30R | C43: 0.01348328695
A44: NCS S 5540-Y90R | C44: 0.01375981722
A45: NCS S 6030-R50B | C45: 0.01407540481
A46: NCS S 8005-R80B | C46: 0.01453808414
A47: NCS S 8010-B90G | C47: 0.01463160156
A48: NCS S 8010-G90Y | C48: 0.01493564245
A49: NCS S 6030-Y90R | C49: 0.01504553161
A50: NCS S 7020-B30G | C50: 0.01532709881
A51: NCS S 6030-R60B | C51: 0.01560903581
A52: NCS S 8010-B50G | C52: 0.01579882239
A53: NCS S 8005-R20B | C53: 0.01599588456
A54: NCS S 8005-B20G | C54: 0.01608366311
A55: NCS S 6030-R70B | C55: 0.0165463784
A56: NCS S 8010-G10Y | C56: 0.01690520276
A57: NCS S 8010-Y10R | C57: 0.01712227682
A58: NCS S 7020-B10G | C58: 0.01747872981
A59: NCS S 8005-B80G | C59: 0.01770750537
A60: NCS S 6030-R80B | C60: 0.01830618712
A61: NCS S 8010-G30Y | C61: 0.01832032661
A62: NCS S 7020-G | C62: 0.01835853805
A63: NCS S 8505-Y20R | C63: 0.01868262981
A64: NCS S 7020-Y80R | C64: 0.01893576872
A65: NCS S 7020-Y60R | C65: 0.01932970768
A66: NCS S 8005-G80Y | C66: 0.01976110374
A67: NCS S 7020-Y50R | C67: 0.01977157622
A68: NCS S 5040-R30B | C68: 0.02006371847
A69: NCS S 5040-R10B | C69: 0.02029636417
A70: NCS S 7020-B90G | C70: 0.02042698616
A71: NCS S 8010-Y50R | C71: 0.02045251537
A72: NCS S 8500-N | C72: 0.02057027527
A73: NCS S 8005-Y50R | C73: 0.02094848606
A74: NCS S 7020-Y70R | C74: 0.02106468517
A75: NCS S 5040-Y90R | C75: 0.0211728388
A76: NCS S 6530-G10Y | C76: 0.02142963256
A77: NCS S 7020-B70G | C77: 0.02148523583
A78: NCS S 7020-Y40R | C78: 0.02170638708
A79: NCS S 6035-B60G | C79: 0.02179513771
A80: NCS S 5040-R60B | C80: 0.02190607677
A81: NCS S 8010-G50Y | C81: 0.02226385092
A82: NCS S 8005-Y20R | C82: 0.02234670368
A83: NCS S 8005-G20Y | C83: 0.02245729948
A84: NCS S 5540-B | C84: 0.02246937679
A85: NCS S 5540-R70B | C85: 0.02251580505
A86: NCS S 7020-G70Y | C86: 0.02293604765
A87: NCS S 7005-Y50R | C87: 0.0232378543
A88: NCS S 6530-B30G | C88: 0.02344194158
A89: NCS S 6030-B | C89: 0.02347337766
A90: NCS S 7020-G90Y | C90: 0.02398101181
A91: NCS S 8005-G50Y | C91: 0.02448144634
A92: NCS S 7020-B50G | C92: 0.02463053412
A93: NCS S 5040-R40B | C93: 0.025093511
A94: NCS S 7020-G10Y | C94: 0.02530564305
A95: NCS S 7502-B | C95: 0.02553424986
A96: NCS S 6030-B10G | C96: 0.02566790985
A97: NCS S 7502-R | C97: 0.02572869104
A98: NCS S 8010-G70Y | C98: 0.02595718958
A99: NCS S 5040-R20B | C99: 0.02638132053
A100: NCS S 7502-G | C100: 0.02649430562
A101: NCS S 7020-Y10R | C101: 0.02814819686
A102: NCS S 5040-R50B | C102: 0.02849215061
A103: NCS S 5540-R90B | C103: 0.02852090112
A104: NCS S 7010-R10B | C104: 0.02857683426
A105: NCS S 6030-R90B | C105: 0.02961734051
A106: NCS S 6030-Y60R | C106: 0.03086163926
A107: NCS S 6030-Y | C107: 0.03138037782
A108: NCS S 6530-G50Y | C108: 0.03151679764
A109: NCS S 4550-R80B | C109: 0.0316571456
A110: NCS S 6030-G | C110: 0.03185856746
A111: NCS S 7020-G30Y | C111: 0.03207188809
A112: NCS S 5040-R70B | C112: 0.03211322347
A113: NCS S 7010-R70B | C113: 0.03293053506
A114: NCS S 5540-G | C114: 0.03315557748
A115: NCS S 3560-R | C115: 0.03325791314
A116: NCS S 5040-R | C116: 0.03335050402
A117: NCS S 4550-R70B | C117: 0.03337609033
A118: NCS S 4550-Y80R | C118: 0.03387058572
A119: NCS S 6030-Y80R | C119: 0.03387361768
A120: NCS S 7020-Y30R | C120: 0.03392006757
A121: NCS S 7502-Y | C121: 0.03426267282
A122: NCS S 4050-R50B | C122: 0.03433669703
A123: NCS S 5540-B10G | C123: 0.03468308599
A124: NCS S 4550-Y90R | C124: 0.03483548195
A125: NCS S 4050-R10B | C125: 0.03495000591
A126: NCS S 7020-Y | C126: 0.03518168558
A127: NCS S 5540-B90G | C127: 0.03591732294
A128: NCS S 6020-R30B | C128: 0.03592537425
A129: NCS S 5040-R80B | C129: 0.03610183773
A130: NCS S 7010-B10G | C130: 0.03673356645
A131: NCS S 7005-Y20R | C131: 0.03681282851
A132: NCS S 6030-Y50R | C132: 0.03684383249
A133: NCS S 5040-Y80R | C133: 0.03694360792
A134: NCS S 6030-Y30R | C134: 0.03718489062
A135: NCS S 7020-Y20R | C135: 0.03780623305
A136: NCS S 7020-G50Y | C136: 0.03814235046
A137: NCS S 4050-R20B | C137: 0.03862931267
A138: NCS S 6030-B70G | C138: 0.03888542727
A139: NCS S 6020-R20B | C139: 0.03903935298
A140: NCS S 6030-Y40R | C140: 0.03928973249
A141: NCS S 7010-B30G | C141: 0.03946414253
A142: NCS S 6530-B50G | C142: 0.03962199385
A143: NCS S 7010-R50B | C143: 0.04000598718
A144: NCS S 7010-Y90R | C144: 0.04031104176
A145: NCS S 5040-R90B | C145: 0.0404603305
A146: NCS S 7010-R30B | C146: 0.04071614751
A147: NCS S 5040-Y60R | C147: 0.04098862542
A148: NCS S 7010-R90B | C148: 0.04115488809
A149: NCS S 7010-B50G | C149: 0.0413397127
A150: NCS S 5540-B50G | C150: 0.04172264934
A151: NCS S 6030-G10Y | C151: 0.04184751229
A152: NCS S 6030-Y20R | C152: 0.04191366912
A153: NCS S 7010-B70G | C153: 0.04215015998
A154: NCS S 5540-G10Y | C154: 0.04218084777
A155: NCS S 4050-R30B | C155: 0.04221003693
A156: NCS S 6030-Y10R | C156: 0.04230814716
A157: NCS S 4550-R90B | C157: 0.042516383
A158: NCS S 4050-R40B | C158: 0.04272394502
A159: NCS S 7010-Y70R | C159: 0.04285414874
A160: NCS S 6020-B | C160: 0.04324224233
A161: NCS S 6030-G90Y | C161: 0.04328203201
A162: NCS S 6030-Y70R | C162: 0.04336379068
A163: NCS S 7005-B20G | C163: 0.04338255359
A164: NCS S 6020-R | C164: 0.04350271235
A165: NCS S 4050-R60B | C165: 0.04399811554
A166: NCS S 4055-R70B | C166: 0.04405328295
A167: NCS S 7005-R50B | C167: 0.04409126477
A168: NCS S 7010-Y50R | C168: 0.04411029632
A169: NCS S 5040-Y70R | C169: 0.04432077212
A170: NCS S 5540-B30G | C170: 0.04443980748
A171: NCS S 6030-B50G | C171: 0.04482044938
A172: NCS S 3555-R60B | C172: 0.04496388156
A173: NCS S 6030-B90G | C173: 0.04577574636
A174: NCS S 5540-B20G | C174: 0.04589176695
A175: NCS S 5540-B80G | C175: 0.04619334213
A176: NCS S 6020-R10B | C176: 0.04624108426
A177: NCS S 6020-R40B | C177: 0.04628203999
A178: NCS S 5540-G20Y | C178: 0.04656644282
A179: NCS S 7005-R80B | C179: 0.0471567297
A180: NCS S 6020-R70B | C180: 0.04742101808
A181: NCS S 5045-B10G | C181: 0.04743440615
A182: NCS S 5540-G70Y | C182: 0.04772693211
A183: NCS S 3560-Y80R | C183: 0.04784185398
A184: NCS S 6020-Y90R | C184: 0.04795531869
A185: NCS S 6030-B30G | C185: 0.04809988938
A186: NCS S 5540-G30Y | C186: 0.04828919722
A187: NCS S 6020-R50B | C187: 0.04874670306
A188: NCS S 3560-Y90R | C188: 0.04902465372
A189: NCS S 7005-B80G | C189: 0.05001113896
A190: NCS S 5040-B10G | C190: 0.05036194953
A191: NCS S 6020-R60B | C191: 0.05046652026
A192: NCS S 3060-R20B | C192: 0.05047465429
A193: NCS S 3560-R80B | C193: 0.05059351872
A194: NCS S 6020-R80B | C194: 0.05074995776
A195: NCS S 4050-R70B | C195: 0.05082413148
A196: NCS S 4050-R80B | C196: 0.05095351207
A197: NCS S 6020-G | C197: 0.05132701737
A198: NCS S 5030-R20B | C198: 0.05150447485
A199: NCS S 7005-Y80R | C199: 0.05167204709
A200: NCS S 7005-G50Y | C200: 0.05183480323
... 1751 more rows

Sheet coef_refl_NBN12464-1 (hidden)
A1: parois | B1: min | C1: max
A2: MUR | B2: 0.5 | C2: 0.8
A3: SOL | B3: 0.2 | C3: 0.4
A4: PLAFOND | B4: 0.7 | C4: 0.9
A5: MOBILIER | B5: 0.2 | C5: 0.7

Sheet RAL2NCS (hidden)
A1: RAL | B1: NCS exact | C1: nearest NCS S
A2: RAL 1000 | C2: NCS S 2020-G990Y
A3: RAL 1001 | C3: NCS S 2020-Y20R
A4: RAL 1002 | C4: NCS S 2030-Y10R
A5: RAL 1003 | C5: NCS S 1080-Y10R
A6: RAL 1004 | C6: NCS S 2070-Y10R
A7: RAL 1005 | C7: NCS S 2070-Y10R
A8: RAL 1006 | C8: NCS S 2070-Y20R
A9: RAL 1007 | C9: NCS S 1080-Y20R
A10: RAL 1011 | C10: NCS S 4030-Y20R
A11: RAL 1012 | C11: NCS S 1070-Y
A12: RAL 1013 | C12: NCS S 1005-Y20R
A13: RAL 1014 | C13: NCS S 1515-Y10R
A14: RAL 1015 | C14: NCS S 1010-Y20R
A15: RAL 1016 | C15: NCS S 0560-G80Y
A16: RAL 1017 | C16: NCS S 1060-Y20R
A17: RAL 1018 | C17: NCS S 0570-Y
A18: RAL 1019 | C18: NCS S 4010-Y30R
A19: RAL 1020 | C19: NCS S 4020-G90Y
A20: RAL 1021 | C20: NCS S 1080-Y
A21: RAL 1023 | C21: NCS S 1080-Y
A22: RAL 1024 | C22: NCS S 3040-Y10R
A23: RAL 1026 | C23: NCS S
A24: RAL 1027 | C24: NCS S 3060-Y
A25: RAL 1028 | C25: NCS S 0580-Y20R
A26: RAL 1032 | C26: NCS S 2070-Y10R
A27: RAL 1033 | C27: NCS S 1070-Y20R
A28: RAL 1034 | C28: NCS S 1050-Y30R
A29: RAL 1035 | C29: NCS S
A30: RAL 1036 | C30: NCS S
A31: RAL 1037 | C31: NCS S 1080-Y20R
A32: RAL 2000 | C32: NCS S 1080-Y40R
A33: RAL 2001 | C33: NCS S 2070-Y70R
A34: RAL 2002 | C34: NCS S 1580-Y80R
A35: RAL 2003 | C35: NCS S 0570-Y50R
A36: RAL 2004 | C36: NCS S 1080-Y60R
A37: RAL 2005 | C37: NCS S
A38: RAL 2007 | C38: NCS S
A39: RAL 2008 | C39: NCS S 0580-Y60R
A40: RAL 2009 | C40: NCS S 1080-Y60R
A41: RAL 2010 | C41: NCS S 1080-Y60R
A42: RAL 2011 | C42: NCS S 1080-Y40R
A43: RAL 2012 | C43: NCS S 2060-Y70R
A44: RAL 2013 | C44: NCS S
A45: RAL 3000 | C45: NCS S 2570-Y90R
A46: RAL 3001 | C46: NCS S 2570-Y90R
A47: RAL 3002 | C47: NCS S 2570-Y90R
A48: RAL 3003 | C48: NCS S 2570-R
A49: RAL 3004 | C49: NCS S 5040-R
A50: RAL 3005 | C50: NCS S 6030-R
A51: RAL 3007 | C51: NCS S 8010-R10B
A52: RAL 3009 | C52: NCS S 6030-Y80R
A53: RAL 3011 | C53: NCS S 3560-Y90R
A54: RAL 3012 | C54: NCS S 3030-Y60R
A55: RAL 3013 | C55: NCS S 2570-Y90R
A56: RAL 3014 | C56: NCS S 2050-R
A57: RAL 3015 | C57: NCS S 1030-R
A58: RAL 3016 | C58: NCS S 3060-Y80R
A59: RAL 3017 | C59: NCS S 1070-R
A60: RAL 3018 | C60: NCS S 1070-R
A61: RAL 3020 | C61: NCS S 1085-Y90R
A62: RAL 3022 | C62: NCS S 2050-Y80R
A63: RAL 3024 | C63: NCS S
A64: RAL 3026 | C64: NCS S
A65: RAL 3027 | C65: NCS S 2070-R
A66: RAL 3031 | C66: NCS S 2070-R
A67: RAL 3032 | C67: NCS S
A68: RAL 3033 | C68: NCS S
A69: RAL 4001 | C69: NCS S 4030-R40B
A70: RAL 4002 | C70: NCS S 4040-R10B
A71: RAL 4003 | C71: NCS S 1060-R30B
A72: RAL 4004 | C72: NCS S 5040-R20B
A73: RAL 4005 | C73: NCS S 3040-R60B
A74: RAL 4006 | C74: NCS S 3055-R30B
A75: RAL 4007 | C75: NCS S 7020-R30B
A76: RAL 4008 | C76: NCS S 3050-R40B
A77: RAL 4009 | C77: NCS S 3020-R30B
A78: RAL 4010 | C78: NCS S 1070-R20B
A79: RAL 4011 | C79: NCS S
A80: RAL 4012 | C80: NCS S
A81: RAL 5000 | C81: NCS S 6020-R80B
A82: RAL 5001 | C82: NCS S 6030-R
A83: RAL 5002 | C83: NCS S 4055-R70B
A84: RAL 5003 | C84: NCS S 7020-R80B
A85: RAL 5004 | C85: NCS S 8505-R80B
A86: RAL 5005 | C86: NCS S 3560-R90B
A87: RAL 5007 | C87: NCS S 4040-R90B
A88: RAL 5008 | C88: NCS S 8010-R90B
A89: RAL 5009 | C89: NCS S 5030-B
A90: RAL 5010 | C90: NCS S 4550-R90B
A91: RAL 5011 | C91: NCS S 8010-R90B
A92: RAL 5012 | C92: NCS S 2060-R90B
A93: RAL 5013 | C93: NCS S 7020-R70B
A94: RAL 5014 | C94: NCS S 4020-R80B
A95: RAL 5015 | C95: NCS S 2065-R90B
A96: RAL 5017 | C96: NCS S 3560-R90B
A97: RAL 5018 | C97: NCS S 3050-B40G
A98: RAL 5019 | C98: NCS S 4050-R90B
A99: RAL 5020 | C99: NCS S 6530-B30G
A100: RAL 5021 | C100: NCS S 4050-B30G
A101: RAL 5022 | C101: NCS S 6030-R70B
A102: RAL 5023 | C102: NCS S 4030-R90B
A103: RAL 5024 | C103: NCS S 3030-B
A104: RAL 5025 | C104: NCS S
A105: RAL 5026 | C105: NCS S
A106: RAL 6000 | C106: NCS S 5030-G
A107: RAL 6001 | C107: NCS S 4050-G20Y
A108: RAL 6002 | C108: NCS S 5040-G20Y
A109: RAL 6003 | C109: NCS S 7010-G20Y
A110: RAL 6004 | C110: NCS S 7020-B50G
A111: RAL 6005 | C111: NCS S 7020-B90G
A112: RAL 6006 | C112: NCS S 8005-G80Y
A113: RAL 6007 | C113: NCS S 8010-G30Y
A114: RAL 6008 | C114: NCS S 8505-G80Y
A115: RAL 6009 | C115: NCS S 8010-G10Y
A116: RAL 6010 | C116: NCS S 4050-G30Y
A117: RAL 6011 | C117: NCS S 4030-G30Y
A118: RAL 6012 | C118: NCS S 8005-B80G
A119: RAL 6013 | C119: NCS S 5020-G70Y
A120: RAL 6014 | C120: NCS S 8005-G80Y
A121: RAL 6015 | C121: NCS S 8005-G50Y
A122: RAL 6016 | C122: NCS S
A123: RAL 6017 | C123: NCS S
A124: RAL 6018 | C124: NCS S
A125: RAL 6019 | C125: NCS S
A126: RAL 6020 | C126: NCS S
A127: RAL 6021 | C127: NCS S
A128: RAL 6022 | C128: NCS S
A129: RAL 6024 | C129: NCS S
A130: RAL 6025 | C130: NCS S
A131: RAL 6026 | C131: NCS S
A132: RAL 6027 | C132: NCS S
A133: RAL 6028 | C133: NCS S
A134: RAL 6029 | C134: NCS S
A135: RAL 6032 | C135: NCS S
A136: RAL 7000 | C136: NCS S
A137: RAL 7001 | C137: NCS S
A138: RAL 7002 | C138: NCS S
A139: RAL 7003 | C139: NCS S
A140: RAL 7004 | C140: NCS S
A141: RAL 7005 | C141: NCS S
A142: RAL 7006 | C142: NCS S
A143: RAL 7008 | C143: NCS S
A144: RAL 7009 | C144: NCS S
A145: RAL 7010 | C145: NCS S
A146: RAL 7011 | C146: NCS S
A147: RAL 7012 | C147: NCS S
A148: RAL 7013 | C148: NCS S
A149: RAL 7015 | C149: NCS S
A150: RAL 7016 | C150: NCS S
A151: RAL 7021 | C151: NCS S
A152: RAL 7022 | C152: NCS S
A153: RAL 7023 | C153: NCS S
A154: RAL 7024 | C154: NCS S
A155: RAL 7026 | C155: NCS S
A156: RAL 7030 | C156: NCS S
A157: RAL 7033 | C157: NCS S
A158: RAL 7034 | C158: NCS S
A159: RAL 7035 | C159: NCS S
A160: RAL 7036 | C160: NCS S
A161: RAL 7037 | C161: NCS S
A162: RAL 7038 | C162: NCS S
A163: RAL 7039 | C163: NCS S
A164: RAL 7040 | C164: NCS S
A165: RAL 7042 | C165: NCS S
A166: RAL 7043 | C166: NCS S
A167: RAL 7044 | C167: NCS S
A168: RAL 7045 | C168: NCS S
A169: RAL 7046 | C169: NCS S
A170: RAL 7047 | C170: NCS S
A171: RAL 7048 | C171: NCS S
A172: RAL 8000 | C172: NCS S
A173: RAL 8001 | C173: NCS S
A174: RAL 8002 | C174: NCS S
A175: RAL 8003 | C175: NCS S
A176: RAL 8004 | C176: NCS S
A177: RAL 8007 | C177: NCS S
A178: RAL 8008 | C178: NCS S
A179: RAL 8011 | C179: NCS S
A180: RAL 8012 | C180: NCS S
A181: RAL 8014 | C181: NCS S
A182: RAL 8015 | C182: NCS S
A183: RAL 8016 | C183: NCS S
A184: RAL 8017 | C184: NCS S
A185: RAL 8019 | C185: NCS S
A186: RAL 8022 | C186: NCS S
A187: RAL 8023 | C187: NCS S
A188: RAL 8024 | C188: NCS S
A189: RAL 8025 | C189: NCS S
A190: RAL 8028 | C190: NCS S
A191: RAL 8029 | C191: NCS S
A192: RAL 8029 | C192: NCS S
A193: RAL 9001 | C193: NCS S
A194: RAL 9002 | C194: NCS S
A195: RAL 9003 | C195: NCS S
A196: RAL 9004 | C196: NCS S
A197: RAL 9005 | C197: NCS S
A198: RAL 9006 | C198: NCS S
A199: RAL 9007 | C199: NCS S
A200: RAL 9010 | C200: NCS S
... 6 more rows
